DEPARTMENT,NOMINAL,TYPE OF EXPENDITURE,DESCRIPTION,PERIOD,YEARCODE,VALUE,ECFRS Ref,INVOICE DATE,DOCUMENT TYPE,SUPPLIER,Type
Not Analysed,B113,Fixed Assets Under Construction Vehicles,VARIOUS,12,2020,1845.00,1367,26/02/2020,TMEX,MOTOR PARTS DIRECT,
Not Analysed,B113,Fixed Assets Under Construction Vehicles,VARIOUS,12,2020,-660.00,1368,28/02/2020,TMEX,MOTOR PARTS DIRECT,
Purchases,B207,Stocks & WIP (Fleet Stores),VARIOUS,12,2020,48.89,1369,25/02/2020,TMEX,MOTOR PARTS DIRECT,
Not Analysed,B113,Fixed Assets Under Construction Vehicles,Van - EP69 VMY,12,2020,13395.21,1370,30/01/2020,TMEX,FORD MOTOR CO LTD,
Purchases,B207,Stocks & WIP (Fleet Stores),GAS HOSE & CLIP,12,2020,17.43,1371,28/02/2020,TMEX,ANGLIA HOSE & HYDRAULICS LTD,
Purchases,B207,Stocks & WIP (Fleet Stores),VARIOUS,12,2020,99.88,1372,28/02/2020,TMEX,ALLIANCE AUTOMOTIVE UK CV LIMITED,
Purchases,B207,Stocks & WIP (Fleet Stores),VARIOUS,12,2020,67.98,1373,02/03/2020,TMEX,TRUCKEAST LTD,
Purchases,B207,Stocks & WIP (Fleet Stores),VARIOUS,12,2020,56.53,1374,03/03/2020,TMEX,TRUCKEAST LTD,
Purchases,B207,Stocks & WIP (Fleet Stores),VARIOUS,12,2020,17.21,1375,29/02/2020,TMEX,PARTS PLUS,
Purchases,B207,Stocks & WIP (Fleet Stores),VARIOUS,12,2020,115.80,1376,02/03/2020,TMEX,PARTS PLUS,
Purchases,B207,Stocks & WIP (Fleet Stores),VARIOUS,12,2020,3085.04,1377,28/02/2020,TMEX,TRUCTYRE FLEET MANAGEMENT LIMITED,
Purchases,B207,Stocks & WIP (Fleet Stores),VARIOUS,12,2020,145.26,1378,27/02/2020,TMEX,MOTOR PARTS DIRECT,
Purchases,B207,Stocks & WIP (Fleet Stores),VARIOUS,12,2020,72.63,1380,27/02/2020,TMEX,ORWELL TRUCK & VAN,
Not Analysed,B113,Fixed Assets Under Construction Vehicles,VARIOUS,12,2020,684.39,1381,03/02/2020,TMEX,LAB CRAFT LTD,
Purchases,B207,Stocks & WIP (Fleet Stores),Promtional Credit - Feb 20,12,2020,-114.98,1383,28/02/2020,TMEX,IPSWICH TPS,
Purchases,B207,Stocks & WIP (Fleet Stores),REWARD - JANUARY 20,12,2020,-150.00,1384,28/02/2020,TMEX,PARTS PLUS,
Not Analysed,B113,Fixed Assets Under Construction Vehicles,Graphics for new vehicle,12,2020,883.41,1385,13/02/2020,TMEX,BLUELITE GRAPHICS LTD,
Purchases,B207,Stocks & WIP (Fleet Stores),VARIOUS,12,2020,28.75,1386,29/02/2020,TMEX,PARTS PLUS,
Purchases,B207,Stocks & WIP (Fleet Stores),VARIOUS,12,2020,325.84,1387,28/02/2020,TMEX,PARTS PLUS,
Purchases,B207,Stocks & WIP (Fleet Stores),VARIOUS,12,2020,1538.68,1388,04/03/2020,TMEX,TRUCTYRE FLEET MANAGEMENT LIMITED,
Purchases,B207,Stocks & WIP (Fleet Stores),VARIOUS,12,2020,72.34,1389,05/03/2020,TMEX,MOTOR PARTS DIRECT,
Purchases,B207,Stocks & WIP (Fleet Stores),REPLACEMENT TYRE,12,2020,190.00,1390,27/02/2020,TMEX,ATS EUROMASTER LIMITED,
Not Analysed,B113,Fixed Assets Under Construction Vehicles,SIGNAGE FOR TRANSIT,12,2020,2650.23,1391,03/03/2020,TMEX,BLUELITE GRAPHICS LTD,
Purchases,B207,Stocks & WIP (Fleet Stores),VARIOUS,12,2020,223.55,1392,31/01/2020,TMEX,L H MORGAN & SONS (MARINE) LTD,
Purchases,B207,Stocks & WIP (Fleet Stores),VARIOUS,12,2020,65.07,1393,06/03/2020,TMEX,PARTS PLUS,
Purchases,B207,Stocks & WIP (Fleet Stores),VARIOUS,12,2020,381.18,1394,11/03/2020,TMEX,TRUCTYRE FLEET MANAGEMENT LIMITED,
Purchases,B207,Stocks & WIP (Fleet Stores),VARIOUS,12,2020,35.04,1395,07/03/2020,TMEX,RAPID ELECTRONICS LIMITED,
Purchases,B207,Stocks & WIP (Fleet Stores),VARIOUS,12,2020,739.96,1396,10/03/2020,TMEX,TRUCKEAST LTD,
Purchases,B207,Stocks & WIP (Fleet Stores),VARIOUS,12,2020,62.91,1397,05/03/2020,TMEX,R S COMPONENTS LTD,
Not Analysed,B113,Fixed Assets Under Construction Vehicles,Transit Van - EN69 0UV,12,2020,26919.97,1398,09/03/2020,TMEX,FORD MOTOR CO LTD,
Purchases,B207,Stocks & WIP (Fleet Stores),VARIOUS,12,2020,151.17,1399,11/03/2020,TMEX,ALLIANCE AUTOMOTIVE UK CV LIMITED,
Purchases,B207,Stocks & WIP (Fleet Stores),MOT DOCUMENT HOLDER,12,2020,13.96,1400,06/03/2020,TMEX,ALLIANCE AUTOMOTIVE UK CV LIMITED,
Purchases,B207,Stocks & WIP (Fleet Stores),VARIOUS,12,2020,42.16,1401,10/03/2020,TMEX,MOTOR PARTS DIRECT,
Purchases,B207,Stocks & WIP (Fleet Stores),VARIOUS,12,2020,170.72,1402,11/03/2020,TMEX,UNDERWOODS OF COLCHESTER VAUXHALL,
Purchases,B207,Stocks & WIP (Fleet Stores),VARIOUS,12,2020,126.42,1403,06/03/2020,TMEX,MOTOR PARTS DIRECT,
Not Analysed,B113,Fixed Assets Under Construction Vehicles,VARIOUS,12,2020,59.49,1404,12/03/2020,TMEX,MOTOR PARTS DIRECT,
Not Analysed,B113,Fixed Assets Under Construction Vehicles,Tourn Custom MCA - EO69 EUX,12,2020,23259.31,1405,12/03/2020,TMEX,FORD MOTOR CO LTD,
Purchases,B207,Stocks & WIP (Fleet Stores),VARIOUS,12,2020,127.28,1406,12/03/2020,TMEX,ALLIANCE AUTOMOTIVE UK CV LIMITED,
Not Analysed,B113,Fixed Assets Under Construction Vehicles,Tourn Custom MCA - EX69 TFU,12,2020,23259.31,1407,12/03/2020,TMEX,FORD MOTOR CO LTD,
Workshop Engineering,2070,Tools & Light Equipment,VARIOUS,12,2020,301.83,1408,10/02/2020,TMEX,WALTER FRANK & SONS LTD,
Not Analysed,B113,Fixed Assets Under Construction Vehicles,VARIOUS,12,2020,110.81,1409,13/03/2020,TMEX,WOODWAY ENGINEERING LTD,
Purchases,B207,Stocks & WIP (Fleet Stores),VARIOUS,12,2020,2381.88,1410,13/03/2020,TMEX,TRUCTYRE FLEET MANAGEMENT LIMITED,
Purchases,B207,Stocks & WIP (Fleet Stores),VARIOUS,12,2020,251.73,1411,12/03/2020,TMEX,J R INDUSTRIES LTD,
Purchases,B207,Stocks & WIP (Fleet Stores),corner module & carriage,12,2020,243.81,1412,17/03/2020,TMEX,DUN-BRI SERVICES LTD,
Purchases,B207,Stocks & WIP (Fleet Stores),VARIOUS,12,2020,2318.06,1413,18/03/2020,TMEX,TRUCTYRE FLEET MANAGEMENT LIMITED,
Purchases,B207,Stocks & WIP (Fleet Stores),VARIOUS,12,2020,9.07,1414,17/03/2020,TMEX,SOUTH ESSEX FASTENERS LTD,
Not Analysed,B113,Fixed Assets Under Construction Vehicles,VARIOUS,12,2020,1849.79,1415,18/03/2020,TMEX,SORTIMO INTERNATIONAL LTD,
Purchases,B207,Stocks & WIP (Fleet Stores),VARIOUS,12,2020,739.85,1416,19/03/2020,TMEX,TRUCKEAST LTD,
Purchases,B207,Stocks & WIP (Fleet Stores),various,12,2020,105.44,1417,17/03/2020,TMEX,ANGLIA HOSE & HYDRAULICS LTD,
Purchases,B207,Stocks & WIP (Fleet Stores),VARIOUS,12,2020,583.00,1418,23/03/2020,TMEX,ONLINE LUBRICANTS LTD,
Not Analysed,B113,Fixed Assets Under Construction Vehicles,VARIOUS,12,2020,235.63,1419,19/03/2020,TMEX,LAB CRAFT LTD,
Not Analysed,B113,Fixed Assets Under Construction Vehicles,VARIOUS,12,2020,29703.00,1420,24/03/2020,TMEX,ORWELL TRUCK & VAN,
Not Analysed,B113,Fixed Assets Under Construction Vehicles,VARIOUS,12,2020,29703.00,1421,24/03/2020,TMEX,ORWELL TRUCK & VAN,
Not Analysed,B113,Fixed Assets Under Construction Vehicles,Ford Focus - EO20 HWP,12,2020,16884.29,1422,23/03/2020,TMEX,FORD MOTOR CO LTD,
Not Analysed,B113,Fixed Assets Under Construction Vehicles,Focus - EO20 HWV,12,2020,16884.29,1423,23/03/2020,TMEX,FORD MOTOR CO LTD,
Not Analysed,B113,Fixed Assets Under Construction Vehicles,Focus - EO20 HWN,12,2020,16884.29,1424,23/03/2020,TMEX,FORD MOTOR CO LTD,
Not Analysed,B113,Fixed Assets Under Construction Vehicles,Focus - EO20 HWR,12,2020,16884.29,1425,23/03/2020,TMEX,FORD MOTOR CO LTD,
Not Analysed,B113,Fixed Assets Under Construction Vehicles,Focus - EO20 HWS,12,2020,16884.29,1426,23/03/2020,TMEX,FORD MOTOR CO LTD,
Technical Services,2085,Breathing Apparatus,MASK SERVICING,12,2020,135.20,1427,27/01/2020,TMEX,INTERSPIRO LTD,
Purchases,B207,Stocks & WIP (Fleet Stores),VARIOUS,12,2020,400.99,1428,23/03/2020,TMEX,UNDERWOODS OF COLCHESTER VAUXHALL,
Purchases,B207,Stocks & WIP (Fleet Stores),VARIOUS,12,2020,142.51,1429,23/03/2020,TMEX,TRUCKEAST LTD,
Purchases,B207,Stocks & WIP (Fleet Stores),VARIOUS,12,2020,205.94,1430,31/03/2020,TMEX,TRUCTYRE FLEET MANAGEMENT LIMITED,
Purchases,B207,Stocks & WIP (Fleet Stores),VARIOUS,12,2020,29.08,1431,31/03/2020,TMEX,TRUCKEAST LTD,
Workshop Engineering,3404,Vehicle Spares,"DRILL TWIST 13/64"" HS",12,2020,22.94,13359,28/02/2020,TMPI,SOUTH ESSEX FASTENERS LTD,
Workshop Engineering,3404,Vehicle Spares,PENNY WASHER M8 X 25,12,2020,2.42,13359,28/02/2020,TMPI,SOUTH ESSEX FASTENERS LTD,
Workshop Engineering,3404,Vehicle Spares,PENNY WASH M6 X 25 X 1;5 ZINC,12,2020,2.42,13359,28/02/2020,TMPI,SOUTH ESSEX FASTENERS LTD,
Workshop Engineering,3404,Vehicle Spares,A/KEY C/SUNK SCREW M6 X 40MM,12,2020,3.86,13359,28/02/2020,TMPI,SOUTH ESSEX FASTENERS LTD,
Workshop Engineering,3404,Vehicle Spares,A/KEY DOMED HEAD M5 X 20MM,12,2020,1.93,13359,28/02/2020,TMPI,SOUTH ESSEX FASTENERS LTD,
Workshop Engineering,3404,Vehicle Spares,RIVET POP ALLOY DMD 3;2X16;8MM,12,2020,1.58,13359,28/02/2020,TMPI,SOUTH ESSEX FASTENERS LTD,
Workshop Engineering,3404,Vehicle Spares,RIVET POP ALLOY DMD 3;2X13;3MM,12,2020,1.41,13359,28/02/2020,TMPI,SOUTH ESSEX FASTENERS LTD,
Workshop Engineering,3404,Vehicle Spares,"SCREW SELF TAP 1 1/2""X14 PAN H",12,2020,5.10,13359,28/02/2020,TMPI,SOUTH ESSEX FASTENERS LTD,
Workshop Engineering,3404,Vehicle Spares,N/S/R SIDE TRIM PANEL,12,2020,39.06,13360,28/02/2020,TMPI,UNDERWOODS OF COLCHESTER VAUXHALL,
Workshop Engineering,3404,Vehicle Spares,TAPE INSULATING BLACK,12,2020,8.00,13361,27/02/2020,TMPI,R S COMPONENTS LTD,
Workshop Engineering,3404,Vehicle Spares,MOT PIT FEE,12,2020,55.00,13362,28/02/2020,TMPI,TRUCKEAST LTD,
Workshop Engineering,3404,Vehicle Spares,MOT,12,2020,91.00,13362,28/02/2020,TMPI,TRUCKEAST LTD,
Workshop Engineering,3404,Vehicle Spares,TERMINAL,12,2020,5.30,13363,28/02/2020,TMPI,MOTOR PARTS DIRECT,
Workshop Engineering,3404,Vehicle Spares,P CLIP,12,2020,15.97,13363,28/02/2020,TMPI,MOTOR PARTS DIRECT,
Workshop Engineering,3404,Vehicle Spares,75W/80 GEARBOX OIL,12,2020,23.08,13364,28/02/2020,TMPI,MOTOR PARTS DIRECT,
Workshop Engineering,3404,Vehicle Spares,CARBURETTOR,12,2020,180.14,13365,24/02/2020,TMPI,ERNEST DOE & SONS LTD,
Workshop Engineering,3404,Vehicle Spares,N/S MIRROR ASSY C/W WIDE ANGLE,12,2020,85.00,13366,27/02/2020,TMPI,ALLIANCE AUTOMOTIVE UK CV LIMITED,
Workshop Engineering,3404,Vehicle Spares,DUMMY C COUPLING FEMALE SUSIE,12,2020,11.10,13367,27/02/2020,TMPI,ALLIANCE AUTOMOTIVE UK CV LIMITED,
Workshop Engineering,3404,Vehicle Spares,O/S/R SIDE TRIM PANEL,12,2020,38.88,13368,27/02/2020,TMPI,UNDERWOODS OF COLCHESTER VAUXHALL,
Workshop Engineering,3404,Vehicle Spares,TAIL LIFT INSPECTION,12,2020,86.76,13369,27/02/2020,TMPI,RANSOME ENGINEERING SERVICES LTD,
Workshop Engineering,3404,Vehicle Spares,TYVEK OVERALL XL,12,2020,11.90,13370,25/02/2020,TMPI,HALSTEAD REFINISHING SUPPLIES LTD,
Workshop Engineering,3404,Vehicle Spares,TURBO VISSION SCANIA RED,12,2020,145.25,13371,28/02/2020,TMPI,HALSTEAD REFINISHING SUPPLIES LTD,
Workshop Engineering,3404,Vehicle Spares,SPECTRAL PRIMER WHITE,12,2020,58.43,13371,28/02/2020,TMPI,HALSTEAD REFINISHING SUPPLIES LTD,
Workshop Engineering,3404,Vehicle Spares,MULTIGAS,12,2020,7.20,13372,26/02/2020,TMPI,RAPID ELECTRONICS LIMITED,
Workshop Engineering,3404,Vehicle Spares,DEBER  MED; HARDENER,12,2020,23.60,13373,25/02/2020,TMPI,MORELLI GROUP LTD,
Workshop Engineering,3404,Vehicle Spares,PARCEL TO BOWMONK,12,2020,14.51,13374,14/02/2020,TMPI,T N T UK LTD,
Workshop Engineering,3404,Vehicle Spares,TERMINAL,12,2020,4.23,13375,26/02/2020,TMPI,MOTOR PARTS DIRECT,
Purchasing & Supply,2303,Clothing & Footwear,MECHANIC GLOVES,12,2020,27.68,13377,26/02/2020,TMPI,MOTOR PARTS DIRECT,
Workshop Engineering,3404,Vehicle Spares,LARGE FUEL FILTER,12,2020,55.35,13378,26/02/2020,TMPI,ORWELL TRUCK & VAN,
Workshop Engineering,3404,Vehicle Spares,50MM CASTOR,12,2020,10.58,13379,26/02/2020,TMPI,NUMATIC INTERNATIONAL LTD,
Workshop Engineering,3404,Vehicle Spares,TRITEX FILTER,12,2020,11.25,13379,26/02/2020,TMPI,NUMATIC INTERNATIONAL LTD,
Workshop Engineering,3404,Vehicle Spares,2;4M THREADED HOSE,12,2020,9.39,13379,26/02/2020,TMPI,NUMATIC INTERNATIONAL LTD,
Workshop Engineering,3404,Vehicle Spares,75W90 FS PLUS GEAR OIL,12,2020,32.88,13380,27/02/2020,TMPI,MOTOR PARTS DIRECT,
Workshop Engineering,3404,Vehicle Spares,PTO ASSEMBLY,12,2020,993.36,13381,20/02/2020,TMPI,HARRIS TRUCK & VAN LTD,
Workshop Engineering,3404,Vehicle Spares,LED MEGAFLASH MICROBAR-MAGNET,12,2020,441.00,13382,26/02/2020,TMPI,RSG ENGINEERING LTD,
Workshop Engineering,3404,Vehicle Spares,carriage,12,2020,12.00,13382,26/02/2020,TMPI,RSG ENGINEERING LTD,
Workshop Engineering,3404,Vehicle Spares,PRE FILTER,12,2020,4.82,13383,25/02/2020,TMPI,ORWELL TRUCK & VAN,
Workshop Engineering,3404,Vehicle Spares,FUEL FILTER,12,2020,12.42,13383,25/02/2020,TMPI,ORWELL TRUCK & VAN,
Workshop Engineering,3404,Vehicle Spares,AIR DRIER FILTER,12,2020,74.70,13383,25/02/2020,TMPI,ORWELL TRUCK & VAN,
Workshop Engineering,3404,Vehicle Spares,OIL FILTER,12,2020,8.28,13383,25/02/2020,TMPI,ORWELL TRUCK & VAN,
Workshop Engineering,3404,Vehicle Spares,V-BELT,12,2020,22.68,13383,25/02/2020,TMPI,ORWELL TRUCK & VAN,
Workshop Engineering,3404,Vehicle Spares,HOLMATRO 10/30 ENG; OIL ( TRAN,12,2020,48.54,13388,02/03/2020,TMPI,MOTOR PARTS DIRECT,
Workshop Engineering,3404,Vehicle Spares,FUEL FILTER KIT,12,2020,108.75,13389,02/03/2020,TMPI,TRUCKEAST LTD,
Operations,2401,Laundry,CLEAN RAG BAGS,12,2020,194.13,13390,01/03/2020,TMPI,LINDSTROM LTD,
Workshop Engineering,3404,Vehicle Spares,O RING,12,2020,3.64,13393,02/03/2020,TMPI,LOOKERS LANDROVER,
Workshop Engineering,3404,Vehicle Spares,"DURITE 4 PIN RELAY - ""BLUE LIG",12,2020,12.96,13394,02/03/2020,TMPI,MOTOR PARTS DIRECT,
Workshop Engineering,3404,Vehicle Spares,NUMBER PLATE CLIPS,12,2020,3.90,13396,02/03/2020,TMPI,A T E (UK) LTD,
Workshop Engineering,3404,Vehicle Spares,O/S Mirror,12,2020,140.84,13397,02/03/2020,TMPI,PARTS PLUS,
Workshop Engineering,3404,Vehicle Spares,FUEL CAP MOVANO,12,2020,22.96,13399,29/02/2020,TMPI,UNDERWOODS OF COLCHESTER VAUXHALL,
Workshop Engineering,3404,Vehicle Spares,IP44 FEMALE PLUG,12,2020,18.60,13400,28/02/2020,TMPI,RAPID ELECTRONICS LIMITED,
Workshop Engineering,3404,Vehicle Spares,900MM BLADE REPLACEMENT,12,2020,84.04,13401,28/02/2020,TMPI,BODDINGTONS ELECTRICAL LTD,
Workshop Engineering,3404,Vehicle Spares,CARRIAGE,12,2020,10.00,13401,28/02/2020,TMPI,BODDINGTONS ELECTRICAL LTD,
Workshop Engineering,3404,Vehicle Spares,FRONT PADS,12,2020,29.71,13402,21/02/2020,TMPI,MOTOR PARTS DIRECT,
Workshop Engineering,3404,Vehicle Spares,REAR PADS,12,2020,28.74,13402,21/02/2020,TMPI,MOTOR PARTS DIRECT,
Workshop Engineering,3404,Vehicle Spares,FRONT PADS,12,2020,31.59,13402,21/02/2020,TMPI,MOTOR PARTS DIRECT,
Workshop Engineering,3404,Vehicle Spares,FRONT SENSOR,12,2020,9.07,13402,21/02/2020,TMPI,MOTOR PARTS DIRECT,
Workshop Engineering,3404,Vehicle Spares,REAR SENSOR,12,2020,8.64,13402,21/02/2020,TMPI,MOTOR PARTS DIRECT,
Workshop Engineering,3404,Vehicle Spares,FRONT PADS,12,2020,-29.71,13403,27/02/2020,TMPI,MOTOR PARTS DIRECT,
Workshop Engineering,3404,Vehicle Spares,REAR SENSOR,12,2020,-8.64,13403,27/02/2020,TMPI,MOTOR PARTS DIRECT,
Workshop Engineering,3404,Vehicle Spares,FUEL FILTER - 2010 RANGER,12,2020,15.90,13405,03/03/2020,TMPI,PARTS PLUS,
Workshop Engineering,3404,Vehicle Spares,315/80 R22;5 R297 BRIDGE,12,2020,3077.36,13408,28/02/2020,TMPI,TRUCTYRE FLEET MANAGEMENT LIMITED,
Workshop Engineering,3404,Vehicle Spares,DUST CAPS,12,2020,5.04,13408,28/02/2020,TMPI,TRUCTYRE FLEET MANAGEMENT LIMITED,
Workshop Engineering,3404,Vehicle Spares,VALVES,12,2020,50.08,13408,28/02/2020,TMPI,TRUCTYRE FLEET MANAGEMENT LIMITED,
Workshop Engineering,3404,Vehicle Spares,VLAVE EXTENSIONS,12,2020,12.52,13408,28/02/2020,TMPI,TRUCTYRE FLEET MANAGEMENT LIMITED,
Workshop Engineering,3404,Vehicle Spares,FIT OWN CASINGS,12,2020,120.00,13409,28/02/2020,TMPI,TRUCTYRE FLEET MANAGEMENT LIMITED,
Workshop Engineering,3404,Vehicle Spares,FIT OWN CASINGS,12,2020,120.00,13410,28/02/2020,TMPI,TRUCTYRE FLEET MANAGEMENT LIMITED,
Workshop Engineering,3404,Vehicle Spares,BATTERY 12VOLT NEW LPP,12,2020,102.69,13412,02/03/2020,TMPI,LINCON BATTERIES LTD,
Workshop Engineering,3404,Vehicle Spares,BATTERY CHGD scania / sabre v,12,2020,649.62,13412,02/03/2020,TMPI,LINCON BATTERIES LTD,
Workshop Engineering,3404,Vehicle Spares,6MM PUSH FITTINGS,12,2020,8.76,13413,02/03/2020,TMPI,ANGLIA HOSE & HYDRAULICS LTD,
Workshop Engineering,3404,Vehicle Spares,AIR FILTER - SCANIA (SC1869993,12,2020,29.80,13414,02/03/2020,TMPI,ALLIANCE AUTOMOTIVE UK CV LIMITED,
Workshop Engineering,3404,Vehicle Spares,FUEL FILTER SPRINTER WITH WATE,12,2020,78.30,13415,02/03/2020,TMPI,ORWELL TRUCK & VAN,
Workshop Engineering,3404,Vehicle Spares,SPRINTER - OIL FILTER  ( AMBUL,12,2020,10.80,13415,02/03/2020,TMPI,ORWELL TRUCK & VAN,
Workshop Engineering,3404,Vehicle Spares,SAE 10W-40 MERCEDES OIL SPRINT,12,2020,35.00,13415,02/03/2020,TMPI,ORWELL TRUCK & VAN,
Workshop Engineering,3404,Vehicle Spares,FRONT DISCS,12,2020,60.26,13417,03/03/2020,TMPI,MOTOR PARTS DIRECT,
Workshop Engineering,3404,Vehicle Spares,REAR DISCS,12,2020,85.34,13417,03/03/2020,TMPI,MOTOR PARTS DIRECT,
Workshop Engineering,3404,Vehicle Spares,FRONT PADS,12,2020,21.77,13417,03/03/2020,TMPI,MOTOR PARTS DIRECT,
Workshop Engineering,3404,Vehicle Spares,REAR PADS,12,2020,19.58,13417,03/03/2020,TMPI,MOTOR PARTS DIRECT,
Workshop Engineering,3404,Vehicle Spares,RE CUT DRIVE TYRE X 2,12,2020,204.00,13418,03/03/2020,TMPI,BRONZE MECHANICAL HANDLING LTD,
Workshop Engineering,2070,Tools & Light Equipment,SERVICE AND SVC LOLER EXAMINAT,12,2020,100.00,13419,03/03/2020,TMPI,BRONZE MECHANICAL HANDLING LTD,
Workshop Engineering,2070,Tools & Light Equipment,EXAMINATION CAGE,12,2020,50.00,13420,03/03/2020,TMPI,BRONZE MECHANICAL HANDLING LTD,
Workshop Engineering,2070,Tools & Light Equipment,PARTS AND LABOUR,12,2020,326.66,13421,03/03/2020,TMPI,BRONZE MECHANICAL HANDLING LTD,
Technical Services,2085,Breathing Apparatus,"CF BA Cylinder Test, Valve Ser",12,2020,558.00,13425,28/02/2020,TMPI,CYLINDER TESTING & SALES UK LTD,
Workshop Engineering,3404,Vehicle Spares,LOCKER OPENING LATCH ( ANGLOCO,12,2020,48.40,13427,29/02/2020,TMPI,ANGLOCO LTD,
Workshop Engineering,3404,Vehicle Spares,MALE BARN DOOR RETAINER,12,2020,24.30,13427,29/02/2020,TMPI,ANGLOCO LTD,
Workshop Engineering,3404,Vehicle Spares,CARRIAGE,12,2020,15.00,13427,29/02/2020,TMPI,ANGLOCO LTD,
Workshop Engineering,3404,Vehicle Spares,BATTERY HOLDER - SERVICE KIT-,12,2020,222.68,13428,28/02/2020,TMPI,HOLMATRO UK LIMITED,
Workshop Engineering,3404,Vehicle Spares,25 BAR VALVE-control handle,12,2020,57.67,13428,28/02/2020,TMPI,HOLMATRO UK LIMITED,
Workshop Engineering,3404,Vehicle Spares,MALE HOSE COUPLER,12,2020,222.30,13428,28/02/2020,TMPI,HOLMATRO UK LIMITED,
Workshop Engineering,3404,Vehicle Spares,CARRIAGE,12,2020,17.50,13428,28/02/2020,TMPI,HOLMATRO UK LIMITED,
Workshop Engineering,3404,Vehicle Spares,BODY LOCK VALVE - ALSO REQUIRE,12,2020,42.89,13429,03/03/2020,TMPI,TERBERG DTS UK LIMITED,
Workshop Engineering,3404,Vehicle Spares,CARRIAGE,12,2020,15.00,13429,03/03/2020,TMPI,TERBERG DTS UK LIMITED,
Workshop Engineering,3404,Vehicle Spares,ACTUATOR - LEFT HAND,12,2020,57.85,13429,03/03/2020,TMPI,TERBERG DTS UK LIMITED,
Workshop Engineering,3404,Vehicle Spares,PRESSURE SWITCH FOR BODY LOCK,12,2020,42.89,13429,03/03/2020,TMPI,TERBERG DTS UK LIMITED,
Workshop Engineering,3404,Vehicle Spares,CLIP HOSE 80MM,12,2020,7.95,13430,04/03/2020,TMPI,MOTOR PARTS DIRECT,
Workshop Engineering,3404,Vehicle Spares,RIVET POP ALLOY C/S 4;8X12;7MM,12,2020,2.80,13431,03/03/2020,TMPI,SOUTH ESSEX FASTENERS LTD,
Workshop Engineering,3404,Vehicle Spares,HOSE,12,2020,64.18,13432,03/03/2020,TMPI,TRUCKEAST LTD,
Workshop Engineering,3404,Vehicle Spares,PARCEL TO LUDO MCGURK,12,2020,14.51,13434,28/02/2020,TMPI,T N T UK LTD,
Workshop Engineering,3404,Vehicle Spares,PARCEL TO EMERGENCY VEHICLE PR,12,2020,14.51,13434,28/02/2020,TMPI,T N T UK LTD,
Workshop Engineering,3404,Vehicle Spares,FLOWMETER T;S;I,12,2020,88.05,13435,06/02/2020,TMPI,TNT INTERNATIONAL,
Workshop Engineering,3404,Vehicle Spares,O RING 38X2MM,12,2020,24.00,13438,28/02/2020,TMPI,ERIKS INDUSTRIAL SERVICES,
Workshop Engineering,3404,Vehicle Spares,O RING 40X2MM,12,2020,25.00,13438,28/02/2020,TMPI,ERIKS INDUSTRIAL SERVICES,
Workshop Engineering,3404,Vehicle Spares,CARRIAGE,12,2020,6.95,13438,28/02/2020,TMPI,ERIKS INDUSTRIAL SERVICES,
Workshop Engineering,3404,Vehicle Spares,O RINGS NORGREN HOSE REEL REGU,12,2020,2.20,13439,12/02/2020,TMPI,ANGLIA HOSE & HYDRAULICS LTD,
Workshop Engineering,3404,Vehicle Spares,TIE CABLE 300 x 4;8mm,12,2020,19.95,13440,04/03/2020,TMPI,MOTOR PARTS DIRECT,
Workshop Engineering,3404,Vehicle Spares,FUSE BLADE 20AMP YELLOW,12,2020,7.85,13441,27/02/2020,TMPI,MOTOR PARTS DIRECT,
Workshop Engineering,3404,Vehicle Spares,BULB 12V 55W HEAD LAMP - (LLB4,12,2020,47.20,13442,04/03/2020,TMPI,MOTOR PARTS DIRECT,
Workshop Engineering,3404,Vehicle Spares,BLACK ANTI SLIP TAPE,12,2020,45.00,13444,03/03/2020,TMPI,R S COMPONENTS LTD,
Workshop Engineering,3404,Vehicle Spares,S/STEEL HINGES,12,2020,28.98,13445,03/03/2020,TMPI,R S COMPONENTS LTD,
Workshop Engineering,3404,Vehicle Spares,TYPE 24 WABCO DIAPHRAGM - SCAN,12,2020,82.60,13446,03/03/2020,TMPI,ALLIANCE AUTOMOTIVE UK CV LIMITED,
Workshop Engineering,3404,Vehicle Spares,WATER PUMP,12,2020,42.01,13447,05/03/2020,TMPI,MOTOR PARTS DIRECT,
Workshop Engineering,3404,Vehicle Spares,RELAY STARTER 12V,12,2020,12.77,13449,03/03/2020,TMPI,MOTOR PARTS DIRECT,
Workshop Engineering,3404,Vehicle Spares,WIRE,12,2020,23.04,13450,05/03/2020,TMPI,MOTOR PARTS DIRECT,
Workshop Engineering,3404,Vehicle Spares,REVERSE CAMERA,12,2020,136.62,13451,05/03/2020,TMPI,MOTOR PARTS DIRECT,
Workshop Engineering,3404,Vehicle Spares,HIGH STRENGTH TAPE 50MM X 15M,12,2020,69.96,13452,03/03/2020,TMPI,KENT UK LTD,
Workshop Engineering,3404,Vehicle Spares,CARRIAGE,12,2020,6.50,13452,03/03/2020,TMPI,KENT UK LTD,
Workshop Engineering,3404,Vehicle Spares,SENSOR - REVERSE UNDERSLUNG,12,2020,119.88,13453,24/02/2020,TMPI,ALLIANCE AUTOMOTIVE UK CV LIMITED,
Workshop Engineering,3404,Vehicle Spares,POLLEN FILTER VAUXHALL MOVANO,12,2020,33.72,13454,04/03/2020,TMPI,UNDERWOODS OF COLCHESTER VAUXHALL,
Workshop Engineering,3404,Vehicle Spares,AIR FILTER VAUXHALL MOVANO,12,2020,44.80,13454,04/03/2020,TMPI,UNDERWOODS OF COLCHESTER VAUXHALL,
Workshop Engineering,3404,Vehicle Spares,AUX BELT KIT,12,2020,150.30,13455,05/03/2020,TMPI,UNDERWOODS OF COLCHESTER VAUXHALL,
Workshop Engineering,3404,Vehicle Spares,N/S/R SIDE TRIM PANEL,12,2020,39.06,13455,05/03/2020,TMPI,UNDERWOODS OF COLCHESTER VAUXHALL,
Workshop Engineering,3404,Vehicle Spares,"STRAP NYLON 74"" STOWAGE",12,2020,397.50,13456,04/03/2020,TMPI,A T E (UK) LTD,
Workshop Engineering,3404,Vehicle Spares,AUXILIARY BELT MOVANO,12,2020,16.59,13457,04/03/2020,TMPI,MOTOR PARTS DIRECT,
Workshop Engineering,3404,Vehicle Spares,AUXILIARY BELT IDLER MOVANO,12,2020,33.07,13457,04/03/2020,TMPI,MOTOR PARTS DIRECT,
Workshop Engineering,3404,Vehicle Spares,AUXILIARY BELT TENSIONER MOVAN,12,2020,58.79,13457,04/03/2020,TMPI,MOTOR PARTS DIRECT,
Workshop Engineering,3404,Vehicle Spares,800 bar safety valve-control h,12,2020,111.15,13458,03/03/2020,TMPI,HOLMATRO UK LIMITED,
Workshop Engineering,3404,Vehicle Spares,CARRIAGE,12,2020,17.50,13458,03/03/2020,TMPI,HOLMATRO UK LIMITED,
Workshop Engineering,3404,Vehicle Spares,25 BAR VALVE-control handle,12,2020,57.67,13458,03/03/2020,TMPI,HOLMATRO UK LIMITED,
Workshop Engineering,3404,Vehicle Spares,IMPELLOR,12,2020,235.32,13459,04/03/2020,TMPI,GODIVA LTD,
Workshop Engineering,3404,Vehicle Spares,O RING PRIMA,12,2020,3.92,13460,04/03/2020,TMPI,GODIVA LTD,
Workshop Engineering,3404,Vehicle Spares,DRIVE SHAFT PRIMA,12,2020,197.69,13460,04/03/2020,TMPI,GODIVA LTD,
Workshop Engineering,3404,Vehicle Spares,SMALL SCREW  (ALLEN KEY) - ( S,12,2020,19.02,13460,04/03/2020,TMPI,GODIVA LTD,
Workshop Engineering,3404,Vehicle Spares,O RING PRIMA,12,2020,8.52,13460,04/03/2020,TMPI,GODIVA LTD,
Workshop Engineering,3404,Vehicle Spares,DU BEARING PRIMA,12,2020,1.96,13460,04/03/2020,TMPI,GODIVA LTD,
Workshop Engineering,3404,Vehicle Spares,CARRIAGE,12,2020,12.00,13460,04/03/2020,TMPI,GODIVA LTD,
Workshop Engineering,3404,Vehicle Spares,235/65R 16C TYRE MICH,12,2020,121.56,13461,27/02/2020,TMPI,ATS EUROMASTER LIMITED,
Workshop Engineering,3404,Vehicle Spares,WHEEL BALANCE,12,2020,4.40,13461,27/02/2020,TMPI,ATS EUROMASTER LIMITED,
Workshop Engineering,3404,Vehicle Spares,WHEEL VALVE,12,2020,1.88,13461,27/02/2020,TMPI,ATS EUROMASTER LIMITED,
Workshop Engineering,3404,Vehicle Spares,SCRAP DISPOSAL,12,2020,1.16,13461,27/02/2020,TMPI,ATS EUROMASTER LIMITED,
Workshop Engineering,3404,Vehicle Spares,PUNCTURE REPAIR,12,2020,8.14,13462,27/02/2020,TMPI,ATS EUROMASTER LIMITED,
Workshop Engineering,3404,Vehicle Spares,WHEEL BALANCE,12,2020,4.40,13462,27/02/2020,TMPI,ATS EUROMASTER LIMITED,
Workshop Engineering,3404,Vehicle Spares,VALVE,12,2020,1.88,13462,27/02/2020,TMPI,ATS EUROMASTER LIMITED,
Workshop Engineering,3404,Vehicle Spares,SCRAP DISPOSAL,12,2020,1.16,13464,27/02/2020,TMPI,ATS EUROMASTER LIMITED,
Workshop Engineering,3404,Vehicle Spares,WHEEL BALANCE,12,2020,4.40,13464,27/02/2020,TMPI,ATS EUROMASTER LIMITED,
Workshop Engineering,3404,Vehicle Spares,235/65/16 MICH AGIL GRNX 115R,12,2020,121.56,13464,27/02/2020,TMPI,ATS EUROMASTER LIMITED,
Workshop Engineering,3404,Vehicle Spares,VALVE,12,2020,1.88,13464,27/02/2020,TMPI,ATS EUROMASTER LIMITED,
Workshop Engineering,3404,Vehicle Spares,OIL FILTER,12,2020,2.87,13465,28/02/2020,TMPI,MOTOR PARTS DIRECT,
Workshop Engineering,3404,Vehicle Spares,POLLEN FILTER,12,2020,7.54,13465,28/02/2020,TMPI,MOTOR PARTS DIRECT,
Workshop Engineering,3404,Vehicle Spares,TIMING BELT KIT,12,2020,50.94,13465,28/02/2020,TMPI,MOTOR PARTS DIRECT,
Workshop Engineering,3404,Vehicle Spares,AUXILIARY BELT,12,2020,11.36,13465,28/02/2020,TMPI,MOTOR PARTS DIRECT,
Workshop Engineering,3404,Vehicle Spares,N/S LOWER BALL JOINT,12,2020,13.15,13465,28/02/2020,TMPI,MOTOR PARTS DIRECT,
Workshop Engineering,3404,Vehicle Spares,O/S LOWER BALL JOINT,12,2020,13.15,13465,28/02/2020,TMPI,MOTOR PARTS DIRECT,
Workshop Engineering,3404,Vehicle Spares,SUMP PLUG,12,2020,3.13,13465,28/02/2020,TMPI,MOTOR PARTS DIRECT,
Workshop Engineering,3404,Vehicle Spares,N/S LOWER BALL JOINT,12,2020,-13.15,13466,05/03/2020,TMPI,MOTOR PARTS DIRECT,
Workshop Engineering,3404,Vehicle Spares,O/S LOWER BALL JOINT,12,2020,-13.15,13466,05/03/2020,TMPI,MOTOR PARTS DIRECT,
Workshop Engineering,3404,Vehicle Spares,YELLOW DIAMOND GRADE 40mm x 4M,12,2020,41.20,13467,03/03/2020,TMPI,BLUELITE GRAPHICS LTD,
Workshop Engineering,3404,Vehicle Spares,CARRIAGE,12,2020,15.00,13467,03/03/2020,TMPI,BLUELITE GRAPHICS LTD,
Workshop Engineering,3404,Vehicle Spares,RUN LOCK,12,2020,44.00,13468,03/03/2020,TMPI,RSG ENGINEERING LTD,
Workshop Engineering,3404,Vehicle Spares,CARRIAGE,12,2020,12.00,13468,03/03/2020,TMPI,RSG ENGINEERING LTD,
Workshop Engineering,3404,Vehicle Spares,FILTER FUEL New LPP,12,2020,82.80,13469,05/03/2020,TMPI,ERNEST DOE & SONS LTD,
Workshop Engineering,3404,Vehicle Spares,AIR FILTER (New LPP),12,2020,61.02,13469,05/03/2020,TMPI,ERNEST DOE & SONS LTD,
Workshop Engineering,3404,Vehicle Spares,FILTER OIL (B&S492932) New LPP,12,2020,41.00,13469,05/03/2020,TMPI,ERNEST DOE & SONS LTD,
Workshop Engineering,3404,Vehicle Spares,AIR PRE-FILTER (New LPP),12,2020,13.65,13469,05/03/2020,TMPI,ERNEST DOE & SONS LTD,
Workshop Engineering,3404,Vehicle Spares,AIR FILTER PPV FAN MK2,12,2020,67.12,13469,05/03/2020,TMPI,ERNEST DOE & SONS LTD,
Workshop Engineering,3404,Vehicle Spares,AD BLUE COVER SHIELD,12,2020,57.47,13470,05/03/2020,TMPI,IPSWICH TPS,
Workshop Engineering,3404,Vehicle Spares,SCREWS,12,2020,1.94,13471,04/03/2020,TMPI,IPSWICH TPS,
Workshop Engineering,3404,Vehicle Spares,CLIPS,12,2020,3.89,13471,04/03/2020,TMPI,IPSWICH TPS,
Workshop Engineering,3404,Vehicle Spares,HARD COVER,12,2020,34.86,13472,17/02/2020,TMPI,MORELLI GROUP LTD,
Workshop Engineering,3404,Vehicle Spares,SUPER 16 AUTO-EJECT 24 V,12,2020,30.00,13473,02/03/2020,TMPI,EMERGENCY VEHICLE PRODUCTS LTD,
Workshop Engineering,3404,Vehicle Spares,SUPER 16 AUTO-EJECT 24 V,12,2020,60.00,13473,02/03/2020,TMPI,EMERGENCY VEHICLE PRODUCTS LTD,
Workshop Engineering,3404,Vehicle Spares,SUPER 16 AUTO-EJECT 24 V,12,2020,120.00,13473,02/03/2020,TMPI,EMERGENCY VEHICLE PRODUCTS LTD,
Workshop Engineering,3404,Vehicle Spares,CARRIAGE,12,2020,10.00,13473,02/03/2020,TMPI,EMERGENCY VEHICLE PRODUCTS LTD,
Workshop Engineering,2924,Quality Assurance,CONTINUING ASSESSMENT C/O BY D,12,2020,1025.00,13474,06/03/2020,TMPI,BRITISH STANDARDS INSTITUTION,
Workshop Engineering,3404,Vehicle Spares,LOCK LEVER DJR187/DJR360,12,2020,1.80,13475,05/03/2020,TMPI,VIMPEX LTD,
Workshop Engineering,3404,Vehicle Spares,SHOE LOCK PLATE DJR187/DJR360,12,2020,0.20,13475,05/03/2020,TMPI,VIMPEX LTD,
Workshop Engineering,3404,Vehicle Spares,carriage,12,2020,15.00,13475,05/03/2020,TMPI,VIMPEX LTD,
Workshop Engineering,3404,Vehicle Spares,PROTECTOR DJR186/187/360,12,2020,0.80,13475,05/03/2020,TMPI,VIMPEX LTD,
Workshop Engineering,3404,Vehicle Spares,LOCKING PIN DJR187/DJR360,12,2020,6.00,13475,05/03/2020,TMPI,VIMPEX LTD,
Workshop Engineering,3404,Vehicle Spares,COMPRESSION SPRING 12-3600B,12,2020,0.20,13475,05/03/2020,TMPI,VIMPEX LTD,
Workshop Engineering,3404,Vehicle Spares,OIL FILTER,12,2020,2.87,13476,09/03/2020,TMPI,MOTOR PARTS DIRECT,
Workshop Engineering,3404,Vehicle Spares,SPARK PLUG - GEN08 ( BP5ES ) -,12,2020,14.10,13476,09/03/2020,TMPI,MOTOR PARTS DIRECT,
Workshop Engineering,3404,Vehicle Spares,OIL FILTER,12,2020,14.36,13477,09/03/2020,TMPI,UNDERWOODS OF COLCHESTER VAUXHALL,
Workshop Engineering,3404,Vehicle Spares,SUMP PLUG WASHER,12,2020,0.89,13477,09/03/2020,TMPI,UNDERWOODS OF COLCHESTER VAUXHALL,
Workshop Engineering,3404,Vehicle Spares,WIPER BLADE REFILLS,12,2020,2.36,13479,09/03/2020,TMPI,MOTOR PARTS DIRECT,
Workshop Engineering,3404,Vehicle Spares,24V LOCKER LED STRIP 500MM,12,2020,67.51,13480,05/03/2020,TMPI,DUN-BRI SERVICES LTD,
Workshop Engineering,3404,Vehicle Spares,PLASTIC PLUG,12,2020,22.00,13481,05/03/2020,TMPI,R S COMPONENTS LTD,
Workshop Engineering,3404,Vehicle Spares,WINDSCREEN WASHER NOZZLE,12,2020,23.62,13482,06/03/2020,TMPI,TRUCKEAST LTD,
Workshop Engineering,3404,Vehicle Spares,FUEL FILTER KIT,12,2020,72.50,13482,06/03/2020,TMPI,TRUCKEAST LTD,
Workshop Engineering,3404,Vehicle Spares,SPRAY NOZZLE FOR RED BACK PACK,12,2020,65.00,13483,27/02/2020,TMPI,FIRE LADDERS LTD,
Workshop Engineering,3404,Vehicle Spares,2 WAY CONNECTOR BLOCK,12,2020,25.00,13484,05/03/2020,TMPI,WOODWAY ENGINEERING LTD,
Workshop Engineering,3404,Vehicle Spares,2 WAY CONNECTOR BLOCK,12,2020,36.00,13484,05/03/2020,TMPI,WOODWAY ENGINEERING LTD,
Workshop Engineering,3404,Vehicle Spares,FEMALE TERMINAL PINS,12,2020,22.00,13484,05/03/2020,TMPI,WOODWAY ENGINEERING LTD,
Workshop Engineering,3404,Vehicle Spares,CARRIAGE,12,2020,9.25,13484,05/03/2020,TMPI,WOODWAY ENGINEERING LTD,
Workshop Engineering,3404,Vehicle Spares,MALE TERMINAL PINS,12,2020,18.00,13484,05/03/2020,TMPI,WOODWAY ENGINEERING LTD,
Workshop Engineering,3404,Vehicle Spares,AEROSOL U-POL SCANIA RED 13666,12,2020,13.50,13485,06/03/2020,TMPI,HALSTEAD REFINISHING SUPPLIES LTD,
Workshop Engineering,3404,Vehicle Spares,OCTORAL THINNER (5LTR),12,2020,19.95,13485,06/03/2020,TMPI,HALSTEAD REFINISHING SUPPLIES LTD,
Workshop Engineering,3404,Vehicle Spares,FUSE MINI YELLOW,12,2020,13.40,13486,05/03/2020,TMPI,MOTOR PARTS DIRECT,
Workshop Engineering,3404,Vehicle Spares,FUSE MINI GREEN,12,2020,13.40,13486,05/03/2020,TMPI,MOTOR PARTS DIRECT,
Workshop Engineering,3404,Vehicle Spares,FUSE MINI BLUE - 15 AMP,12,2020,13.40,13486,05/03/2020,TMPI,MOTOR PARTS DIRECT,
Workshop Engineering,3404,Vehicle Spares,FUSE MINI BROWN,12,2020,13.40,13486,05/03/2020,TMPI,MOTOR PARTS DIRECT,
Workshop Engineering,3404,Vehicle Spares,FUSE MINI NEUTRAL,12,2020,13.40,13486,05/03/2020,TMPI,MOTOR PARTS DIRECT,
Workshop Engineering,3404,Vehicle Spares,FUSE MINI RED,12,2020,13.40,13486,05/03/2020,TMPI,MOTOR PARTS DIRECT,
Workshop Engineering,3404,Vehicle Spares,INSPECT AND TEST PENNY LIFT,12,2020,91.59,13487,06/03/2020,TMPI,RANSOME ENGINEERING SERVICES LTD,
Workshop Engineering,3404,Vehicle Spares,SPARK PLUG - LPP ( BKR6E ),12,2020,19.20,13488,06/03/2020,TMPI,MOTOR PARTS DIRECT,
Workshop Engineering,3404,Vehicle Spares,TERMINAL EYE BLUE 8MM,12,2020,2.56,13488,06/03/2020,TMPI,MOTOR PARTS DIRECT,
Workshop Engineering,3404,Vehicle Spares,ABSORBANT SPILL  GRANULES,12,2020,26.25,13488,06/03/2020,TMPI,MOTOR PARTS DIRECT,
Workshop Engineering,3404,Vehicle Spares,NUT IMPELLER TO SHAFT PRIMA,12,2020,8.22,13489,06/03/2020,TMPI,GODIVA LTD,
Workshop Engineering,3404,Vehicle Spares,WEAR RING PRIMA,12,2020,160.44,13489,06/03/2020,TMPI,GODIVA LTD,
Workshop Engineering,3404,Vehicle Spares,COVER PLATE,12,2020,341.03,13489,06/03/2020,TMPI,GODIVA LTD,
Workshop Engineering,3404,Vehicle Spares,WIPER CARRIER,12,2020,3.92,13489,06/03/2020,TMPI,GODIVA LTD,
Workshop Engineering,3404,Vehicle Spares,CARRIAGE,12,2020,12.00,13489,06/03/2020,TMPI,GODIVA LTD,
Workshop Engineering,3404,Vehicle Spares,O RING PUMP BODY & VOLUTE PRIM,12,2020,11.01,13489,06/03/2020,TMPI,GODIVA LTD,
Workshop Engineering,3404,Vehicle Spares,WEAR RING LP IMPELLER PRIMA,12,2020,124.62,13489,06/03/2020,TMPI,GODIVA LTD,
Workshop Engineering,3404,Vehicle Spares,O RING SUCTION TUBE FLANGE PRI,12,2020,4.90,13489,06/03/2020,TMPI,GODIVA LTD,
Workshop Engineering,3404,Vehicle Spares,IMPELLER HIGH PRESSURE,12,2020,347.45,13489,06/03/2020,TMPI,GODIVA LTD,
Workshop Engineering,3404,Vehicle Spares,"PRIMA P2, PISTON PRIMER SEAL R",12,2020,473.52,13489,06/03/2020,TMPI,GODIVA LTD,
Workshop Engineering,3404,Vehicle Spares,MECHAINACAL SEAL ASSEMBLY PRIM,12,2020,267.80,13489,06/03/2020,TMPI,GODIVA LTD,
Workshop Engineering,3404,Vehicle Spares,COMPOUND GAUGE ( -1 TO +25 BAR,12,2020,20.00,13490,04/03/2020,TMPI,MODUS GAUGES LIMITED,
Workshop Engineering,3404,Vehicle Spares,COMPOUND GAUGE ( -1 TO +25 BAR,12,2020,60.00,13490,04/03/2020,TMPI,MODUS GAUGES LIMITED,
Workshop Engineering,3404,Vehicle Spares,COMPOUND GAUGE ( -1 TO +25 BAR,12,2020,30.00,13490,04/03/2020,TMPI,MODUS GAUGES LIMITED,
Workshop Engineering,3404,Vehicle Spares,RECOVER EU13CHC TO WORKSHOPS,12,2020,210.00,13491,17/09/2019,TMPI,D&G ASSIST LIMITED,
Workshop Engineering,3404,Vehicle Spares,RECOVER FJ16FSY TO WORKSHOPS,12,2020,355.00,13492,25/11/2019,TMPI,D&G ASSIST LIMITED,
Workshop Engineering,3404,Vehicle Spares,LOCTITE 242 THREAD LOCK MEDIUM,12,2020,11.75,13495,10/03/2020,TMPI,R S COMPONENTS LTD,
Workshop Engineering,3404,Vehicle Spares,CABLE SLEEVE,12,2020,11.02,13495,10/03/2020,TMPI,R S COMPONENTS LTD,
Purchasing & Supply,4001,Stationery,A4 PAPER,12,2020,42.66,13496,09/03/2020,TMPI,BANNER GROUP LIMITED,
Purchasing & Supply,4001,Stationery,CLIP BOARDS,12,2020,3.30,13496,09/03/2020,TMPI,BANNER GROUP LIMITED,
Workshop Engineering,3404,Vehicle Spares,FRONT BRAKE DISC 14 REG ONWARD,12,2020,45.56,13498,11/03/2020,TMPI,PARTS PLUS,
Workshop Engineering,3404,Vehicle Spares,CLUTCH KIT INC FLYWHEEL AND SL,12,2020,345.26,13499,11/03/2020,TMPI,MOTOR PARTS DIRECT,
Workshop Engineering,3404,Vehicle Spares,24V LOCKER LED STRIP 1000MM,12,2020,58.98,13500,09/03/2020,TMPI,DUN-BRI SERVICES LTD,
Workshop Engineering,3404,Vehicle Spares,INTERACTOR FILTER,12,2020,11.23,13501,11/03/2020,TMPI,TRUCKEAST LTD,
Workshop Engineering,3404,Vehicle Spares,CAB TILT PUMP,12,2020,776.05,13502,11/03/2020,TMPI,TRUCKEAST LTD,
Workshop Engineering,3404,Vehicle Spares,carriage,12,2020,15.00,13503,10/03/2020,TMPI,TERBERG DTS UK LIMITED,
Workshop Engineering,3404,Vehicle Spares,GANTRY VALVE LOCK - 3-2 KEY OP,12,2020,136.14,13503,10/03/2020,TMPI,TERBERG DTS UK LIMITED,
Workshop Engineering,3404,Vehicle Spares,OIL FILTER,12,2020,15.66,13504,11/03/2020,TMPI,HARRIS TRUCK & VAN LTD,
Workshop Engineering,3404,Vehicle Spares,FUEL FILTER,12,2020,7.53,13504,11/03/2020,TMPI,HARRIS TRUCK & VAN LTD,
Workshop Engineering,3404,Vehicle Spares,AIR FILTER,12,2020,46.02,13504,11/03/2020,TMPI,HARRIS TRUCK & VAN LTD,
Workshop Engineering,3404,Vehicle Spares,FUEL FILTER,12,2020,9.80,13504,11/03/2020,TMPI,HARRIS TRUCK & VAN LTD,
Workshop Engineering,3404,Vehicle Spares,CARRIAGE,12,2020,17.50,13505,10/03/2020,TMPI,HOLMATRO UK LIMITED,
Workshop Engineering,3404,Vehicle Spares,PROTECTION SLEEVE-cutter,12,2020,154.19,13505,10/03/2020,TMPI,HOLMATRO UK LIMITED,
Workshop Engineering,3404,Vehicle Spares,SCENELITE LED (GREY) 10-32V -,12,2020,162.72,13506,06/03/2020,TMPI,ALLIANCE AUTOMOTIVE UK CV LIMITED,
Workshop Engineering,3404,Vehicle Spares,ANTIFREEZE UNIVERSAL RED (PINK,12,2020,52.80,13507,09/03/2020,TMPI,ALLIANCE AUTOMOTIVE UK CV LIMITED,
Workshop Engineering,3404,Vehicle Spares,CARRIAGE,12,2020,10.00,13510,06/03/2020,TMPI,LUDO MCGURK TRANSPORT EQUIPMENT LTD,
Workshop Engineering,3404,Vehicle Spares,AUTO EJECT LUDO PLUG - IEC6030,12,2020,45.00,13510,06/03/2020,TMPI,LUDO MCGURK TRANSPORT EQUIPMENT LTD,
Workshop Engineering,3404,Vehicle Spares,"BRUSH PAINT 1""",12,2020,16.68,13511,06/03/2020,TMPI,R S COMPONENTS LTD,
Workshop Engineering,3404,Vehicle Spares,TERMINAL SPADE 0;25 MALE CONN,12,2020,8.20,13511,06/03/2020,TMPI,R S COMPONENTS LTD,
Workshop Engineering,3404,Vehicle Spares,STABALISER END CAP (BLACK PLAS,12,2020,51.36,13512,03/03/2020,TMPI,SUPPLY PLUS LIMITED,
Workshop Engineering,3404,Vehicle Spares,105 LADDER HEEL WEAR PROTECTOR,12,2020,161.64,13512,03/03/2020,TMPI,SUPPLY PLUS LIMITED,
Workshop Engineering,3404,Vehicle Spares,CARRIAGE,12,2020,9.60,13512,03/03/2020,TMPI,SUPPLY PLUS LIMITED,
Workshop Engineering,3404,Vehicle Spares,MAST LIGHT LENS ( CONVEX ),12,2020,364.00,13513,04/03/2020,TMPI,THE WILL-BURT COMPANY (EU) LIMITED,
Workshop Engineering,3404,Vehicle Spares,carriage,12,2020,100.00,13513,04/03/2020,TMPI,THE WILL-BURT COMPANY (EU) LIMITED,
Workshop Engineering,3404,Vehicle Spares,COMPRESSOR OIL 25LTR,12,2020,42.14,13514,03/03/2020,TMPI,ANGLIA HOSE & HYDRAULICS LTD,
Workshop Engineering,3404,Vehicle Spares,OIL FILTER - ( 65 REG SPRINTER,12,2020,11.34,13515,09/03/2020,TMPI,ORWELL TRUCK & VAN,
Workshop Engineering,3404,Vehicle Spares,POLLEN FILTER SPRINTER,12,2020,20.07,13515,09/03/2020,TMPI,ORWELL TRUCK & VAN,
Workshop Engineering,3404,Vehicle Spares,FUEL FILTER SPRINTER,12,2020,59.40,13515,09/03/2020,TMPI,ORWELL TRUCK & VAN,
Workshop Engineering,3404,Vehicle Spares,AIR FILTER - TRANSIT,12,2020,5.28,13516,09/03/2020,TMPI,PARTS PLUS,
Workshop Engineering,3404,Vehicle Spares,OIL FILTER - TRANSIT - 06 ONWA,12,2020,4.64,13516,09/03/2020,TMPI,PARTS PLUS,
Workshop Engineering,3404,Vehicle Spares,OIL FILTER TRANSIT 17+18 PLATE,12,2020,8.47,13516,09/03/2020,TMPI,PARTS PLUS,
Workshop Engineering,3404,Vehicle Spares,"FOCUS POLLEN FILTER ""11"" >",12,2020,17.42,13516,09/03/2020,TMPI,PARTS PLUS,
Workshop Engineering,3404,Vehicle Spares,REAR BRAKE PAD KIT - TRANSIT C,12,2020,27.06,13516,09/03/2020,TMPI,PARTS PLUS,
Workshop Engineering,3404,Vehicle Spares,FUEL FILTER,12,2020,12.34,13516,09/03/2020,TMPI,PARTS PLUS,
Workshop Engineering,3404,Vehicle Spares,"FUEL FILTER FOCUS ""11"" >",12,2020,26.87,13516,09/03/2020,TMPI,PARTS PLUS,
Workshop Engineering,3404,Vehicle Spares,AIR FILTER 1;6TDCI (OPTION) CO,12,2020,20.99,13516,09/03/2020,TMPI,PARTS PLUS,
Workshop Engineering,3404,Vehicle Spares,SUMP PLUG WASHER NEW TRANSIT 6,12,2020,10.93,13516,09/03/2020,TMPI,PARTS PLUS,
Workshop Engineering,3404,Vehicle Spares,MIRROR wide angle glass,12,2020,22.00,13517,10/03/2020,TMPI,TRUCKEAST LTD,
Workshop Engineering,3404,Vehicle Spares,FUEL TANK STRAP COVER,12,2020,15.20,13517,10/03/2020,TMPI,TRUCKEAST LTD,
Workshop Engineering,3404,Vehicle Spares,MUDGUARD,12,2020,188.70,13518,10/03/2020,TMPI,TRUCKEAST LTD,
Operations,2401,Laundry,RENTAL CHARGES 26/01/2020 TO 2,12,2020,418.44,13520,22/02/2020,TMPI,JOHNSONS APPARELMASTER LTD,
Technical Services,2085,Breathing Apparatus,1;5 BDS,12,2020,11.36,13522,27/02/2020,TMPI,ANGLIA HOSE & HYDRAULICS LTD,
Technical Services,2085,Breathing Apparatus,1/4 BDS,12,2020,13.20,13522,27/02/2020,TMPI,ANGLIA HOSE & HYDRAULICS LTD,
Workshop Engineering,3404,Vehicle Spares,REPAIR CONNECTOR,12,2020,45.00,13525,12/03/2020,TMPI,GOLDING AUDIO LTD,
Workshop Engineering,3404,Vehicle Spares,OCTORAL THINNER (5LTR),12,2020,30.33,13526,06/03/2020,TMPI,MORELLI GROUP LTD,
Workshop Engineering,3404,Vehicle Spares,carriage,12,2020,17.50,13527,12/03/2020,TMPI,HOLMATRO UK LIMITED,
Workshop Engineering,3404,Vehicle Spares,MALE COUPLER TOOL-control hand,12,2020,222.30,13527,12/03/2020,TMPI,HOLMATRO UK LIMITED,
Workshop Engineering,3404,Vehicle Spares,REAR SEAT BELT - 10 PLATE ONWA,12,2020,122.62,13528,12/03/2020,TMPI,TERBERG DTS UK LIMITED,
Workshop Engineering,3404,Vehicle Spares,CARRIAGE,12,2020,15.00,13528,12/03/2020,TMPI,TERBERG DTS UK LIMITED,
Workshop Engineering,3404,Vehicle Spares,DOOR SENSOR ( BLACK ) - OPTICA,12,2020,112.62,13529,12/03/2020,TMPI,TERBERG DTS UK LIMITED,
Workshop Engineering,3404,Vehicle Spares,PRESSURE RELIEF VALVE - 4010,12,2020,121.65,13530,11/03/2020,TMPI,GODIVA LTD,
Workshop Engineering,3404,Vehicle Spares,O RING PUMP BODY & VOLUTE PRIM,12,2020,11.01,13530,11/03/2020,TMPI,GODIVA LTD,
Workshop Engineering,3404,Vehicle Spares,P/PRIME COVER SEAL KIT,12,2020,56.40,13531,11/03/2020,TMPI,GODIVA LTD,
Workshop Engineering,3404,Vehicle Spares,carriage,12,2020,12.00,13531,11/03/2020,TMPI,GODIVA LTD,
Workshop Engineering,3404,Vehicle Spares,CROSSOVER VALVE,12,2020,272.32,13531,11/03/2020,TMPI,GODIVA LTD,
Workshop Engineering,3404,Vehicle Spares,KEY TAGS,12,2020,15.00,13532,12/03/2020,TMPI,KEYS IS US,
Workshop Engineering,3404,Vehicle Spares,POLLEN FILTER ( TRANSIT EX63 ),12,2020,17.42,13533,12/03/2020,TMPI,PARTS PLUS,
Workshop Engineering,3404,Vehicle Spares,OIL FILTER - TRANSIT - 06 ONWA,12,2020,4.64,13533,12/03/2020,TMPI,PARTS PLUS,
Workshop Engineering,3404,Vehicle Spares,"FOCUS POLLEN FILTER ""11"" >",12,2020,52.26,13533,12/03/2020,TMPI,PARTS PLUS,
Workshop Engineering,3404,Vehicle Spares,OIL FILTER,12,2020,23.56,13533,12/03/2020,TMPI,PARTS PLUS,
Workshop Engineering,3404,Vehicle Spares,"FUEL FILTER FOCUS ""11"" >",12,2020,67.16,13533,12/03/2020,TMPI,PARTS PLUS,
Workshop Engineering,3404,Vehicle Spares,AIR FILTER - TRANSIT,12,2020,10.56,13533,12/03/2020,TMPI,PARTS PLUS,
Workshop Engineering,3404,Vehicle Spares,SEAL - O RING - CONNECT SUMP P,12,2020,32.64,13533,12/03/2020,TMPI,PARTS PLUS,
Workshop Engineering,3404,Vehicle Spares,AIR FILTER 1;6TDCI (OPTION) CO,12,2020,34.98,13533,12/03/2020,TMPI,PARTS PLUS,
Workshop Engineering,3404,Vehicle Spares,"INSPECTION, SERVICE AND TEST H",12,2020,110.00,13534,02/03/2020,TMPI,TIP-N-LIFT UK LIMITED,
Workshop Engineering,3404,Vehicle Spares,GAS SAFE INSPECTION,12,2020,25.00,13535,10/03/2020,TMPI,GASBAY,
Workshop Engineering,3404,Vehicle Spares,GAS SAFE INSPECTION,12,2020,25.00,13535,10/03/2020,TMPI,GASBAY,
Workshop Engineering,3404,Vehicle Spares,GAS SAFE INSPECTION,12,2020,25.00,13535,10/03/2020,TMPI,GASBAY,
Workshop Engineering,3404,Vehicle Spares,TORK BLUE PAPER ROLL,12,2020,18.86,13536,11/03/2020,TMPI,MOTOR PARTS DIRECT,
Workshop Engineering,3404,Vehicle Spares,CLEAR MASKING FILM 120 X 5M(5M,12,2020,17.95,13538,11/03/2020,TMPI,HALSTEAD REFINISHING SUPPLIES LTD,
Workshop Engineering,3404,Vehicle Spares,BUSHING,12,2020,10.23,13539,12/03/2020,TMPI,UNDERWOODS OF COLCHESTER VAUXHALL,
Workshop Engineering,3404,Vehicle Spares,SPACER,12,2020,8.60,13539,12/03/2020,TMPI,UNDERWOODS OF COLCHESTER VAUXHALL,
Workshop Engineering,3404,Vehicle Spares,931971449,12,2020,97.20,13541,12/03/2020,TMPI,UNDERWOODS OF COLCHESTER VAUXHALL,
Workshop Engineering,3404,Vehicle Spares,FUEL FILTER ( P SERIES ),12,2020,36.72,13542,12/03/2020,TMPI,TRUCKEAST LTD,
Workshop Engineering,3404,Vehicle Spares,HAND CONTROL UNIT,12,2020,205.01,13543,12/03/2020,TMPI,TRUCKEAST LTD,
Workshop Engineering,3404,Vehicle Spares,BATTERY TERMINAL GREASE 100ML,12,2020,30.10,13544,12/03/2020,TMPI,MOTOR PARTS DIRECT,
Workshop Engineering,3404,Vehicle Spares,FRONT/REAR PADS SCANIA,12,2020,319.00,13545,12/03/2020,TMPI,TRUCKEAST LTD,
Workshop Engineering,3404,Vehicle Spares,V BELT,12,2020,-6.10,13547,13/03/2020,TMPI,MOTOR PARTS DIRECT,
Workshop Engineering,3404,Vehicle Spares,24V LOCKER LED STRIP 1000MM,12,2020,58.98,13551,13/03/2020,TMPI,DUN-BRI SERVICES LTD,
Workshop Engineering,3404,Vehicle Spares,OIL FILTER,12,2020,3.23,13552,16/03/2020,TMPI,MOTOR PARTS DIRECT,
Workshop Engineering,3404,Vehicle Spares,BULB 24v 70w SABRE- (LLB775),12,2020,18.50,13552,16/03/2020,TMPI,MOTOR PARTS DIRECT,
Workshop Engineering,3404,Vehicle Spares,A PILLAR,12,2020,38.38,13554,13/03/2020,TMPI,TRUCKEAST LTD,
Workshop Engineering,3404,Vehicle Spares,PLATE,12,2020,66.30,13555,13/03/2020,TMPI,TRUCKEAST LTD,
Workshop Engineering,3404,Vehicle Spares,THREAD LOCK & SEAL (LOCTITE 24,12,2020,20.66,13556,12/03/2020,TMPI,R S COMPONENTS LTD,
Workshop Engineering,3404,Vehicle Spares,LOCKING HANDLES,12,2020,12.24,13556,12/03/2020,TMPI,R S COMPONENTS LTD,
Workshop Engineering,3404,Vehicle Spares,"FUEL FILTER FOCUS ""11"" >",12,2020,13.44,13557,13/03/2020,TMPI,PARTS PLUS,
Workshop Engineering,3404,Vehicle Spares,REAR BRAKE PAD KIT - TRANSIT C,12,2020,27.06,13557,13/03/2020,TMPI,PARTS PLUS,
Workshop Engineering,3404,Vehicle Spares,"FOCUS POLLEN FILTER ""11"" >",12,2020,8.71,13557,13/03/2020,TMPI,PARTS PLUS,
Workshop Engineering,3404,Vehicle Spares,BUSHING,12,2020,10.23,13558,14/03/2020,TMPI,UNDERWOODS OF COLCHESTER VAUXHALL,
Workshop Engineering,3404,Vehicle Spares,PRESSURE RELIEF VALVE-hand pum,12,2020,99.56,13559,13/03/2020,TMPI,HOLMATRO UK LIMITED,
Workshop Engineering,3404,Vehicle Spares,HINGE PIN PLATE-cutter,12,2020,19.57,13559,13/03/2020,TMPI,HOLMATRO UK LIMITED,
Workshop Engineering,3404,Vehicle Spares,PROTECTION SLEEVE-cutter,12,2020,102.79,13559,13/03/2020,TMPI,HOLMATRO UK LIMITED,
Workshop Engineering,3404,Vehicle Spares,LED LIGHT SET ( 1X PAIR ISSUED,12,2020,129.96,13559,13/03/2020,TMPI,HOLMATRO UK LIMITED,
Workshop Engineering,3404,Vehicle Spares,MALE COUPLER TOOL-control hand,12,2020,111.15,13559,13/03/2020,TMPI,HOLMATRO UK LIMITED,
Workshop Engineering,3404,Vehicle Spares,O RING-cutter,12,2020,25.84,13559,13/03/2020,TMPI,HOLMATRO UK LIMITED,
Workshop Engineering,3404,Vehicle Spares,carriage,12,2020,17.50,13559,13/03/2020,TMPI,HOLMATRO UK LIMITED,
Workshop Engineering,3404,Vehicle Spares,COVER SET-control handle,12,2020,46.46,13560,13/03/2020,TMPI,HOLMATRO UK LIMITED,
Workshop Engineering,3404,Vehicle Spares,END COVER-control handle,12,2020,65.74,13560,13/03/2020,TMPI,HOLMATRO UK LIMITED,
Workshop Engineering,3404,Vehicle Spares,CARRIAGE,12,2020,17.50,13560,13/03/2020,TMPI,HOLMATRO UK LIMITED,
Workshop Engineering,3404,Vehicle Spares,HOLMATRO SPRING WASHER,12,2020,0.48,13560,13/03/2020,TMPI,HOLMATRO UK LIMITED,
Workshop Engineering,3404,Vehicle Spares,SCREW HEAD BOLT-control handle,12,2020,11.40,13560,13/03/2020,TMPI,HOLMATRO UK LIMITED,
Purchasing & Supply,2024,Cleaning Equipment,SERVICE CHARGE 13/03/20-12/04/,12,2020,331.52,13561,13/03/2020,TMPI,SAFETY KLEEN UK LTD,
Workshop Engineering,3404,Vehicle Spares,LOW PRESSURE GAUGE ( 0 TO +25,12,2020,20.00,13563,12/03/2020,TMPI,MODUS GAUGES LIMITED,
Workshop Engineering,3404,Vehicle Spares,HIGH PRESSURE GAUGE ( 0 TO +60,12,2020,40.00,13563,12/03/2020,TMPI,MODUS GAUGES LIMITED,
Workshop Engineering,3404,Vehicle Spares,63MM - ( -1 TO +9 BAR ) -  GAU,12,2020,80.00,13563,12/03/2020,TMPI,MODUS GAUGES LIMITED,
Workshop Engineering,3404,Vehicle Spares,63MM - ( 0 TO +16 BAR ) -  GAU,12,2020,40.00,13563,12/03/2020,TMPI,MODUS GAUGES LIMITED,
Workshop Engineering,3404,Vehicle Spares,MOUNTING BUSH was ST-8031-S,12,2020,24.00,13564,11/03/2020,TMPI,ALLIANCE AUTOMOTIVE UK CV LIMITED,
Workshop Engineering,3404,Vehicle Spares,SAE 10W-40 MERCEDES OIL SPRINT,12,2020,35.00,13565,16/03/2020,TMPI,ORWELL TRUCK & VAN,
Workshop Engineering,3404,Vehicle Spares,SUMP PLUG WASHER MERC 2018-,12,2020,3.83,13565,16/03/2020,TMPI,ORWELL TRUCK & VAN,
Workshop Engineering,3404,Vehicle Spares,SPRINTER - OIL FILTER  ( AMBUL,12,2020,10.80,13565,16/03/2020,TMPI,ORWELL TRUCK & VAN,
Workshop Engineering,3404,Vehicle Spares,FUEL FILTER SPRINTER WITH WATE,12,2020,78.30,13565,16/03/2020,TMPI,ORWELL TRUCK & VAN,
Workshop Engineering,3404,Vehicle Spares,AUTO G/BOX MOULDED SEAL (FILTE,12,2020,7.79,13565,16/03/2020,TMPI,ORWELL TRUCK & VAN,
Workshop Engineering,3404,Vehicle Spares,AUTO G/BOX OIL FILTER (FILTER,12,2020,10.89,13565,16/03/2020,TMPI,ORWELL TRUCK & VAN,
Workshop Engineering,3404,Vehicle Spares,AUTO G/BOX SCREW PLUG (FILTER,12,2020,1.85,13565,16/03/2020,TMPI,ORWELL TRUCK & VAN,
Workshop Engineering,3404,Vehicle Spares,AUTO G/BOX SCREW PLUG (FILTER,12,2020,2.16,13565,16/03/2020,TMPI,ORWELL TRUCK & VAN,
Workshop Engineering,3404,Vehicle Spares,AUTO G/BOX SEALING RING (FILTE,12,2020,0.86,13565,16/03/2020,TMPI,ORWELL TRUCK & VAN,
Workshop Engineering,3404,Vehicle Spares,AUTO G/BOX LOCKING PIN (FILTER,12,2020,0.95,13565,16/03/2020,TMPI,ORWELL TRUCK & VAN,
Workshop Engineering,3404,Vehicle Spares,POLLEN FILTER SPRINTER,12,2020,20.07,13565,16/03/2020,TMPI,ORWELL TRUCK & VAN,
Workshop Engineering,3404,Vehicle Spares,AIR FILTER - ( 65 REG SPRINTER,12,2020,16.65,13565,16/03/2020,TMPI,ORWELL TRUCK & VAN,
Workshop Engineering,3404,Vehicle Spares,SPRINTER - ATF FLUID - 1LTR,12,2020,53.87,13565,16/03/2020,TMPI,ORWELL TRUCK & VAN,
Workshop Engineering,3404,Vehicle Spares,PLAIN WASHER M8,12,2020,3.08,13566,13/03/2020,TMPI,SOUTH ESSEX FASTENERS LTD,
Workshop Engineering,3404,Vehicle Spares,NUT NYLOC  8MM ZINC,12,2020,2.90,13566,13/03/2020,TMPI,SOUTH ESSEX FASTENERS LTD,
Workshop Engineering,3404,Vehicle Spares,COIL WASHER M8,12,2020,1.50,13566,13/03/2020,TMPI,SOUTH ESSEX FASTENERS LTD,
Workshop Engineering,3404,Vehicle Spares,COIL SPRING WASHER M5,12,2020,0.78,13566,13/03/2020,TMPI,SOUTH ESSEX FASTENERS LTD,
Workshop Engineering,3404,Vehicle Spares,SCREW MACH 5 X 20mm P/HD,12,2020,4.39,13566,13/03/2020,TMPI,SOUTH ESSEX FASTENERS LTD,
Workshop Engineering,3404,Vehicle Spares,M4 HEX STEEL FULL NUT,12,2020,1.00,13566,13/03/2020,TMPI,SOUTH ESSEX FASTENERS LTD,
Workshop Engineering,3404,Vehicle Spares,PLAIN WASHER 10MM,12,2020,5.81,13566,13/03/2020,TMPI,SOUTH ESSEX FASTENERS LTD,
Workshop Engineering,3404,Vehicle Spares,NUT NYLOC 12MM ZINC,12,2020,8.78,13566,13/03/2020,TMPI,SOUTH ESSEX FASTENERS LTD,
Workshop Engineering,3404,Vehicle Spares,SETSCREW M5 X 20MM,12,2020,5.98,13566,13/03/2020,TMPI,SOUTH ESSEX FASTENERS LTD,
Workshop Engineering,3404,Vehicle Spares,SCREW CAP SOCKET 6 X 25mm,12,2020,2.77,13566,13/03/2020,TMPI,SOUTH ESSEX FASTENERS LTD,
Workshop Engineering,3404,Vehicle Spares,"SCREW SELF TAP 1/2""X 8 C/SUNK",12,2020,1.73,13566,13/03/2020,TMPI,SOUTH ESSEX FASTENERS LTD,
Workshop Engineering,3404,Vehicle Spares,NUT NYLOC  6MM  ZINC,12,2020,3.32,13566,13/03/2020,TMPI,SOUTH ESSEX FASTENERS LTD,
Workshop Engineering,3404,Vehicle Spares,NUT NYLOCK S/S  5mm,12,2020,7.26,13566,13/03/2020,TMPI,SOUTH ESSEX FASTENERS LTD,
Workshop Engineering,3404,Vehicle Spares,WASHER M5 x 25 x 1;5,12,2020,3.62,13566,13/03/2020,TMPI,SOUTH ESSEX FASTENERS LTD,
Workshop Engineering,3404,Vehicle Spares,NUT STEEL PLAIN 5MM S/STEEL,12,2020,4.01,13566,13/03/2020,TMPI,SOUTH ESSEX FASTENERS LTD,
Workshop Engineering,3404,Vehicle Spares,A/KEY DOMED HEAD M5 X 20MM,12,2020,3.22,13566,13/03/2020,TMPI,SOUTH ESSEX FASTENERS LTD,
Workshop Engineering,3404,Vehicle Spares,PLAIN WASHER M6,12,2020,1.76,13566,13/03/2020,TMPI,SOUTH ESSEX FASTENERS LTD,
Workshop Engineering,3404,Vehicle Spares,M4 PLAIN WASHER,12,2020,1.00,13566,13/03/2020,TMPI,SOUTH ESSEX FASTENERS LTD,
Workshop Engineering,3404,Vehicle Spares,COIL WASHER M10,12,2020,2.54,13566,13/03/2020,TMPI,SOUTH ESSEX FASTENERS LTD,
Workshop Engineering,3404,Vehicle Spares,"SCREW SELF TAP 1 1/2""X14 CSUNK",12,2020,6.13,13566,13/03/2020,TMPI,SOUTH ESSEX FASTENERS LTD,
Workshop Engineering,3404,Vehicle Spares,COIL SPRING WASHER- M6,12,2020,1.00,13566,13/03/2020,TMPI,SOUTH ESSEX FASTENERS LTD,
Workshop Engineering,3404,Vehicle Spares,"SCREW SELF TAP 1/2"" X 6 C/SUNK",12,2020,1.38,13566,13/03/2020,TMPI,SOUTH ESSEX FASTENERS LTD,
Workshop Engineering,3404,Vehicle Spares,NUT STEEL 6 MM,12,2020,2.17,13566,13/03/2020,TMPI,SOUTH ESSEX FASTENERS LTD,
Workshop Engineering,3404,Vehicle Spares,C/SUNK POZI NO4 X 1/2,12,2020,1.02,13566,13/03/2020,TMPI,SOUTH ESSEX FASTENERS LTD,
Workshop Engineering,3404,Vehicle Spares,PAN POZI NO8 X 3/4,12,2020,1.59,13566,13/03/2020,TMPI,SOUTH ESSEX FASTENERS LTD,
Workshop Engineering,3404,Vehicle Spares,RIVET POP STEEL DMD 4;8 X 12MM,12,2020,4.61,13566,13/03/2020,TMPI,SOUTH ESSEX FASTENERS LTD,
Workshop Engineering,3404,Vehicle Spares,SLOTTED CHEESE HEAD - M4 X 10,12,2020,2.99,13566,13/03/2020,TMPI,SOUTH ESSEX FASTENERS LTD,
Workshop Engineering,3404,Vehicle Spares,"SCREW SELF TAP  1"" X 12 HEX",12,2020,5.50,13566,13/03/2020,TMPI,SOUTH ESSEX FASTENERS LTD,
Workshop Engineering,3404,Vehicle Spares,NUT STEEL 10 MM,12,2020,7.39,13566,13/03/2020,TMPI,SOUTH ESSEX FASTENERS LTD,
Workshop Engineering,3404,Vehicle Spares,"SCREW SELF TAP 3/4""X 8 C/SUNK",12,2020,2.17,13566,13/03/2020,TMPI,SOUTH ESSEX FASTENERS LTD,
Workshop Engineering,3404,Vehicle Spares,NUT STEEL 8 MM,12,2020,3.45,13566,13/03/2020,TMPI,SOUTH ESSEX FASTENERS LTD,
Workshop Engineering,3404,Vehicle Spares,"PAN POZI NO8 X 1/2""",12,2020,1.91,13566,13/03/2020,TMPI,SOUTH ESSEX FASTENERS LTD,
Workshop Engineering,3404,Vehicle Spares,"SCREW SELF TAP 1 1/2"" X 14 HEX",12,2020,8.99,13566,13/03/2020,TMPI,SOUTH ESSEX FASTENERS LTD,
Purchasing & Supply,2303,Clothing & Footwear,LARGE NITRILE GLOVES POWDER FR,12,2020,99.80,13568,12/03/2020,TMPI,WURTH UK LTD,
Purchasing & Supply,2303,Clothing & Footwear,GLOVE VINYL DURA TOUCH  L 81/2,12,2020,41.80,13569,16/03/2020,TMPI,MOTOR PARTS DIRECT,
Workshop Engineering,3404,Vehicle Spares,SPOTLAMP,12,2020,40.59,13570,12/03/2020,TMPI,TRUCKEAST LTD,
Workshop Engineering,3404,Vehicle Spares,BADGE,12,2020,25.41,13570,12/03/2020,TMPI,TRUCKEAST LTD,
Workshop Engineering,3404,Vehicle Spares,PANEL,12,2020,50.79,13570,12/03/2020,TMPI,TRUCKEAST LTD,
Workshop Engineering,3404,Vehicle Spares,BRACKET,12,2020,122.19,13570,12/03/2020,TMPI,TRUCKEAST LTD,
Workshop Engineering,3404,Vehicle Spares,GRILLE PANEL,12,2020,395.89,13570,12/03/2020,TMPI,TRUCKEAST LTD,
Workshop Engineering,3404,Vehicle Spares,MESH,12,2020,61.42,13570,12/03/2020,TMPI,TRUCKEAST LTD,
Workshop Engineering,3404,Vehicle Spares,CAB CORNER LH,12,2020,210.38,13570,12/03/2020,TMPI,TRUCKEAST LTD,
Workshop Engineering,3404,Vehicle Spares,SEAL,12,2020,53.34,13570,12/03/2020,TMPI,TRUCKEAST LTD,
Workshop Engineering,3404,Vehicle Spares,FRONT FOG,12,2020,43.99,13570,12/03/2020,TMPI,TRUCKEAST LTD,
Workshop Engineering,3404,Vehicle Spares,BRACKET,12,2020,97.33,13570,12/03/2020,TMPI,TRUCKEAST LTD,
Workshop Engineering,3404,Vehicle Spares,CORNER PIECE,12,2020,161.72,13570,12/03/2020,TMPI,TRUCKEAST LTD,
Workshop Engineering,3404,Vehicle Spares,HINGE,12,2020,86.07,13570,12/03/2020,TMPI,TRUCKEAST LTD,
Workshop Engineering,3404,Vehicle Spares,LAMP HOUSING,12,2020,111.35,13570,12/03/2020,TMPI,TRUCKEAST LTD,
Workshop Engineering,3404,Vehicle Spares,HINGE,12,2020,141.95,13570,12/03/2020,TMPI,TRUCKEAST LTD,
Workshop Engineering,3404,Vehicle Spares,STEP PLATE,12,2020,134.73,13570,12/03/2020,TMPI,TRUCKEAST LTD,
Workshop Engineering,3404,Vehicle Spares,BRACKET,12,2020,267.54,13570,12/03/2020,TMPI,TRUCKEAST LTD,
Workshop Engineering,3404,Vehicle Spares,STEP STRUCTURE,12,2020,327.25,13570,12/03/2020,TMPI,TRUCKEAST LTD,
Workshop Engineering,3404,Vehicle Spares,COVER,12,2020,13.83,13570,12/03/2020,TMPI,TRUCKEAST LTD,
Workshop Engineering,3404,Vehicle Spares,LOCK BRACKET,12,2020,25.77,13570,12/03/2020,TMPI,TRUCKEAST LTD,
Workshop Engineering,3404,Vehicle Spares,L/H HEADLIGHT,12,2020,133.67,13570,12/03/2020,TMPI,TRUCKEAST LTD,
Workshop Engineering,3404,Vehicle Spares,STEP PLATE,12,2020,96.69,13570,12/03/2020,TMPI,TRUCKEAST LTD,
Workshop Engineering,3404,Vehicle Spares,COVER,12,2020,13.62,13570,12/03/2020,TMPI,TRUCKEAST LTD,
Workshop Engineering,3404,Vehicle Spares,LOCK,12,2020,115.60,13570,12/03/2020,TMPI,TRUCKEAST LTD,
Workshop Engineering,3404,Vehicle Spares,LOCK,12,2020,115.60,13570,12/03/2020,TMPI,TRUCKEAST LTD,
Workshop Engineering,3404,Vehicle Spares,MESH,12,2020,27.52,13570,12/03/2020,TMPI,TRUCKEAST LTD,
Workshop Engineering,3404,Vehicle Spares,HINGE,12,2020,86.07,13570,12/03/2020,TMPI,TRUCKEAST LTD,
Workshop Engineering,3404,Vehicle Spares,CAB CORNER,12,2020,22.33,13570,12/03/2020,TMPI,TRUCKEAST LTD,
Workshop Engineering,3404,Vehicle Spares,SPACE FRAME,12,2020,509.15,13570,12/03/2020,TMPI,TRUCKEAST LTD,
Technical Services,2085,Breathing Apparatus,Filter element  XL50 (MDE),12,2020,147.78,13571,12/03/2020,TMPI,MIDLAND DIVING EQUIPMENT LTD,
Technical Services,2085,Breathing Apparatus,Freight,12,2020,11.00,13571,12/03/2020,TMPI,MIDLAND DIVING EQUIPMENT LTD,
Technical Services,2085,Breathing Apparatus,GREEN AIR BAG MALE CONNECTOR C,12,2020,36.40,13572,13/03/2020,TMPI,WEBER RESCUE UK LTD,
Technical Services,2085,Breathing Apparatus,Freight,12,2020,12.50,13572,13/03/2020,TMPI,WEBER RESCUE UK LTD,
Workshop Engineering,3404,Vehicle Spares,315/80R 22;5 BRIDGE,12,2020,708.00,13574,18/03/2020,TMPI,TRUCTYRE FLEET MANAGEMENT LIMITED,
Workshop Engineering,3404,Vehicle Spares,AA BATTERY,12,2020,27.00,13576,16/03/2020,TMPI,R S COMPONENTS LTD,
Workshop Engineering,3404,Vehicle Spares,9V BATTERY,12,2020,35.98,13576,16/03/2020,TMPI,R S COMPONENTS LTD,
Workshop Engineering,3404,Vehicle Spares,AAA BATTERY,12,2020,16.40,13576,16/03/2020,TMPI,R S COMPONENTS LTD,
Workshop Engineering,3404,Vehicle Spares,EP 75W80 PLUS MINERAL GEAR OIL,12,2020,82.88,13579,17/03/2020,TMPI,MOTOR PARTS DIRECT,
Workshop Engineering,3404,Vehicle Spares,NUMBER PLATE LAMP,12,2020,16.10,13580,17/03/2020,TMPI,MOTOR PARTS DIRECT,
Workshop Engineering,3404,Vehicle Spares,BUMPER,12,2020,754.80,13581,13/03/2020,TMPI,TRUCKEAST LTD,
Workshop Engineering,3404,Vehicle Spares,AIR DRIER FILTER (was ST-1006-,12,2020,19.53,13582,16/03/2020,TMPI,ALLIANCE AUTOMOTIVE UK CV LIMITED,
Workshop Engineering,3404,Vehicle Spares,AD BLUE FILTER KIT (SC2655853),12,2020,48.16,13582,16/03/2020,TMPI,ALLIANCE AUTOMOTIVE UK CV LIMITED,
Workshop Engineering,3404,Vehicle Spares,FRONT GRILLE STEP AIR SPRING /,12,2020,164.90,13583,16/03/2020,TMPI,TRUCKEAST LTD,
Workshop Engineering,3404,Vehicle Spares,LOWER TRAY GAS STRUT ANGLOCO,12,2020,35.60,13584,16/03/2020,TMPI,ALBERT JAGGER LTD,
Workshop Engineering,3404,Vehicle Spares,GAS STRUT TRAY END,12,2020,4.92,13584,16/03/2020,TMPI,ALBERT JAGGER LTD,
Workshop Engineering,3404,Vehicle Spares,carriage,12,2020,9.95,13584,16/03/2020,TMPI,ALBERT JAGGER LTD,
Workshop Engineering,3404,Vehicle Spares,ACTUATOR - LEFT HAND,12,2020,57.85,13585,17/03/2020,TMPI,TERBERG DTS UK LIMITED,
Workshop Engineering,3404,Vehicle Spares,CARRIAGE,12,2020,15.00,13585,17/03/2020,TMPI,TERBERG DTS UK LIMITED,
Workshop Engineering,3404,Vehicle Spares,DOOR SENSOR ( BLACK ) - OPTICA,12,2020,112.62,13585,17/03/2020,TMPI,TERBERG DTS UK LIMITED,
Workshop Engineering,3404,Vehicle Spares,O/S MIRROR COWL,12,2020,62.90,13586,18/03/2020,TMPI,TRUCKEAST LTD,
Workshop Engineering,3404,Vehicle Spares,HIGH TEMPERATURE GASKETaerosol,12,2020,39.96,13587,17/03/2020,TMPI,MOTOR PARTS DIRECT,
Workshop Engineering,3404,Vehicle Spares,SPARK PLUG BPR4HS-10,12,2020,8.92,13587,17/03/2020,TMPI,MOTOR PARTS DIRECT,
Workshop Engineering,3404,Vehicle Spares,AIRCON ODOUR BOMB ( HOLTS ),12,2020,11.98,13587,17/03/2020,TMPI,MOTOR PARTS DIRECT,
Workshop Engineering,3404,Vehicle Spares,CARRIAGE,12,2020,12.00,13588,17/03/2020,TMPI,GODIVA LTD,
Workshop Engineering,3404,Vehicle Spares,CROSSOVER VALVE,12,2020,272.32,13588,17/03/2020,TMPI,GODIVA LTD,
Workshop Engineering,3404,Vehicle Spares,O/S MIRROR ASSY C/W WIDE ANGLE,12,2020,95.00,13589,18/03/2020,TMPI,ALLIANCE AUTOMOTIVE UK CV LIMITED,
Workshop Engineering,3404,Vehicle Spares,N/S MIRROR ASSY C/W WIDE ANGLE,12,2020,85.00,13589,18/03/2020,TMPI,ALLIANCE AUTOMOTIVE UK CV LIMITED,
Workshop Engineering,3404,Vehicle Spares,WINDSCREEN REPAIR,12,2020,40.00,13590,18/03/2020,TMPI,THE WINDSCREEN COMPANY,
Workshop Engineering,3404,Vehicle Spares,REPAIR TO WINDSCREEN,12,2020,40.00,13591,18/03/2020,TMPI,THE WINDSCREEN COMPANY,
Workshop Engineering,3404,Vehicle Spares,MAST LAMP LPP HELLA,12,2020,56.55,13592,18/03/2020,TMPI,ALLIANCE AUTOMOTIVE UK CV LIMITED,
Workshop Engineering,3404,Vehicle Spares,ORANGE HAND CLEANER / SOAP,12,2020,39.98,13593,18/03/2020,TMPI,ALLIANCE AUTOMOTIVE UK CV LIMITED,
Workshop Engineering,3404,Vehicle Spares,TYPE 24 WABCO DIAPHRAGM - SCAN,12,2020,70.80,13593,18/03/2020,TMPI,ALLIANCE AUTOMOTIVE UK CV LIMITED,
Workshop Engineering,3404,Vehicle Spares,CARRIAGE,12,2020,6.50,13595,18/03/2020,TMPI,MOTOR PARTS DIRECT,
Workshop Engineering,3404,Vehicle Spares,12-24V BRIGADE REVERSE ALARM,12,2020,50.21,13595,18/03/2020,TMPI,MOTOR PARTS DIRECT,
Workshop Engineering,3404,Vehicle Spares,CARRIAGE,12,2020,11.50,13596,18/03/2020,TMPI,MOTOR PARTS DIRECT,
Workshop Engineering,3404,Vehicle Spares,WELDING WIRE,12,2020,25.97,13596,18/03/2020,TMPI,MOTOR PARTS DIRECT,
Workshop Engineering,3404,Vehicle Spares,OIL FILTER - XPI SCANIA SC2625,12,2020,33.48,13597,18/03/2020,TMPI,ALLIANCE AUTOMOTIVE UK CV LIMITED,
Workshop Engineering,3404,Vehicle Spares,MOUNTING BUSH CAB RAM - ( BOTT,12,2020,20.00,13597,18/03/2020,TMPI,ALLIANCE AUTOMOTIVE UK CV LIMITED,
Workshop Engineering,3404,Vehicle Spares,AD BLUE FILTER KIT (SC2655853),12,2020,48.16,13597,18/03/2020,TMPI,ALLIANCE AUTOMOTIVE UK CV LIMITED,
Workshop Engineering,3404,Vehicle Spares,MOUNTING BUSH CAB RAM - ( TOP,12,2020,48.50,13597,18/03/2020,TMPI,ALLIANCE AUTOMOTIVE UK CV LIMITED,
Workshop Engineering,3404,Vehicle Spares,CHERRY PICKER SERVICE,12,2020,276.00,13598,22/01/2020,TMPI,PARAMOUNT PLATFORMS LIMITED,
Workshop Engineering,3404,Vehicle Spares,FRONT CAB MOUNTING BUSH,12,2020,63.09,13600,19/03/2020,TMPI,TRUCKEAST LTD,
Workshop Engineering,3404,Vehicle Spares,FRONT GRILLE STEP AIR SPRING /,12,2020,329.80,13600,19/03/2020,TMPI,TRUCKEAST LTD,
Workshop Engineering,3404,Vehicle Spares,FRONT CAB MOUNTING WASHER,12,2020,21.76,13600,19/03/2020,TMPI,TRUCKEAST LTD,
Workshop Engineering,3404,Vehicle Spares,MOUNTING BUSH CAB RAM BOTTOM (,12,2020,53.43,13601,19/03/2020,TMPI,TRUCKEAST LTD,
Workshop Engineering,3404,Vehicle Spares,FUEL FILTER KIT,12,2020,72.50,13601,19/03/2020,TMPI,TRUCKEAST LTD,
Workshop Engineering,2070,Tools & Light Equipment,ROLLERS NOT ROTATING,12,2020,149.50,13602,17/03/2020,TMPI,TECALEMIT GARAGE EQUIPMENT CO LTD,
Workshop Engineering,3404,Vehicle Spares,WIPER BLADE,12,2020,2.65,13603,19/03/2020,TMPI,MOTOR PARTS DIRECT,
Workshop Engineering,3404,Vehicle Spares,WIPER BLADE,12,2020,3.12,13603,19/03/2020,TMPI,MOTOR PARTS DIRECT,
Workshop Engineering,3404,Vehicle Spares,FUSE,12,2020,24.72,13604,19/03/2020,TMPI,MOTOR PARTS DIRECT,
Workshop Engineering,3404,Vehicle Spares,WIPER BLADE,12,2020,-2.65,13605,19/03/2020,TMPI,MOTOR PARTS DIRECT,
Workshop Engineering,3404,Vehicle Spares,WIPER BLADE,12,2020,-3.12,13605,19/03/2020,TMPI,MOTOR PARTS DIRECT,
Workshop Engineering,3404,Vehicle Spares,TAPE EMERY CLOTH 80 GRIT  40MM,12,2020,22.56,13606,18/03/2020,TMPI,R S COMPONENTS LTD,
Workshop Engineering,3404,Vehicle Spares,TAPE EMERY CLOTH 120 GRIT  40M,12,2020,18.84,13606,18/03/2020,TMPI,R S COMPONENTS LTD,
Workshop Engineering,3404,Vehicle Spares,AIR FILTER - SCANIA (SC1869993,12,2020,29.80,13607,19/03/2020,TMPI,ALLIANCE AUTOMOTIVE UK CV LIMITED,
Workshop Engineering,3404,Vehicle Spares,MAST LAMP LPP HELLA,12,2020,56.55,13608,19/03/2020,TMPI,ALLIANCE AUTOMOTIVE UK CV LIMITED,
Workshop Engineering,3404,Vehicle Spares,FLUID BRAKE DOT 4 -   5LTR,12,2020,9.95,13608,19/03/2020,TMPI,ALLIANCE AUTOMOTIVE UK CV LIMITED,
Purchasing & Supply,4001,Stationery,GEL WRIST SUPPORT,12,2020,19.04,13609,19/03/2020,TMPI,BANNER GROUP LIMITED,
Purchasing & Supply,4001,Stationery,AVERY MINI LABELS,12,2020,53.90,13609,19/03/2020,TMPI,BANNER GROUP LIMITED,
Technical Services,2085,Breathing Apparatus,Hand Wheel,12,2020,22.30,13610,19/03/2020,TMPI,INTERSPIRO LTD,
Technical Services,2085,Breathing Apparatus,Ear speaker kit,12,2020,416.92,13610,19/03/2020,TMPI,INTERSPIRO LTD,
Technical Services,2085,Breathing Apparatus,Foam Insert,12,2020,34.32,13610,19/03/2020,TMPI,INTERSPIRO LTD,
Technical Services,2085,Breathing Apparatus,Ratchet Ring,12,2020,48.20,13610,19/03/2020,TMPI,INTERSPIRO LTD,
Technical Services,2085,Breathing Apparatus,Protective band (relief valve),12,2020,37.08,13610,19/03/2020,TMPI,INTERSPIRO LTD,
Technical Services,2085,Breathing Apparatus,"Sealing kit, ratchet",12,2020,89.79,13610,19/03/2020,TMPI,INTERSPIRO LTD,
Technical Services,2085,Breathing Apparatus,Freight,12,2020,16.00,13610,19/03/2020,TMPI,INTERSPIRO LTD,
Technical Services,2085,Breathing Apparatus,Hip best Stabiliser,12,2020,13.73,13610,19/03/2020,TMPI,INTERSPIRO LTD,
Technical Services,2085,Breathing Apparatus,EMERGENCY REPAIR TO PIPEWORK A,12,2020,488.00,13611,20/03/2020,TMPI,REVOLUTION AIR SERVICES LTD,
Technical Services,2085,Breathing Apparatus,1433376 ON RAGB194911,12,2020,46.20,13612,24/02/2020,TMPI,INTERSPIRO LTD,
Technical Services,2085,Breathing Apparatus,1439315 ON RAGB194911,12,2020,13.00,13612,24/02/2020,TMPI,INTERSPIRO LTD,
Workshop Engineering,3404,Vehicle Spares,SOLDER,12,2020,29.14,13613,19/03/2020,TMPI,RAPID ELECTRONICS LIMITED,
Workshop Engineering,3404,Vehicle Spares,EVOSTICK CONTACT ADHESIVE,12,2020,5.24,13613,19/03/2020,TMPI,RAPID ELECTRONICS LIMITED,
Workshop Engineering,3404,Vehicle Spares,REAR BRAKE PAD KIT - TRANSIT C,12,2020,27.06,13614,21/03/2020,TMPI,PARTS PLUS,
Workshop Engineering,3404,Vehicle Spares,KEY LOCK BOX,12,2020,30.00,13615,20/03/2020,TMPI,ALLIANCE AUTOMOTIVE UK CV LIMITED,
Workshop Engineering,3404,Vehicle Spares,SCREENWASH ALL SEASON 5ltr,12,2020,29.88,13617,20/03/2020,TMPI,ALLIANCE AUTOMOTIVE UK CV LIMITED,
Technical Services,2085,Breathing Apparatus,CO3A01 Tyre Connector,12,2020,20.66,13618,19/03/2020,TMPI,PNEUMATIC COMPONENTS LTD,
Technical Services,2085,Breathing Apparatus,Freight,12,2020,10.00,13618,19/03/2020,TMPI,PNEUMATIC COMPONENTS LTD,
Workshop Engineering,3404,Vehicle Spares,THREAD LOCK & SEAL (LOCTITE 24,12,2020,20.66,13619,20/03/2020,TMPI,R S COMPONENTS LTD,
Workshop Engineering,3404,Vehicle Spares,SEAT PAD SENSOR,12,2020,90.65,13619,20/03/2020,TMPI,R S COMPONENTS LTD,
Workshop Engineering,3404,Vehicle Spares,CONNECTOR BUTT BLUE,12,2020,10.04,13620,21/03/2020,TMPI,R S COMPONENTS LTD,
Workshop Engineering,3404,Vehicle Spares,ADHESIVE HEAT SHRINK 9/3,12,2020,13.00,13621,20/03/2020,TMPI,R S COMPONENTS LTD,
Workshop Engineering,3404,Vehicle Spares,A PILLAR TRIM,12,2020,38.38,13622,20/03/2020,TMPI,TRUCKEAST LTD,
Workshop Engineering,3404,Vehicle Spares,WINDSCREEN WASHER NOZZLE,12,2020,15.75,13624,20/03/2020,TMPI,TRUCKEAST LTD,
Workshop Engineering,3404,Vehicle Spares,FUEL FILLER CAP,12,2020,24.02,13624,20/03/2020,TMPI,TRUCKEAST LTD,
Technical Services,2085,Breathing Apparatus,B30-R10000-YL Heavy Duty Print,12,2020,101.50,13625,16/03/2020,TMPI,OMSER (SCOTLAND) LTD,
Workshop Engineering,3404,Vehicle Spares,springs,12,2020,55.82,13626,23/03/2020,TMPI,MOTOR PARTS DIRECT,
Workshop Engineering,3404,Vehicle Spares,pollen filter,12,2020,20.58,13627,23/03/2020,TMPI,UNDERWOODS OF COLCHESTER VAUXHALL,
Workshop Engineering,3404,Vehicle Spares,oil filter,12,2020,6.70,13627,23/03/2020,TMPI,UNDERWOODS OF COLCHESTER VAUXHALL,
Workshop Engineering,3404,Vehicle Spares,US FREIGHT CHARGE,12,2020,75.00,13628,23/03/2020,TMPI,PREMIER HOSE TECHNOLOGIES LTD,
Workshop Engineering,3404,Vehicle Spares,SAFETY STRAP ASSEMBLY NS-ES,12,2020,72.98,13628,23/03/2020,TMPI,PREMIER HOSE TECHNOLOGIES LTD,
Workshop Engineering,3404,Vehicle Spares,THERMAL RELIEF VALVE ASSY wsp,12,2020,137.16,13629,19/03/2020,TMPI,GODIVA LTD,
Workshop Engineering,3404,Vehicle Spares,WEAR RING LP IMPELLER PRIMA,12,2020,41.54,13629,19/03/2020,TMPI,GODIVA LTD,
Workshop Engineering,3404,Vehicle Spares,OIL SEAL - WSP,12,2020,0.98,13629,19/03/2020,TMPI,GODIVA LTD,
Workshop Engineering,3404,Vehicle Spares,"PRIMA P2, PISTON PRIMER SCREWS",12,2020,15.12,13629,19/03/2020,TMPI,GODIVA LTD,
Workshop Engineering,3404,Vehicle Spares,WEAR RING PRIMA,12,2020,53.48,13629,19/03/2020,TMPI,GODIVA LTD,
Workshop Engineering,3404,Vehicle Spares,DOWTY SEAL - PRIMING VALVE,12,2020,10.00,13629,19/03/2020,TMPI,GODIVA LTD,
Workshop Engineering,3404,Vehicle Spares,MECHANICAL SEAL ASSEMBLY PRIMA,12,2020,535.60,13630,19/03/2020,TMPI,GODIVA LTD,
Workshop Engineering,3404,Vehicle Spares,CARRIAGE,12,2020,12.00,13630,19/03/2020,TMPI,GODIVA LTD,
Workshop Engineering,3404,Vehicle Spares,C BATTERY,12,2020,11.50,13631,19/03/2020,TMPI,R S COMPONENTS LTD,
Workshop Engineering,3404,Vehicle Spares,DOOR SEAL SMALL ( PUMP BAY ),12,2020,69.53,13632,19/03/2020,TMPI,TERBERG DTS UK LIMITED,
Workshop Engineering,3404,Vehicle Spares,SIGHT TUBE - SABRE / JDC SCANI,12,2020,45.94,13632,19/03/2020,TMPI,TERBERG DTS UK LIMITED,
Workshop Engineering,3404,Vehicle Spares,CARRIAGE,12,2020,15.00,13632,19/03/2020,TMPI,TERBERG DTS UK LIMITED,
Workshop Engineering,3404,Vehicle Spares,DOOR HINGE COVER OFFSIDE,12,2020,11.55,13633,20/03/2020,TMPI,ALLIANCE AUTOMOTIVE UK CV LIMITED,
Workshop Engineering,3404,Vehicle Spares,AD BLUE FILTER KIT (SC2655853),12,2020,48.16,13633,20/03/2020,TMPI,ALLIANCE AUTOMOTIVE UK CV LIMITED,
Workshop Engineering,3404,Vehicle Spares,N/S MIRROR ASSY C/W WIDE ANGLE,12,2020,85.00,13633,20/03/2020,TMPI,ALLIANCE AUTOMOTIVE UK CV LIMITED,
Workshop Engineering,3404,Vehicle Spares,DOOR HINGE COVER NEARSIDE,12,2020,15.40,13633,20/03/2020,TMPI,ALLIANCE AUTOMOTIVE UK CV LIMITED,
Workshop Engineering,3404,Vehicle Spares,POLLEN FILTER - ST-1025-S (SC1,12,2020,22.94,13633,20/03/2020,TMPI,ALLIANCE AUTOMOTIVE UK CV LIMITED,
Workshop Engineering,3404,Vehicle Spares,ORANGE HAND CLEANER / SOAP,12,2020,39.98,13633,20/03/2020,TMPI,ALLIANCE AUTOMOTIVE UK CV LIMITED,
Workshop Engineering,3404,Vehicle Spares,O/S MIRROR ASSY C/W WIDE ANGLE,12,2020,95.00,13633,20/03/2020,TMPI,ALLIANCE AUTOMOTIVE UK CV LIMITED,
Workshop Engineering,3404,Vehicle Spares,STEEL TO MATCH,12,2020,20.00,13634,19/03/2020,TMPI,WESBROOM ENGINEERING LTD,
Workshop Engineering,3404,Vehicle Spares,REPLACEMENT WINDSCREEN,12,2020,235.00,13635,20/03/2020,TMPI,THE WINDSCREEN COMPANY,
Workshop Engineering,2071,Calibration of Equipment,CARRIAGE CHARGE,12,2020,20.00,13637,18/03/2020,TMPI,TSI FLOWMETERS LTD,
Workshop Engineering,2071,Calibration of Equipment,FLOW METER CALIBRATION,12,2020,200.00,13637,18/03/2020,TMPI,TSI FLOWMETERS LTD,
Workshop Engineering,3404,Vehicle Spares,FRONT CAB MOUNTING BUSH,12,2020,63.09,13638,20/03/2020,TMPI,TRUCKEAST LTD,
Workshop Engineering,3404,Vehicle Spares,FRONT CAB MOUNTING WASHER,12,2020,21.76,13638,20/03/2020,TMPI,TRUCKEAST LTD,
Workshop Engineering,3404,Vehicle Spares,FLOWMETER GASKET - ( 13;5CM OD,12,2020,17.50,13639,16/03/2020,TMPI,TSI FLOWMETERS LTD,
Workshop Engineering,3404,Vehicle Spares,FUEL FILTER,12,2020,18.72,13640,20/03/2020,TMPI,PARTS PLUS,
Workshop Engineering,3404,Vehicle Spares,HP 95 12V AUX BATTERY,12,2020,293.00,13641,20/03/2020,TMPI,LINCON BATTERIES LTD,
Workshop Engineering,3404,Vehicle Spares,BATTERY CHGD scania / sabre v,12,2020,216.54,13641,20/03/2020,TMPI,LINCON BATTERIES LTD,
Workshop Engineering,3404,Vehicle Spares,BATTERY 12VOLT NEW LPP,12,2020,68.46,13641,20/03/2020,TMPI,LINCON BATTERIES LTD,
Workshop Engineering,3404,Vehicle Spares,LIGHT BOARD,12,2020,33.30,13642,20/03/2020,TMPI,A T E (UK) LTD,
Workshop Engineering,3404,Vehicle Spares,HP 95 12V AUX BATTERY,12,2020,284.76,13643,13/03/2020,TMPI,LINCON BATTERIES LTD,
Workshop Engineering,3404,Vehicle Spares,BATTERY 12VOLT NEW LPP,12,2020,136.92,13643,13/03/2020,TMPI,LINCON BATTERIES LTD,
Technical Services,2085,Breathing Apparatus,B30C-4000-595-WT High Performa,12,2020,214.98,13654,05/03/2020,TMPI,OMSER (SCOTLAND) LTD,
Workshop Engineering,3404,Vehicle Spares,N/S MIRROR ASSY C/W WIDE ANGLE,12,2020,85.00,13655,25/03/2020,TMPI,ALLIANCE AUTOMOTIVE UK CV LIMITED,
Workshop Engineering,3404,Vehicle Spares,"valve ball st2""bspt/bspf",12,2020,66.95,13656,26/03/2020,TMPI,GODIVA LTD,
Workshop Engineering,3404,Vehicle Spares,CARRIAGE,12,2020,12.00,13656,26/03/2020,TMPI,GODIVA LTD,
Workshop Engineering,3404,Vehicle Spares,bracket,12,2020,8.88,13657,25/03/2020,TMPI,TRUCKEAST LTD,
Workshop Engineering,3404,Vehicle Spares,N/S MIRROR COWL,12,2020,56.53,13658,26/03/2020,TMPI,TRUCKEAST LTD,
Workshop Engineering,3404,Vehicle Spares,gel bumper,12,2020,7.60,13659,26/03/2020,TMPI,MOTOR PARTS DIRECT,
Workshop Engineering,3404,Vehicle Spares,glass cleaner,12,2020,5.29,13659,26/03/2020,TMPI,MOTOR PARTS DIRECT,
Workshop Engineering,3404,Vehicle Spares,Thermostat,12,2020,63.88,13660,25/03/2020,TMPI,MOTOR PARTS DIRECT,
Workshop Engineering,3404,Vehicle Spares,Thermostat,12,2020,-63.88,13661,25/03/2020,TMPI,MOTOR PARTS DIRECT,
Workshop Engineering,3404,Vehicle Spares,O RING 45MM I;D 3MM,12,2020,39.00,13662,24/03/2020,TMPI,ERIKS INDUSTRIAL SERVICES,
Workshop Engineering,3404,Vehicle Spares,CARRIAGE,12,2020,6.95,13662,24/03/2020,TMPI,ERIKS INDUSTRIAL SERVICES,
Workshop Engineering,3404,Vehicle Spares,rear coil springs,12,2020,30.33,13663,24/03/2020,TMPI,MOTOR PARTS DIRECT,
Workshop Engineering,3404,Vehicle Spares,feb39145,12,2020,125.00,13664,25/03/2020,TMPI,MOTOR PARTS DIRECT,
Workshop Engineering,3404,Vehicle Spares,FRONT PADS CONNECT 14+,12,2020,48.82,13665,25/03/2020,TMPI,PARTS PLUS,
Workshop Engineering,3404,Vehicle Spares,TOP STOP RED,12,2020,18.25,13666,23/03/2020,TMPI,MORELLI GROUP LTD,
Workshop Engineering,3404,Vehicle Spares,TAPE MASKING 48mm (BOX 20),12,2020,33.72,13667,19/03/2020,TMPI,MORELLI GROUP LTD,
Workshop Engineering,3404,Vehicle Spares,electrical,12,2020,9.00,13668,24/03/2020,TMPI,MOTOR PARTS DIRECT,
Workshop Engineering,3404,Vehicle Spares,front pads,12,2020,25.57,13669,24/03/2020,TMPI,PARTS PLUS,
Workshop Engineering,3404,Vehicle Spares,discs,12,2020,60.00,13670,24/03/2020,TMPI,PARTS PLUS,
Workshop Engineering,3404,Vehicle Spares,FIXED MONTHLY WASTE FEE - FEBR,12,2020,26.04,13671,23/03/2020,TMPI,MORELLI GROUP LTD,
Workshop Engineering,3404,Vehicle Spares,bumpstops,12,2020,17.50,13672,30/03/2020,TMPI,PARTS PLUS,
Workshop Engineering,3404,Vehicle Spares,315/70 22;5 MICH,12,2020,1522.20,13673,24/03/2020,TMPI,TRUCTYRE FLEET MANAGEMENT LIMITED,
Workshops Management,3320,Purchase of Machinery & Plant,CALL OUT CHARGE,12,2020,168.50,13674,19/03/2020,TMPI,TOTALKARE HEAVY DUTY WORKSHOP SOLUTIONS LTD,
Workshops Management,3320,Purchase of Machinery & Plant,LABOUR,12,2020,137.00,13674,19/03/2020,TMPI,TOTALKARE HEAVY DUTY WORKSHOP SOLUTIONS LTD,
Workshops Management,3320,Purchase of Machinery & Plant,CALL OUT TRAVEL CHARGE,12,2020,68.50,13674,19/03/2020,TMPI,TOTALKARE HEAVY DUTY WORKSHOP SOLUTIONS LTD,
Workshop Engineering,3404,Vehicle Spares,AIR FILTER - MAKITA,12,2020,29.40,13675,20/03/2020,TMPI,VIMPEX LTD,
Workshop Engineering,3404,Vehicle Spares,V BELT - MAKITA,12,2020,76.80,13675,20/03/2020,TMPI,VIMPEX LTD,
Workshop Engineering,3404,Vehicle Spares,CARRIAGE,12,2020,15.00,13675,20/03/2020,TMPI,VIMPEX LTD,
Workshop Engineering,3404,Vehicle Spares,TYRES,12,2020,191.04,13676,22/01/2020,TMPI,TRUCTYRE FLEET MANAGEMENT LIMITED,
Workshop Engineering,3404,Vehicle Spares,CAR BALANCE,12,2020,8.80,13676,22/01/2020,TMPI,TRUCTYRE FLEET MANAGEMENT LIMITED,
Workshop Engineering,3404,Vehicle Spares,DISPOSAL,12,2020,2.32,13676,22/01/2020,TMPI,TRUCTYRE FLEET MANAGEMENT LIMITED,
Workshop Engineering,3404,Vehicle Spares,CAR VALVE,12,2020,3.76,13676,22/01/2020,TMPI,TRUCTYRE FLEET MANAGEMENT LIMITED,
Workshop Engineering,3404,Vehicle Spares,385/65R 22;5 158L MICH X MULTI,12,2020,414.95,13678,31/03/2020,TMPI,TRUCTYRE FLEET MANAGEMENT LIMITED,
Workshop Engineering,3404,Vehicle Spares,REPLACEMENT SPRINGS,12,2020,18.00,13679,20/03/2020,TMPI,JAFCO TOOLS LTD,
Workshop Engineering,3404,Vehicle Spares,CARRIAGE,12,2020,9.00,13679,20/03/2020,TMPI,JAFCO TOOLS LTD,
Technical Services,2085,Breathing Apparatus,BATTERY PACK ALKALINE M5-BAT05,12,2020,56.00,13680,25/03/2020,TMPI,LIFE SAFETY DISTRIBUTION GMBH,
Technical Services,2085,Breathing Apparatus,SHIPPING FEE,12,2020,12.00,13680,25/03/2020,TMPI,LIFE SAFETY DISTRIBUTION GMBH,
Workshop Engineering,3404,Vehicle Spares,clip washer,12,2020,1.13,13682,26/03/2020,TMPI,TRUCKEAST LTD,
Property Services,1322,Sewerage Charges,Charge Period13/12/19-31/03/17,12,2020,-868.09,26834,18/07/2019,KPIN,ANGLIAN WATER BUSINESS (NATIONAL) LTD,
Water Services,2087,Water Services,Calor Gas Cylinder for card 01,12,2020,9.27,28795,20/09/2019,KPIN,CALOR GAS LIMITED,
ICT,4005,IT Consumables,CONTRA FOR KPIN 34327,12,2020,150.00,29767,28/10/2019,KPIN,CIVICA UK LTD,
Innovation and Change,2903,Consultancy Fees,Consultancy Fees,12,2020,300.00,29843,30/10/2019,KPIN,THE ROYAL ASSOCIATION FOR DEAF PEOPLE,
Property Services,1301,Gas,Order for propane gas delivery,12,2020,819.25,30064,29/10/2019,KPIN,CALOR GAS LIMITED,
Property Services,4003,Postage Direct Mailing & Carriage,LICENSE FEE,12,2020,40.00,30172,04/11/2019,KPIN,QUADIENT UK LTD,
Property Services,4003,Postage Direct Mailing & Carriage,LICENSE FEE,12,2020,-40.00,30172,04/11/2019,KPIN,QUADIENT UK LTD,
Property Services,4003,Postage Direct Mailing & Carriage,PAID TO BOOKS IN ERROR,12,2020,40.00,30172,04/11/2019,KPIN,QUADIENT UK LTD,
Water Services,2087,Water Services,Calor Gas Cylinder for card 01,12,2020,9.27,30331,06/11/2019,KPIN,CALOR GAS LIMITED,
Property Services,1060,Grounds Maintenance,Gritting Fixed Cost - November,12,2020,1441.00,30610,20/11/2019,KPIN,GRITIT LTD,
Property Services,1060,Grounds Maintenance,Gritting Fixed Cost - November,12,2020,3910.51,30610,20/11/2019,KPIN,GRITIT LTD,
Property Services,1060,Grounds Maintenance,Gritting Fixed Cost - November,12,2020,62.50,30610,20/11/2019,KPIN,GRITIT LTD,
Property Services,1060,Grounds Maintenance,Gritting Fixed Cost - November,12,2020,377.49,30610,20/11/2019,KPIN,GRITIT LTD,
Property Services,4003,Postage Direct Mailing & Carriage,Franking Machine Nov-Feb,12,2020,519.10,31177,06/12/2019,KPIN,NEOPOST FINANCE LTD,
Property Services,4003,Postage Direct Mailing & Carriage,Franking Machine Nov-Jan,12,2020,67.07,31177,06/12/2019,KPIN,NEOPOST FINANCE LTD,
Property Services,4003,Postage Direct Mailing & Carriage,Franking Machine Nov-Jan,12,2020,67.07,31177,06/12/2019,KPIN,NEOPOST FINANCE LTD,
Property Services,4003,Postage Direct Mailing & Carriage,Franking Machine Nov-Jan,12,2020,67.07,31177,06/12/2019,KPIN,NEOPOST FINANCE LTD,
Property Services,4003,Postage Direct Mailing & Carriage,Franking Machine Nov-Jan,12,2020,67.07,31177,06/12/2019,KPIN,NEOPOST FINANCE LTD,
Property Services,4003,Postage Direct Mailing & Carriage,Franking Machine Aug - Oct,12,2020,519.10,31183,06/12/2019,KPIN,NEOPOST FINANCE LTD,
Property Services,4003,Postage Direct Mailing & Carriage,Franking Machine Aug - Oct,12,2020,67.07,31183,06/12/2019,KPIN,NEOPOST FINANCE LTD,
Property Services,4003,Postage Direct Mailing & Carriage,Franking Machine Aug - Oct,12,2020,67.07,31183,06/12/2019,KPIN,NEOPOST FINANCE LTD,
Property Services,4003,Postage Direct Mailing & Carriage,Franking Machine Aug - Oct,12,2020,67.07,31183,06/12/2019,KPIN,NEOPOST FINANCE LTD,
Property Services,4003,Postage Direct Mailing & Carriage,Franking Machine Aug - Oct,12,2020,67.07,31183,06/12/2019,KPIN,NEOPOST FINANCE LTD,
Finance & Pay,6899,Miscellaneous Expenses,CONTRA FPIN 164392,12,2020,15000.00,31271,09/12/2019,KPIN,THURROCK BOROUGH COUNCIL,
Corp Risk & Bus Cont,B217,Payments in Advance,Silver Lunch based on 25 peopl,12,2020,250.00,31351,13/12/2019,KPIN,CIPFA,
Corp Risk & Bus Cont,B217,Payments in Advance,Meeting room hire on 16 Octobe,12,2020,700.00,31351,13/12/2019,KPIN,CIPFA,
Corp Risk & Bus Cont,B217,Payments in Advance,"Tea, Coffee & Biscuits based o",12,2020,162.50,31351,13/12/2019,KPIN,CIPFA,
Corp Risk & Bus Cont,B217,Payments in Advance,Lunch,12,2020,170.00,31543,16/12/2019,KPIN,CIPFA,
Corp Risk & Bus Cont,B217,Payments in Advance,Tea and Biscuits,12,2020,136.50,31543,16/12/2019,KPIN,CIPFA,
Corp Risk & Bus Cont,B217,Payments in Advance,Orange Juice,12,2020,6.75,31543,16/12/2019,KPIN,CIPFA,
Corp Risk & Bus Cont,B217,Payments in Advance,Meeting Room 30th Sept,12,2020,700.00,31543,16/12/2019,KPIN,CIPFA,
Service Leadership Team,6099,Subscriptions - Corporate,Annual Membership Fee to 31st ,12,2020,535.00,31701,03/01/2020,KPIN,JOIFF LTD,
Service Leadership Team,6099,Subscriptions - Corporate,Annual Membership Jan-Mar20,12,2020,133.75,31701,03/01/2020,KPIN,JOIFF LTD,
Service Leadership Team,6099,Subscriptions - Corporate,Annual Membership Fee to 31st ,12,2020,-535.00,31701,03/01/2020,KPIN,JOIFF LTD,
Service Leadership Team,B217,Payments in Advance,Annual Membership Apr-Dec20,12,2020,401.25,31701,03/01/2020,KPIN,JOIFF LTD,
Property Services,1060,Grounds Maintenance,Gritting Fixed Cost - January,12,2020,1441.00,31730,01/01/2020,KPIN,GRITIT LTD,
Property Services,1060,Grounds Maintenance,Gritting Fixed Cost - January,12,2020,62.50,31730,01/01/2020,KPIN,GRITIT LTD,
Property Services,1060,Grounds Maintenance,Gritting Fixed Cost - January,12,2020,377.50,31730,01/01/2020,KPIN,GRITIT LTD,
Property Services,1060,Grounds Maintenance,Gritting Fixed Cost - January,12,2020,3910.50,31730,01/01/2020,KPIN,GRITIT LTD,
Property Services,4003,Postage Direct Mailing & Carriage,Franking Machine Feb - Apr,12,2020,67.07,31748,02/01/2020,KPIN,NEOPOST FINANCE LTD,
Property Services,4003,Postage Direct Mailing & Carriage,Franking Machine Feb - Apr,12,2020,67.07,31748,02/01/2020,KPIN,NEOPOST FINANCE LTD,
Property Services,4003,Postage Direct Mailing & Carriage,Franking Machine Feb - Apr,12,2020,67.07,31748,02/01/2020,KPIN,NEOPOST FINANCE LTD,
Property Services,4003,Postage Direct Mailing & Carriage,Franking Machine Feb - Apr,12,2020,519.10,31748,02/01/2020,KPIN,NEOPOST FINANCE LTD,
Property Services,4003,Postage Direct Mailing & Carriage,Franking Machine Feb - Apr,12,2020,67.07,31748,02/01/2020,KPIN,NEOPOST FINANCE LTD,
Stores,B205,Stocks & WIP (Purchasing & Supply Stores),Carriage,12,2020,7.50,32223,16/01/2020,KPIN,PROMETHEUS MEDICAL TECHNOLOGIES LTD,
Stores,B205,Stocks & WIP (Purchasing & Supply Stores),"Bandage, Modular Trauma 4"" (Ol",12,2020,23.60,32223,16/01/2020,KPIN,PROMETHEUS MEDICAL TECHNOLOGIES LTD,
Stores,B205,Stocks & WIP (Purchasing & Supply Stores),Nightingale Dressing 15x20cm,12,2020,23.60,32223,16/01/2020,KPIN,PROMETHEUS MEDICAL TECHNOLOGIES LTD,
Stores,B205,Stocks & WIP (Purchasing & Supply Stores),Lubricating Jelly 2.7g (Optilu,12,2020,0.48,32223,16/01/2020,KPIN,PROMETHEUS MEDICAL TECHNOLOGIES LTD,
Property Services,1301,Gas,Delivery of Propane gas - 24/1,12,2020,34.25,32273,16/01/2020,KPIN,CALOR GAS LIMITED,
Workshops Management,3050,Leasing Charges,Leasing Charges,12,2020,-1879.49,32321,14/01/2020,KPIN,LEX AUTOLEASE LTD,
Water Services,2087,Water Services,HW1628/85/04478,12,2020,787.00,32368,20/01/2020,KPIN,AFFINITY WATER LIMITED (HYDRANTS),
Stores,B205,Stocks & WIP (Purchasing & Supply Stores),CONTRA FOR KPIN 33953,12,2020,47.45,32385,17/01/2020,KPIN,CROMWELL GROUP (HOLDINGS) LTD,
ICT,2510,IT Communications,BILL FOR JAN 2020,12,2020,10324.12,32480,22/01/2020,KPIN,BRITISH TELECOMMUNICATIONS,
Purchasing & Supply,2024,Cleaning Equipment,6663 Scott Performance Hand To,12,2020,125.90,32558,29/01/2020,KPIN,BUNZL CLEANING & HYGIENE SUPPLIES,
Property Services,1499,Furniture and Fittings,Canavro electric sit/stand des,12,2020,687.50,32590,31/01/2020,KPIN,BATES OFFICE SERVICES LIMITED,
Service Leadership Team,B217,Payments in Advance,British Standards Mar20-Feb21,12,2020,3905.00,32615,01/02/2020,KPIN,BSI BRITISH STANDARDS,
Service Leadership Team,6099,Subscriptions - Corporate,British Standards Corporate Su,12,2020,-3905.00,32615,01/02/2020,KPIN,BSI BRITISH STANDARDS,
Service Leadership Team,6099,Subscriptions - Corporate,British Standards Corporate Su,12,2020,3905.00,32615,01/02/2020,KPIN,BSI BRITISH STANDARDS,
Property Services,1050,Building Maintenance,To carry out air quality testi,12,2020,3360.00,32633,01/02/2020,KPIN,AIR TESTING LIMITED,
Property Services,1301,Gas,Delivery of Propane gas - 24/1,12,2020,996.15,32661,24/01/2020,KPIN,CALOR GAS LIMITED,
Property Services,4003,Postage Direct Mailing & Carriage,CONTRA KPIN 34346,12,2020,879.30,32662,06/12/2019,KPIN,T N T UK LTD,
Human Resources,2016,Fitness Equipment,CONTRA KPIN 33791,12,2020,135.00,32674,31/01/2020,KPIN,SPORTSAFE UK LTD,
Operations,3101,Mileage Costs,Recharge of salary Oct-Dec 19,12,2020,4483.87,32750,03/02/2020,KPIN,CAMBRIDGESHIRE & PETERBOROUGH FIRE,
Service Leadership Team,0157,Whole Time Pay,Recharge of salary Oct-Dec 19,12,2020,31398.51,32750,03/02/2020,KPIN,CAMBRIDGESHIRE & PETERBOROUGH FIRE,
Service Leadership Team,0457,Whole Time Nat Ins,Recharge of salary Oct-Dec 19,12,2020,4035.30,32750,03/02/2020,KPIN,CAMBRIDGESHIRE & PETERBOROUGH FIRE,
Service Leadership Team,0557,Whole Time Employer Pensions,Recharge of salary Oct-Dec 19,12,2020,8743.38,32750,03/02/2020,KPIN,CAMBRIDGESHIRE & PETERBOROUGH FIRE,
Property Services,1499,Furniture and Fittings,Rise and Fall electric Assmann,12,2020,687.50,32773,04/02/2020,KPIN,BATES OFFICE SERVICES LIMITED,
Innovation and Change,2903,Consultancy Fees,"Diagnosis, Modelling & Reporti",12,2020,14250.00,32786,05/02/2020,KPIN,PROCESS EVOLUTION LTD,
Innovation and Change,2903,Consultancy Fees,Initial Scoping ,12,2020,2850.00,32786,05/02/2020,KPIN,PROCESS EVOLUTION LTD,
Purchasing & Supply,2024,Cleaning Equipment,CONTRA KPIN 34330,12,2020,448.80,32841,06/02/2020,KPIN,S P SERVICES (UK) LTD,
Innovation and Change,0180,Casual and Temporary Staff,Casual and Temporary Staff,12,2020,950.00,32852,04/02/2020,KPIN,HAYS SPECIALIST RECRUITMENT LTD,
Purchasing & Supply,1310,Cleaning products,Purell Hand Sanitising Gel VF4,12,2020,50.96,32885,07/02/2020,KPIN,BUNZL CLEANING & HYGIENE SUPPLIES,
Operations - USAR,2030,Operational Equipment Support,Flamacryl Flamestop Trouser si,12,2020,164.17,32893,10/02/2020,KPIN,BRISTOL UNIFORMS LTD,
Operations - USAR,2030,Operational Equipment Support,Flamacryl Flamestop Coat size ,12,2020,198.88,32893,10/02/2020,KPIN,BRISTOL UNIFORMS LTD,
Operations - USAR,2030,Operational Equipment Support,F2 -Xtreme Rescue Helmet Colou,12,2020,97.29,32893,10/02/2020,KPIN,BRISTOL UNIFORMS LTD,
Operations - USAR,2030,Operational Equipment Support,XP LED Lamp for F2 Extreme Hel,12,2020,72.18,32893,10/02/2020,KPIN,BRISTOL UNIFORMS LTD,
Operations - USAR,2030,Operational Equipment Support,USAR Passive Ear Defenders,12,2020,23.56,32893,10/02/2020,KPIN,BRISTOL UNIFORMS LTD,
Operations - USAR,2030,Operational Equipment Support,Rescue Glove size 9/M,12,2020,22.65,32893,10/02/2020,KPIN,BRISTOL UNIFORMS LTD,
Operations - USAR,2030,Operational Equipment Support,USAR Chainsaw Boot size 9/43,12,2020,174.59,32893,10/02/2020,KPIN,BRISTOL UNIFORMS LTD,
Property Services,1050,Building Maintenance,CONTRA KPIN 33828,12,2020,478.00,32947,11/02/2020,KPIN,TH ELECTRICAL LTD,
Innovation and Change,4005,IT Consumables,Consultancy Day Expenses for R,12,2020,191.00,32967,11/02/2020,KPIN,CIVICA UK LTD,
Human Resources,6899,Miscellaneous Expenses,Annual charge for account set ,12,2020,-1980.00,32987,12/12/2019,KPIN,PAGE TIGER LIMITED,
Human Resources,B217,Payments in Advance,Annual Charge Jan-Dec20,12,2020,1980.00,32987,12/12/2019,KPIN,PAGE TIGER LIMITED,
Human Resources,6899,Miscellaneous Expenses,Annual charge for account set ,12,2020,1980.00,32987,12/12/2019,KPIN,PAGE TIGER LIMITED,
Human Resources,6899,Miscellaneous Expenses,Training Token,12,2020,700.00,32988,12/12/2019,KPIN,PAGE TIGER LIMITED,
Human Resources,6899,Miscellaneous Expenses,Annual subscription for 4 lice,12,2020,-1960.00,32989,12/12/2019,KPIN,PAGE TIGER LIMITED,
Human Resources,B217,Payments in Advance,Annual Subs 4 Lic Jan-Dec20,12,2020,1960.00,32989,12/12/2019,KPIN,PAGE TIGER LIMITED,
Human Resources,6899,Miscellaneous Expenses,Annual subscription for 4 lice,12,2020,1960.00,32989,12/12/2019,KPIN,PAGE TIGER LIMITED,
Human Resources,4016,Recruitment,Recruitment,12,2020,6549.30,32992,11/02/2020,KPIN,THE PEOPLE NETWORK,
Purchasing & Supply,1310,Cleaning products,Purell Hand Sanitising Gel VF4,12,2020,50.96,33013,12/02/2020,KPIN,BUNZL CLEANING & HYGIENE SUPPLIES,
Human Resources,2903,Consultancy Fees,CONTRA FOR KPIN 34130,12,2020,1000.00,33020,06/12/2019,KPIN,ESSEX PENSION FUND,
Purchasing & Supply,1310,Cleaning products,Purell Hand Sanitising Gel VF4,12,2020,101.92,33021,12/02/2020,KPIN,BUNZL CLEANING & HYGIENE SUPPLIES,
Purchasing & Supply,2024,Cleaning Equipment,Dish Washing Brush Plastic Sma,12,2020,1.88,33022,12/02/2020,KPIN,BUNZL CLEANING & HYGIENE SUPPLIES,
Purchasing & Supply,2024,Cleaning Equipment,8577 Scott Folded Toilet Tissu,12,2020,39.06,33022,12/02/2020,KPIN,BUNZL CLEANING & HYGIENE SUPPLIES,
Purchasing & Supply,2024,Cleaning Equipment,Stockinette Dishcloth Super Bl,12,2020,5.88,33022,12/02/2020,KPIN,BUNZL CLEANING & HYGIENE SUPPLIES,
Purchasing & Supply,2024,Cleaning Equipment,Jumbo Sponge 220x120x50MM (EA),12,2020,0.86,33022,12/02/2020,KPIN,BUNZL CLEANING & HYGIENE SUPPLIES,
Purchasing & Supply,2024,Cleaning Equipment,Nail Brush Plastic 3.5/9CM (EA,12,2020,1.11,33022,12/02/2020,KPIN,BUNZL CLEANING & HYGIENE SUPPLIES,
Purchasing & Supply,2024,Cleaning Equipment,Swarfega Lemon Hand Cleaner 4L,12,2020,27.68,33022,12/02/2020,KPIN,BUNZL CLEANING & HYGIENE SUPPLIES,
Purchasing & Supply,2024,Cleaning Equipment,Cleanline Food Safe Sanitiser ,12,2020,9.60,33022,12/02/2020,KPIN,BUNZL CLEANING & HYGIENE SUPPLIES,
Purchasing & Supply,1310,Cleaning products,Builders Bucket Heavy Duty Bla,12,2020,14.64,33022,12/02/2020,KPIN,BUNZL CLEANING & HYGIENE SUPPLIES,
Purchasing & Supply,1310,Cleaning products,Bryta Dishwasher Powder 5KG (E,12,2020,7.64,33022,12/02/2020,KPIN,BUNZL CLEANING & HYGIENE SUPPLIES,
Purchasing & Supply,1310,Cleaning products,General Purpose Detergent 5L (,12,2020,23.07,33022,12/02/2020,KPIN,BUNZL CLEANING & HYGIENE SUPPLIES,
Purchasing & Supply,1310,Cleaning products,Purell Hand Sanitising Gel VF4,12,2020,50.96,33022,12/02/2020,KPIN,BUNZL CLEANING & HYGIENE SUPPLIES,
Purchasing & Supply,2024,Cleaning Equipment,6331 Kleenex Everyday Use Hand,12,2020,25.01,33022,12/02/2020,KPIN,BUNZL CLEANING & HYGIENE SUPPLIES,
Purchasing & Supply,2024,Cleaning Equipment,6663 Scott Performance Hand To,12,2020,75.54,33022,12/02/2020,KPIN,BUNZL CLEANING & HYGIENE SUPPLIES,
Purchasing & Supply,2024,Cleaning Equipment,White Tea Towel 50X40CM (EA) 9,12,2020,4.90,33022,12/02/2020,KPIN,BUNZL CLEANING & HYGIENE SUPPLIES,
Purchasing & Supply,2024,Cleaning Equipment,Dustpan & Brush Set Soft Blue ,12,2020,2.34,33022,12/02/2020,KPIN,BUNZL CLEANING & HYGIENE SUPPLIES,
Purchasing & Supply,2024,Cleaning Equipment,Mop Bucket Galvanised Standard,12,2020,33.36,33022,12/02/2020,KPIN,BUNZL CLEANING & HYGIENE SUPPLIES,
Catering,2017,Canteen Equipment,RB6 General Purpose Hand Scour,12,2020,1.23,33022,12/02/2020,KPIN,BUNZL CLEANING & HYGIENE SUPPLIES,
Purchasing & Supply,1310,Cleaning products,Purell Hand Sanitising Gel VF4,12,2020,50.96,33025,12/02/2020,KPIN,BUNZL CLEANING & HYGIENE SUPPLIES,
Property Services,1499,Furniture and Fittings,Replacement key  x 2 for locke,12,2020,11.26,33095,14/02/2020,KPIN,BRENTWOOD LOCK & SAFE CO LTD,
Workshops Management,3201,Petrol and Diesel,Petrol and Diesel,12,2020,2045.93,33126,12/02/2020,KPIN,WATSON FUELS,
Training,4111,Subsistence Allowances,Subsistence Allowances,12,2020,405.00,33134,16/02/2020,KPIN,SARAHS CATERING LIMITED,
Training,4111,Subsistence Allowances,Subsistence Allowances,12,2020,5.00,33134,16/02/2020,KPIN,SARAHS CATERING LIMITED,
Training,4111,Subsistence Allowances,Subsistence Allowances,12,2020,40.50,33134,16/02/2020,KPIN,SARAHS CATERING LIMITED,
Training,4111,Subsistence Allowances,Subsistence Allowances,12,2020,81.00,33134,16/02/2020,KPIN,SARAHS CATERING LIMITED,
Training,4111,Subsistence Allowances,Subsistence Allowances,12,2020,60.00,33134,16/02/2020,KPIN,SARAHS CATERING LIMITED,
Workshops Management,3201,Petrol and Diesel,Petrol and Diesel,12,2020,1194.12,33147,12/02/2020,KPIN,WATSON FUELS,
Workshops Management,3201,Petrol and Diesel,Petrol and Diesel,12,2020,995.10,33151,12/02/2020,KPIN,WATSON FUELS,
Water Services,2087,Water Services,Calor Gas Cylinder for card 01,12,2020,9.27,33160,10/02/2020,KPIN,CALOR GAS LIMITED,
Purchasing & Supply,2024,Cleaning Equipment,CONTRA KPIN 34311,12,2020,272.80,33175,17/02/2020,KPIN,S P SERVICES (UK) LTD,
Catering,2017,Canteen Equipment,Plastic cup dispenser - Code: ,12,2020,63.99,33201,18/02/2020,KPIN,NISBETS PLC,
Innovation and Change,0180,Casual and Temporary Staff,Casual and Temporary Staff,12,2020,2250.00,33211,14/02/2020,KPIN,THE PEOPLE NETWORK,
Property Services,1501,Rent,Monthly Rent,12,2020,5333.34,33212,17/02/2020,KPIN,DEFENCE INFRASTRUCTURE ORGANISATION,
Property Services,1501,Rent,Monthly Rent,12,2020,5333.34,33212,17/02/2020,KPIN,DEFENCE INFRASTRUCTURE ORGANISATION,
Property Services,1501,Rent,Monthly Rent,12,2020,5333.34,33212,17/02/2020,KPIN,DEFENCE INFRASTRUCTURE ORGANISATION,
Property Services,1501,Rent,Monthly Rent,12,2020,5333.34,33212,17/02/2020,KPIN,DEFENCE INFRASTRUCTURE ORGANISATION,
Property Services,1501,Rent,Monthly Rent,12,2020,5333.34,33212,17/02/2020,KPIN,DEFENCE INFRASTRUCTURE ORGANISATION,
Property Services,1501,Rent,Monthly Rent,12,2020,-42666.72,33212,17/02/2020,KPIN,DEFENCE INFRASTRUCTURE ORGANISATION,
Property Services,1501,Rent,Monthly Rent,12,2020,5333.34,33212,17/02/2020,KPIN,DEFENCE INFRASTRUCTURE ORGANISATION,
Property Services,1501,Rent,Monthly Rent,12,2020,5333.34,33212,17/02/2020,KPIN,DEFENCE INFRASTRUCTURE ORGANISATION,
Property Services,1501,Rent,Monthly Rent,12,2020,5333.34,33212,17/02/2020,KPIN,DEFENCE INFRASTRUCTURE ORGANISATION,
Property Services,B217,Payments in Advance,Monthly Rent,12,2020,42666.72,33212,17/02/2020,KPIN,DEFENCE INFRASTRUCTURE ORGANISATION,
Property Services,1501,Rent,Monthly Rent,12,2020,5333.34,33212,17/02/2020,KPIN,DEFENCE INFRASTRUCTURE ORGANISATION,
Purchasing & Supply,2024,Cleaning Equipment,Cleanline Glass & Stainless St,12,2020,4.56,33214,18/02/2020,KPIN,BUNZL CLEANING & HYGIENE SUPPLIES,
Purchasing & Supply,1310,Cleaning products,General Purpose Detergent 5L (,12,2020,15.38,33214,18/02/2020,KPIN,BUNZL CLEANING & HYGIENE SUPPLIES,
Purchasing & Supply,1310,Cleaning products,Bryta Dishwasher Powder 5KG (E,12,2020,7.64,33214,18/02/2020,KPIN,BUNZL CLEANING & HYGIENE SUPPLIES,
Purchasing & Supply,2024,Cleaning Equipment,Shield 3 Way Toilet Cleaner 1L,12,2020,4.68,33214,18/02/2020,KPIN,BUNZL CLEANING & HYGIENE SUPPLIES,
Purchasing & Supply,2024,Cleaning Equipment,8577 Scott Folded Toilet Tissu,12,2020,39.06,33214,18/02/2020,KPIN,BUNZL CLEANING & HYGIENE SUPPLIES,
Purchasing & Supply,2024,Cleaning Equipment,6663 Scott Performance Hand To,12,2020,50.36,33214,18/02/2020,KPIN,BUNZL CLEANING & HYGIENE SUPPLIES,
Stores,B205,Stocks & WIP (Purchasing & Supply Stores),Tork Wiping Paper Mini Centref,12,2020,39.36,33224,18/02/2020,KPIN,BUNZL CLEANING & HYGIENE SUPPLIES,
Stores,B205,Stocks & WIP (Purchasing & Supply Stores),Flash All Purpose Cotton Fresh,12,2020,19.90,33224,18/02/2020,KPIN,BUNZL CLEANING & HYGIENE SUPPLIES,
Operations,4110,Travelling Expenses,Travelling Expenses,12,2020,50.30,33226,18/02/2020,KPIN,CAPITA TRAVEL AND EVENTS LTD,
Operations,4110,Travelling Expenses,Travelling Expenses,12,2020,3.50,33226,18/02/2020,KPIN,CAPITA TRAVEL AND EVENTS LTD,
Operations,4110,Travelling Expenses,Travelling Expenses,12,2020,14.00,33226,18/02/2020,KPIN,CAPITA TRAVEL AND EVENTS LTD,
Operations,4110,Travelling Expenses,Travelling Expenses,12,2020,3.50,33226,18/02/2020,KPIN,CAPITA TRAVEL AND EVENTS LTD,
Operations,4110,Travelling Expenses,Travelling Expenses,12,2020,3.50,33226,18/02/2020,KPIN,CAPITA TRAVEL AND EVENTS LTD,
Operations,4110,Travelling Expenses,Travelling Expenses,12,2020,19.10,33226,18/02/2020,KPIN,CAPITA TRAVEL AND EVENTS LTD,
Operations,4110,Travelling Expenses,Travelling Expenses,12,2020,3.50,33226,18/02/2020,KPIN,CAPITA TRAVEL AND EVENTS LTD,
Operations,4110,Travelling Expenses,Travelling Expenses,12,2020,3.50,33226,18/02/2020,KPIN,CAPITA TRAVEL AND EVENTS LTD,
Operations,4110,Travelling Expenses,Travelling Expenses,12,2020,3.50,33226,18/02/2020,KPIN,CAPITA TRAVEL AND EVENTS LTD,
Operations,4110,Travelling Expenses,Travelling Expenses,12,2020,3.50,33226,18/02/2020,KPIN,CAPITA TRAVEL AND EVENTS LTD,
Operations,4110,Travelling Expenses,Travelling Expenses,12,2020,119.25,33226,18/02/2020,KPIN,CAPITA TRAVEL AND EVENTS LTD,
Operations,4110,Travelling Expenses,Travelling Expenses,12,2020,111.35,33226,18/02/2020,KPIN,CAPITA TRAVEL AND EVENTS LTD,
Operations,4110,Travelling Expenses,Travelling Expenses,12,2020,107.35,33226,18/02/2020,KPIN,CAPITA TRAVEL AND EVENTS LTD,
Operations,4110,Travelling Expenses,Travelling Expenses,12,2020,50.30,33226,18/02/2020,KPIN,CAPITA TRAVEL AND EVENTS LTD,
Operations,4110,Travelling Expenses,Travelling Expenses,12,2020,3.50,33226,18/02/2020,KPIN,CAPITA TRAVEL AND EVENTS LTD,
Operations,4110,Travelling Expenses,Travelling Expenses,12,2020,20.50,33226,18/02/2020,KPIN,CAPITA TRAVEL AND EVENTS LTD,
Operations,4110,Travelling Expenses,Travelling Expenses,12,2020,19.10,33226,18/02/2020,KPIN,CAPITA TRAVEL AND EVENTS LTD,
Operations,4110,Travelling Expenses,Travelling Expenses,12,2020,19.10,33226,18/02/2020,KPIN,CAPITA TRAVEL AND EVENTS LTD,
Operations,4110,Travelling Expenses,Travelling Expenses,12,2020,50.30,33226,18/02/2020,KPIN,CAPITA TRAVEL AND EVENTS LTD,
Operations,4110,Travelling Expenses,Travelling Expenses,12,2020,30.60,33226,18/02/2020,KPIN,CAPITA TRAVEL AND EVENTS LTD,
Operations,4110,Travelling Expenses,Travelling Expenses,12,2020,119.25,33226,18/02/2020,KPIN,CAPITA TRAVEL AND EVENTS LTD,
Operations,4110,Travelling Expenses,Travelling Expenses,12,2020,119.25,33226,18/02/2020,KPIN,CAPITA TRAVEL AND EVENTS LTD,
Operations,4110,Travelling Expenses,Travelling Expenses,12,2020,3.50,33226,18/02/2020,KPIN,CAPITA TRAVEL AND EVENTS LTD,
ICT,4005,IT Consumables,CREDIT KPIN 32579,12,2020,-128.80,33243,20/02/2020,KPIN,SILICON ALLEY,
Purchasing & Supply,2024,Cleaning Equipment,Bryta Oven & Grill Foam 500ML ,12,2020,3.20,33273,20/02/2020,KPIN,BUNZL CLEANING & HYGIENE SUPPLIES,
Purchasing & Supply,2024,Cleaning Equipment,8577 Scott Folded Toilet Tissu,12,2020,97.65,33273,20/02/2020,KPIN,BUNZL CLEANING & HYGIENE SUPPLIES,
Purchasing & Supply,2024,Cleaning Equipment,Brasso Liquid Metal Polish 175,12,2020,6.16,33273,20/02/2020,KPIN,BUNZL CLEANING & HYGIENE SUPPLIES,
Purchasing & Supply,2024,Cleaning Equipment,Shades Air Fresh Summer Flower,12,2020,4.75,33273,20/02/2020,KPIN,BUNZL CLEANING & HYGIENE SUPPLIES,
Purchasing & Supply,2024,Cleaning Equipment,6663 Scott Performance Hand To,12,2020,62.95,33273,20/02/2020,KPIN,BUNZL CLEANING & HYGIENE SUPPLIES,
Purchasing & Supply,2024,Cleaning Equipment,Wash Leather 2 Foot Square (EA,12,2020,9.36,33273,20/02/2020,KPIN,BUNZL CLEANING & HYGIENE SUPPLIES,
Purchasing & Supply,1310,Cleaning products,Bryta Dishwasher Powder 5KG (E,12,2020,15.28,33273,20/02/2020,KPIN,BUNZL CLEANING & HYGIENE SUPPLIES,
Human Resources,0960,Occupational Health,Occupational Health,12,2020,50.00,33275,20/02/2020,KPIN,WORKOUT SOLUTIONS,
Human Resources,0960,Occupational Health,Occupational Health,12,2020,350.00,33275,20/02/2020,KPIN,WORKOUT SOLUTIONS,
Catering,2017,Canteen Equipment,RB6 General Purpose Hand Scour,12,2020,2.46,33281,20/02/2020,KPIN,BUNZL CLEANING & HYGIENE SUPPLIES,
Purchasing & Supply,2024,Cleaning Equipment,6332 Kleenex Hair & Body Showe,12,2020,45.82,33281,20/02/2020,KPIN,BUNZL CLEANING & HYGIENE SUPPLIES,
Purchasing & Supply,2024,Cleaning Equipment,Shades Air Fresh Summer Flower,12,2020,1.90,33281,20/02/2020,KPIN,BUNZL CLEANING & HYGIENE SUPPLIES,
Purchasing & Supply,1310,Cleaning products,General Purpose Detergent 5L (,12,2020,30.76,33281,20/02/2020,KPIN,BUNZL CLEANING & HYGIENE SUPPLIES,
Purchasing & Supply,1310,Cleaning products,6336 Scott Control Antibacteri,12,2020,31.26,33281,20/02/2020,KPIN,BUNZL CLEANING & HYGIENE SUPPLIES,
Purchasing & Supply,2024,Cleaning Equipment,Cleanline Food Safe Sanitiser ,12,2020,9.14,33281,20/02/2020,KPIN,BUNZL CLEANING & HYGIENE SUPPLIES,
Purchasing & Supply,2024,Cleaning Equipment,Jumbo Sponge 220x120x50MM (EA),12,2020,1.72,33281,20/02/2020,KPIN,BUNZL CLEANING & HYGIENE SUPPLIES,
Purchasing & Supply,2024,Cleaning Equipment,6663 Scott Performance Hand To,12,2020,37.77,33281,20/02/2020,KPIN,BUNZL CLEANING & HYGIENE SUPPLIES,
Purchasing & Supply,2024,Cleaning Equipment,Dish Washing Brush Plastic Sma,12,2020,3.29,33281,20/02/2020,KPIN,BUNZL CLEANING & HYGIENE SUPPLIES,
Purchasing & Supply,2024,Cleaning Equipment,Cleanline Glass & Stainless St,12,2020,1.14,33281,20/02/2020,KPIN,BUNZL CLEANING & HYGIENE SUPPLIES,
Purchasing & Supply,2024,Cleaning Equipment,White Tea Towel 50X40CM (EA) 9,12,2020,1.96,33281,20/02/2020,KPIN,BUNZL CLEANING & HYGIENE SUPPLIES,
Purchasing & Supply,2024,Cleaning Equipment,8577 Scott Folded Toilet Tissu,12,2020,39.06,33281,20/02/2020,KPIN,BUNZL CLEANING & HYGIENE SUPPLIES,
Purchasing & Supply,1310,Cleaning products,Purell Hand Sanitising Gel VF4,12,2020,50.96,33282,20/02/2020,KPIN,BUNZL CLEANING & HYGIENE SUPPLIES,
Property Services,1499,Furniture and Fittings,lockers keys required lockers ,12,2020,40.52,33285,19/02/2020,KPIN,BRENTWOOD LOCK & SAFE CO LTD,
Innovation and Change,0180,Casual and Temporary Staff,Casual and Temporary Staff,12,2020,1759.50,33303,21/02/2020,KPIN,REED SPECIALIST RECRUITMENT LIMITED,
Training,4111,Subsistence Allowances,Subsistence Allowances,12,2020,5.00,33308,23/02/2020,KPIN,SARAHS CATERING LIMITED,
Training,4111,Subsistence Allowances,Subsistence Allowances,12,2020,155.25,33308,23/02/2020,KPIN,SARAHS CATERING LIMITED,
Training,4111,Subsistence Allowances,Subsistence Allowances,12,2020,688.50,33308,23/02/2020,KPIN,SARAHS CATERING LIMITED,
Training,4111,Subsistence Allowances,Subsistence Allowances,12,2020,50.00,33308,23/02/2020,KPIN,SARAHS CATERING LIMITED,
Training,4111,Subsistence Allowances,Subsistence Allowances,12,2020,25.00,33308,23/02/2020,KPIN,SARAHS CATERING LIMITED,
Training,4111,Subsistence Allowances,Subsistence Allowances,12,2020,141.75,33308,23/02/2020,KPIN,SARAHS CATERING LIMITED,
Innovation and Change,0180,Casual and Temporary Staff,Casual and Temporary Staff,12,2020,950.00,33311,21/02/2020,KPIN,HAYS SPECIALIST RECRUITMENT LTD,
Innovation and Change,0180,Casual and Temporary Staff,Casual and Temporary Staff,12,2020,950.00,33312,21/02/2020,KPIN,HAYS SPECIALIST RECRUITMENT LTD,
Purchasing & Supply,1310,Cleaning products,Purell Hand Sanitising Gel VF4,12,2020,76.44,33315,21/02/2020,KPIN,BUNZL CLEANING & HYGIENE SUPPLIES,
Training,4111,Subsistence Allowances,Subsistence Allowances,12,2020,460.00,33317,20/02/2020,KPIN,KENT FIRE & RESCUE SERVICE,
Training,0702,External Training - L&D Panel,External Training - L&D Panel,12,2020,350.00,33317,20/02/2020,KPIN,KENT FIRE & RESCUE SERVICE,
Workshops Management,3050,Leasing Charges,Leasing Charges,12,2020,4094.99,33323,16/02/2020,KPIN,LEX AUTOLEASE LTD,
Workshops Management,3050,Leasing Charges,Leasing Charges,12,2020,6824.38,33323,16/02/2020,KPIN,LEX AUTOLEASE LTD,
Property Services,1322,Sewerage Charges,13.02.20 BILLERICAY,12,2020,52.80,33333,13/02/2020,KPIN,ANGLIAN WATER BUSINESS ( NATIONAL ) LTD,
Property Services,1321,Water Meters,13.02.20 BILLERICAY,12,2020,14.87,33333,13/02/2020,KPIN,ANGLIAN WATER BUSINESS ( NATIONAL ) LTD,
Property Services,1321,Water Meters,BILL 17/11/19 - 16/02/2020,12,2020,411.35,33334,17/02/2020,KPIN,ANGLIAN WATER BUSINESS (NATIONAL) LTD,
Property Services,1322,Sewerage Charges,BILL 17/11/19 - 16/02/2020,12,2020,360.61,33334,17/02/2020,KPIN,ANGLIAN WATER BUSINESS (NATIONAL) LTD,
ICT,4005,IT Consumables,Install Wap at Braintree Fire ,12,2020,684.19,33343,25/02/2020,KPIN,C S ELECTRICAL ESSEX LTD,
ICT,4005,IT Consumables,Fix WAP to the wall at Leigh F,12,2020,105.00,33343,25/02/2020,KPIN,C S ELECTRICAL ESSEX LTD,
Catering,2017,Canteen Equipment,Deep clean of kitchen required,12,2020,790.00,33349,25/02/2020,KPIN,MONTHIND CLEAN LLP,
Workshops Management,3201,Petrol and Diesel,Petrol and Diesel,12,2020,1288.95,33352,21/02/2020,KPIN,WATSON FUELS,
Community Safety,4019,Community Safety,Safeguarding professional supe,12,2020,80.00,33356,25/02/2020,KPIN,AMANDA CRAIG CBT SERVICES,
Workshops Management,3201,Petrol and Diesel,Petrol and Diesel,12,2020,1387.11,33357,21/02/2020,KPIN,WATSON FUELS,
Stores,B205,Stocks & WIP (Purchasing & Supply Stores),"Training shoe, Mens size 8, M6",12,2020,57.30,33359,25/02/2020,KPIN,NEW BALANCE ATHLETIC SHOES (UK) LTD,
Stores,B205,Stocks & WIP (Purchasing & Supply Stores),"Training shoe, Mens size 8.5- ",12,2020,85.95,33359,25/02/2020,KPIN,NEW BALANCE ATHLETIC SHOES (UK) LTD,
Stores,B205,Stocks & WIP (Purchasing & Supply Stores),"Training shoe, Mens's size 9- ",12,2020,143.25,33359,25/02/2020,KPIN,NEW BALANCE ATHLETIC SHOES (UK) LTD,
Stores,B205,Stocks & WIP (Purchasing & Supply Stores),"Training shoe, Mens size 9.5- ",12,2020,143.25,33359,25/02/2020,KPIN,NEW BALANCE ATHLETIC SHOES (UK) LTD,
Stores,B205,Stocks & WIP (Purchasing & Supply Stores),"Training shoe, Mens's size 10-",12,2020,429.75,33359,25/02/2020,KPIN,NEW BALANCE ATHLETIC SHOES (UK) LTD,
Stores,B205,Stocks & WIP (Purchasing & Supply Stores),"Training shoe, Mens size 11- M",12,2020,114.60,33359,25/02/2020,KPIN,NEW BALANCE ATHLETIC SHOES (UK) LTD,
Stores,B205,Stocks & WIP (Purchasing & Supply Stores),"Training shoe, Mens size UK12.",12,2020,57.30,33359,25/02/2020,KPIN,NEW BALANCE ATHLETIC SHOES (UK) LTD,
Stores,B205,Stocks & WIP (Purchasing & Supply Stores),"Training shoe, Mens size UK13.",12,2020,28.65,33359,25/02/2020,KPIN,NEW BALANCE ATHLETIC SHOES (UK) LTD,
Community Safety,0180,Casual and Temporary Staff,Casual and Temporary Staff,12,2020,206.21,33361,23/02/2020,KPIN,PURE RESOURCING SOLUTIONS LTD,
Purchasing & Supply,2303,Clothing & Footwear,Fabric Belt Size Medium,12,2020,13.00,33362,24/02/2020,KPIN,HUNTER APPAREL SOLUTIONS LTD,
Stores,B205,Stocks & WIP (Purchasing & Supply Stores),Leather Belt Black Size Medium,12,2020,826.00,33362,24/02/2020,KPIN,HUNTER APPAREL SOLUTIONS LTD,
Stores,B205,Stocks & WIP (Purchasing & Supply Stores),Shoe Lace-up Female 6.5,12,2020,69.00,33365,26/02/2020,KPIN,NPS SHOES LTD,
Stores,B205,Stocks & WIP (Purchasing & Supply Stores),Shoe solovair slip on size 4 f,12,2020,35.25,33365,26/02/2020,KPIN,NPS SHOES LTD,
Stores,B205,Stocks & WIP (Purchasing & Supply Stores),Shoe Womans Lace-Up Sz 4,12,2020,69.00,33365,26/02/2020,KPIN,NPS SHOES LTD,
Purchasing & Supply,2303,Clothing & Footwear,Vegan 1466 shoes - size 10,12,2020,39.00,33366,26/02/2020,KPIN,NPS SHOES LTD,
Innovation and Change,0180,Casual and Temporary Staff,Casual and Temporary Staff,12,2020,2250.00,33369,21/02/2020,KPIN,THE PEOPLE NETWORK,
Innovation and Change,0180,Casual and Temporary Staff,Casual and Temporary Staff,12,2020,760.00,33373,25/02/2020,KPIN,HAYS SPECIALIST RECRUITMENT LTD,
ICT,4005,IT Consumables,REMOTE MNT CBL 5M W/O MANUAL (,12,2020,225.54,33378,26/02/2020,KPIN,RADIOCOMS SYSTEM LTD,
ICT,4005,IT Consumables,Std Delivery,12,2020,10.00,33378,26/02/2020,KPIN,RADIOCOMS SYSTEM LTD,
Technical Services,2032,Operational Equip-Initial Purchase,Waterproof pouch suitable for ,12,2020,69.12,33379,26/02/2020,KPIN,RADIOCOMS SYSTEM LTD,
Technical Services,2032,Operational Equip-Initial Purchase,Standard delivery,12,2020,10.00,33379,26/02/2020,KPIN,RADIOCOMS SYSTEM LTD,
Property Services,1050,Building Maintenance,Supply and fit film to obscure,12,2020,59.13,33384,26/02/2020,KPIN,NORMAN DAVID MAINTENANCE,
Property Services,1499,Furniture and Fittings,To supply  1 x Substantial Pad,12,2020,386.71,33385,26/02/2020,KPIN,NORMAN DAVID MAINTENANCE,
Stores,B205,Stocks & WIP (Purchasing & Supply Stores),8388 Wypall X80 Cloth 1/4 Fold,12,2020,243.75,33386,26/02/2020,KPIN,BUNZL CLEANING & HYGIENE SUPPLIES,
Catering,4130,Hospitality & Entertaining,KP Mess Club,12,2020,102.60,33416,21/02/2020,KPIN,H&J FOODS LTD T/A OLYMPIC FOODS,
Water Services,2087,Water Services,300mm Thermoplastic H (No Arro,12,2020,470.00,33418,27/02/2020,KPIN,PLATE & LOCATE LTD,
Water Services,2087,Water Services,Hydrant Indicator Numerals.   ,12,2020,51.00,33418,27/02/2020,KPIN,PLATE & LOCATE LTD,
Property Services,1060,Grounds Maintenance,FS40431,12,2020,155.66,33420,29/02/2020,KPIN,NBC ENVIRONMENT LTD,
ICT,4005,IT Consumables,Credit Carriage,12,2020,-18.00,33421,25/02/2020,KPIN,MULTITONE ELECTRONICS PLC,
Property Services,1040,Planned Works,PS42049,12,2020,300.00,33422,27/02/2020,KPIN,KAT SECURITIES,
Property Services,1030,Int Decs/Alts & Improvements,1920/448 Various Sites - Extre,12,2020,15381.01,33423,27/02/2020,KPIN,GARDHAMS PROPERTY SERVICES,
Workshops Management,3050,Leasing Charges,Leasing Charges,12,2020,-1735.49,33424,19/02/2020,KPIN,LEX AUTOLEASE LTD,
Workshops Management,3050,Leasing Charges,Leasing Charges,12,2020,1879.49,33425,19/02/2020,KPIN,LEX AUTOLEASE LTD,
ICT,2510,IT Communications,Firelink December 2019,12,2020,69273.00,33426,17/02/2020,KPIN,HOME OFFICE,
Technical Services,2032,Operational Equip-Initial Purchase,Vehicle high pressure washer r,12,2020,110.00,33427,21/02/2020,KPIN,ELJAY INDUSTRIAL CHEMICALS,
Operations - USAR,2030,Operational Equipment Support,Peacekeeper P3 Aqua boot  - si,12,2020,116.90,33428,20/02/2020,KPIN,ALTBERG LTD,
Training,0707,Operational Training Contracts,Firefighter apprenticeship min,12,2020,31600.00,33431,26/02/2020,KPIN,FIRE SERVICE COLLEGE LIMITED,
Training,0707,Operational Training Contracts,Firefighter apprenticeship (54,12,2020,60800.00,33431,26/02/2020,KPIN,FIRE SERVICE COLLEGE LIMITED,
Property Services,2903,Consultancy Fees,1920/448 Various Sites -  Exte,12,2020,4964.33,33432,27/02/2020,KPIN,CALFORDSEADEN LLP,
Technical Services,2032,Operational Equip-Initial Purchase,Vehicle high pressure washer r,12,2020,187.70,33433,24/02/2020,KPIN,ELJAY INDUSTRIAL CHEMICALS,
ICT,2510,IT Communications,BILL FOR FEB 2020,12,2020,3805.44,33435,22/02/2020,KPIN,BRITISH TELECOMMUNICATIONS,
Property Services,1322,Sewerage Charges,bill 17/11/19 - 16/02/2020,12,2020,58.52,33436,17/02/2020,KPIN,ANGLIAN WATER BUSINESS (NATIONAL) LTD,
Property Services,1321,Water Meters,bill 17/11/19 - 16/02/2020,12,2020,46.05,33436,17/02/2020,KPIN,ANGLIAN WATER BUSINESS (NATIONAL) LTD,
Property Services,1060,Grounds Maintenance,Grounds Maintenance,12,2020,1557.60,33439,29/02/2020,KPIN,C R SWIFT LANDSCAPING LTD,
Property Services,1050,Building Maintenance,Disconnect Lincat stainless st,12,2020,80.00,33440,27/02/2020,KPIN,C S ELECTRICAL ESSEX LTD,
Property Services,1050,Building Maintenance,To alter the turn out lighting,12,2020,378.54,33441,27/02/2020,KPIN,C S ELECTRICAL ESSEX LTD,
Catering,4130,Hospitality & Entertaining,KP MESS CLUB,12,2020,49.20,33442,28/02/2020,KPIN,DONALD FREESTON,
Property Services,1050,Building Maintenance,To replace keys to red cupboar,12,2020,154.20,33443,28/02/2020,KPIN,BRENTWOOD LOCK & SAFE CO LTD,
Community Safety,4019,Community Safety,Funding contribution to Nation,12,2020,1000.00,33444,28/01/2020,KPIN,VIA EAST MIDLANDS LIMITED,
Property Services,1499,Furniture and Fittings,Blinds broken in driving schoo,12,2020,318.00,33445,28/02/2020,KPIN,NANTMOR BLINDS LTD,
Property Services,2903,Consultancy Fees,1920/451 - Sub division of liv,12,2020,7239.34,33446,28/02/2020,KPIN,CALFORDSEADEN LLP,
Property Services,2903,Consultancy Fees,1920/451 - Sub division of liv,12,2020,3500.00,33447,28/02/2020,KPIN,CALFORDSEADEN LLP,
Property Services,1050,Building Maintenance,Please supply 50 PAC fobs ( do,12,2020,250.00,33448,28/02/2020,KPIN,BLAKE CONTRACTORS LTD,
Property Services,1040,Planned Works,Sewage Plant Emptying & Servic,12,2020,2505.00,33449,28/02/2020,KPIN,ASHWASTE ENVIRONMENTAL LTD,
Stores,B205,Stocks & WIP (Purchasing & Supply Stores),"Visiting Cards (Singles)
",12,2020,38.00,33451,28/02/2020,KPIN,THE PRINTING PLACE LIMITED,,,,
Property Services,1040,Planned Works,Generator - Monthly retainer f,12,2020,200.00,33452,28/02/2020,KPIN,OPTIMUM POWER SERVICES LTD,
Property Services,1499,Furniture and Fittings,keys required 2no S622,12,2020,11.26,33453,28/02/2020,KPIN,BRENTWOOD LOCK & SAFE CO LTD,
ICT,2040,IT Maintenance and Contracts,Harlow Contingency Support - P,12,2020,-2132.81,33454,28/02/2020,KPIN,AGGREKO UK,
ICT,B217,Payments in Advance,Harlow Contingency Feb20-Jan21,12,2020,2132.81,33454,28/02/2020,KPIN,AGGREKO UK,
ICT,2040,IT Maintenance and Contracts,Harlow Contingency Support - P,12,2020,2132.81,33454,28/02/2020,KPIN,AGGREKO UK,
ICT,2040,IT Maintenance and Contracts,Ongar Contingency Support - Pr,12,2020,2132.81,33455,28/02/2020,KPIN,AGGREKO UK,
ICT,B217,Payments in Advance,Ongar Contingency Feb20-Jan21,12,2020,2132.81,33455,28/02/2020,KPIN,AGGREKO UK,
ICT,2040,IT Maintenance and Contracts,Ongar Contingency Support - Pr,12,2020,-2132.81,33455,28/02/2020,KPIN,AGGREKO UK,
Training,0715,In House Operational Training,In House Operational Training,12,2020,3500.00,33456,28/02/2020,KPIN,FLOOD RESCUE TRAINING AND CONSULTANCY LIMITED,
Stores,B205,Stocks & WIP (Purchasing & Supply Stores),Visiting Cards (Batch of 8),12,2020,62.00,33457,28/02/2020,KPIN,THE PRINTING PLACE LIMITED,
Property Services,1050,Building Maintenance,Authorised parking only sign h,12,2020,286.75,33458,28/02/2020,KPIN,A T B PLUMBING & BUILDING SERVICES LTD,
Property Services,1050,Building Maintenance,Replace missing Perspex window,12,2020,260.03,33459,28/02/2020,KPIN,A T B PLUMBING & BUILDING SERVICES LTD,
Property Services,1050,Building Maintenance,To repair defective flush,12,2020,251.58,33460,28/02/2020,KPIN,A T B PLUMBING & BUILDING SERVICES LTD,
Property Services,1050,Building Maintenance,To remedy defective flush - ne,12,2020,106.00,33461,28/02/2020,KPIN,A T B PLUMBING & BUILDING SERVICES LTD,
Property Services,1050,Building Maintenance,Rat seen in kitchen Came from ,12,2020,125.57,33462,28/02/2020,KPIN,A T B PLUMBING & BUILDING SERVICES LTD,
Property Services,1050,Building Maintenance,To re-fix tiles to wall in sho,12,2020,420.85,33463,28/02/2020,KPIN,A T B PLUMBING & BUILDING SERVICES LTD,
Property Services,1050,Building Maintenance,To irradicate mice for several,12,2020,110.00,33464,28/02/2020,KPIN,MID-ESSEX PEST CONTROL,
Stores,B205,Stocks & WIP (Purchasing & Supply Stores),Cling Film Surgical 100M Roll ,12,2020,12.63,33465,28/02/2020,KPIN,S P SERVICES (UK) LTD,
Stores,B205,Stocks & WIP (Purchasing & Supply Stores),"Dressing. Adhesive, Waterproof",12,2020,29.60,33465,28/02/2020,KPIN,S P SERVICES (UK) LTD,
Stores,B205,Stocks & WIP (Purchasing & Supply Stores),Dressing Burns Water Gel 100 X,12,2020,108.00,33465,28/02/2020,KPIN,S P SERVICES (UK) LTD,
Stores,B205,Stocks & WIP (Purchasing & Supply Stores),"Apron disposable
",12,2020,27.75,33465,28/02/2020,KPIN,S P SERVICES (UK) LTD,,,,
Stores,B205,Stocks & WIP (Purchasing & Supply Stores),Bandage No 1 ,12,2020,8.16,33465,28/02/2020,KPIN,S P SERVICES (UK) LTD,
Stores,B205,Stocks & WIP (Purchasing & Supply Stores),Bandage No2  ,12,2020,7.68,33465,28/02/2020,KPIN,S P SERVICES (UK) LTD,
Stores,B205,Stocks & WIP (Purchasing & Supply Stores),Bandage No 3,12,2020,17.28,33465,28/02/2020,KPIN,S P SERVICES (UK) LTD,
Stores,B205,Stocks & WIP (Purchasing & Supply Stores),Bandage No 4  ,12,2020,12.72,33465,28/02/2020,KPIN,S P SERVICES (UK) LTD,
Stores,B205,Stocks & WIP (Purchasing & Supply Stores),Glove Disposable Purple Nitril,12,2020,84.60,33465,28/02/2020,KPIN,S P SERVICES (UK) LTD,
Stores,B205,Stocks & WIP (Purchasing & Supply Stores),Glove Disposable Purple Nitril,12,2020,56.40,33465,28/02/2020,KPIN,S P SERVICES (UK) LTD,
Stores,B205,Stocks & WIP (Purchasing & Supply Stores),Airway Guedel Disposable. Size,12,2020,2.50,33465,28/02/2020,KPIN,S P SERVICES (UK) LTD,
Stores,B205,Stocks & WIP (Purchasing & Supply Stores),Airway Guedel Disposable. Size,12,2020,2.50,33465,28/02/2020,KPIN,S P SERVICES (UK) LTD,
Stores,B205,Stocks & WIP (Purchasing & Supply Stores),Airway Guedel Disp. Size 1 (Co,12,2020,2.50,33465,28/02/2020,KPIN,S P SERVICES (UK) LTD,
Stores,B205,Stocks & WIP (Purchasing & Supply Stores),Airway Guedel Disp. Size 2 (Co,12,2020,2.50,33465,28/02/2020,KPIN,S P SERVICES (UK) LTD,
Stores,B205,Stocks & WIP (Purchasing & Supply Stores),Airway Guedel Disp. Size 3 (Co,12,2020,2.50,33465,28/02/2020,KPIN,S P SERVICES (UK) LTD,
Stores,B205,Stocks & WIP (Purchasing & Supply Stores),Airway Guedel Disp. Size 4 (Co,12,2020,2.50,33465,28/02/2020,KPIN,S P SERVICES (UK) LTD,
Stores,B205,Stocks & WIP (Purchasing & Supply Stores),NP Airway 6.0mm - green (Basti,12,2020,2.95,33465,28/02/2020,KPIN,S P SERVICES (UK) LTD,
Stores,B205,Stocks & WIP (Purchasing & Supply Stores),NP Airway 6.0mm - green (Basti,12,2020,26.55,33465,28/02/2020,KPIN,S P SERVICES (UK) LTD,
Stores,B205,Stocks & WIP (Purchasing & Supply Stores),NP Airway 7.0mm - Orange (Bast,12,2020,29.50,33465,28/02/2020,KPIN,S P SERVICES (UK) LTD,
Stores,B205,Stocks & WIP (Purchasing & Supply Stores),NP Airway 8.0mm - Red (Bastion,12,2020,29.50,33465,28/02/2020,KPIN,S P SERVICES (UK) LTD,
Stores,B205,Stocks & WIP (Purchasing & Supply Stores),NP Airway 9.0mm - Yellow (Bast,12,2020,29.50,33465,28/02/2020,KPIN,S P SERVICES (UK) LTD,
Property Services,1050,Building Maintenance,To replace broken toilet pan,12,2020,379.97,33466,28/02/2020,KPIN,A T B PLUMBING & BUILDING SERVICES LTD,
Property Services,1050,Building Maintenance,To replace broken toilet seat,12,2020,181.58,33467,28/02/2020,KPIN,A T B PLUMBING & BUILDING SERVICES LTD,
Property Services,1050,Building Maintenance,Refix fascia to rear of traini,12,2020,169.98,33468,28/02/2020,KPIN,A T B PLUMBING & BUILDING SERVICES LTD,
Property Services,1050,Building Maintenance,"Attend station, remove ceiling",12,2020,226.37,33469,28/02/2020,KPIN,A T B PLUMBING & BUILDING SERVICES LTD,
Property Services,1050,Building Maintenance,"OOH Call out, to check loose m",12,2020,223.50,33470,28/02/2020,KPIN,A T B PLUMBING & BUILDING SERVICES LTD,
Training,4111,Subsistence Allowances,Subsistence Allowances,12,2020,-460.00,33471,28/02/2020,KPIN,KENT FIRE & RESCUE SERVICE,
Training,0702,External Training - L&D Panel,External Training - L&D Panel,12,2020,-350.00,33471,28/02/2020,KPIN,KENT FIRE & RESCUE SERVICE,
Training,0702,External Training - L&D Panel,External Training - L&D Panel,12,2020,350.00,33472,28/02/2020,KPIN,KENT FIRE & RESCUE SERVICE,
Training,4111,Subsistence Allowances,Subsistence Allowances,12,2020,460.00,33472,28/02/2020,KPIN,KENT FIRE & RESCUE SERVICE,
Human Resources,0960,Occupational Health,Occupational Health,12,2020,380.00,33473,27/02/2020,KPIN,DR G JACKSON CONSULTING LTD,
Community Safety,4019,Community Safety,Provision of SERP instructor d,12,2020,120.00,33474,28/02/2020,KPIN,TOTAL ADVANCED,
Technical Services,2031,Managed Personal Protective Equipment,CREDIT RE KPIN 31481,12,2020,-1511.00,33475,26/02/2020,KPIN,BRISTOL UNIFORMS LTD RE BRISTOL CARE,
Workshops Management,3201,Petrol and Diesel,Petrol and Diesel,12,2020,2033.18,33478,12/02/2020,KPIN,WATSON FUELS,
Workshops Management,3201,Petrol and Diesel,Petrol and Diesel,12,2020,-2045.93,33479,12/02/2020,KPIN,WATSON FUELS,
Workshops Management,3201,Petrol and Diesel,Petrol and Diesel,12,2020,-1194.12,33480,12/02/2020,KPIN,WATSON FUELS,
Workshops Management,3201,Petrol and Diesel,Petrol and Diesel,12,2020,-995.10,33481,12/02/2020,KPIN,WATSON FUELS,
Service Leadership Team,0190,Secondary Contracts,Secondary Contracts,12,2020,225.00,33482,28/02/2020,KPIN,THINKSAY CREATIVE COMMS LIMITED,
Perf Mgmt & Impr,0180,Casual and Temporary Staff,Casual and Temporary Staff,12,2020,799.20,33483,28/02/2020,KPIN,REED SPECIALIST RECRUITMENT LIMITED,
Finance & Pay,0180,Casual and Temporary Staff,Casual and Temporary Staff,12,2020,795.63,33484,28/02/2020,KPIN,REED SPECIALIST RECRUITMENT LIMITED,
Innovation and Change,0180,Casual and Temporary Staff,Casual and Temporary Staff,12,2020,1407.60,33485,28/02/2020,KPIN,REED SPECIALIST RECRUITMENT LIMITED,
Technical Services,2030,Operational Equipment Support,Medical Oxygen CD Cylinder Ren,12,2020,8.00,33487,27/02/2020,KPIN,B O C LTD,
Operations - USAR,2030,Operational Equipment Support,Oxygen Size Y,12,2020,6.00,33488,27/02/2020,KPIN,B O C LTD,
Operations - USAR,2030,Operational Equipment Support,Oxygen Size W,12,2020,56.00,33488,27/02/2020,KPIN,B O C LTD,
Purchasing & Supply,2024,Cleaning Equipment,6663 Scott Performance Hand To,12,2020,188.85,33489,28/02/2020,KPIN,BUNZL CLEANING & HYGIENE SUPPLIES,
Property Services,1050,Building Maintenance,Refit window handle to high le,12,2020,56.73,33490,27/02/2020,KPIN,NORMAN DAVID MAINTENANCE,
Property Services,1050,Building Maintenance,Fit door restrictor to prevent,12,2020,138.40,33491,27/02/2020,KPIN,NORMAN DAVID MAINTENANCE,
Property Services,1050,Building Maintenance,Check out window to ensure clo,12,2020,141.17,33492,28/02/2020,KPIN,NORMAN DAVID MAINTENANCE,
Property Services,1050,Building Maintenance,To repair/replace door closer ,12,2020,74.04,33493,28/02/2020,KPIN,NORMAN DAVID MAINTENANCE,
Property Services,1050,Building Maintenance,To repair/replace door closer ,12,2020,124.04,33493,28/02/2020,KPIN,NORMAN DAVID MAINTENANCE,
Property Services,1499,Furniture and Fittings,To fix disposable apron dispen,12,2020,60.00,33494,28/02/2020,KPIN,NORMAN DAVID MAINTENANCE,
Property Services,1050,Building Maintenance,To fill hole to prevent ants i,12,2020,80.91,33495,29/02/2020,KPIN,NORMAN DAVID MAINTENANCE,
Human Resources,0960,Occupational Health,Occupational Health,12,2020,45.00,33496,29/02/2020,KPIN,SMART EMPLOYEE EYECARE,
Human Resources,0960,Occupational Health,Occupational Health,12,2020,810.00,33496,29/02/2020,KPIN,SMART EMPLOYEE EYECARE,
Human Resources,0960,Occupational Health,Occupational Health,12,2020,95.00,33496,29/02/2020,KPIN,SMART EMPLOYEE EYECARE,
Human Resources,0960,Occupational Health,Occupational Health,12,2020,312.00,33496,29/02/2020,KPIN,SMART EMPLOYEE EYECARE,
Human Resources,0960,Occupational Health,Occupational Health,12,2020,252.00,33496,29/02/2020,KPIN,SMART EMPLOYEE EYECARE,
Training,4111,Subsistence Allowances,Subsistence Allowances,12,2020,67.50,33497,27/02/2020,KPIN,SARAHS CATERING LIMITED,
Training,4111,Subsistence Allowances,Subsistence Allowances,12,2020,10.00,33497,27/02/2020,KPIN,SARAHS CATERING LIMITED,
Training,4111,Subsistence Allowances,Subsistence Allowances,12,2020,155.25,33497,27/02/2020,KPIN,SARAHS CATERING LIMITED,
Training,4111,Subsistence Allowances,Subsistence Allowances,12,2020,30.00,33497,27/02/2020,KPIN,SARAHS CATERING LIMITED,
Catering,4130,Hospitality & Entertaining,KP MESS CLUB,12,2020,97.94,33498,02/03/2020,KPIN,DIRECT MEATS,
Catering,4130,Hospitality & Entertaining,KP MESS CLUB,12,2020,7.02,33499,02/03/2020,KPIN,DONALD FREESTON,
Property Services,1499,Furniture and Fittings,Request for 2no risers see ema,12,2020,44.51,33500,29/02/2020,KPIN,BATES OFFICE SERVICES LIMITED,
Purchasing & Supply,4001,Stationery,Sharpie China Wax Marker Penci,12,2020,27.00,33501,28/02/2020,KPIN,OFFICE IS LIMITED,
Purchasing & Supply,4001,Stationery,Fineliner 0.4mm Black Pens (Pa,12,2020,1.57,33501,28/02/2020,KPIN,OFFICE IS LIMITED,
Purchasing & Supply,4001,Stationery,Red Medium Ballpoint Pens (Pac,12,2020,1.69,33501,28/02/2020,KPIN,OFFICE IS LIMITED,
Purchasing & Supply,4001,Stationery,Fineliner 0.4mm Red Pens (Pack,12,2020,1.57,33501,28/02/2020,KPIN,OFFICE IS LIMITED,
Purchasing & Supply,4001,Stationery,Evolution Everyday A4 Recycled,12,2020,30.38,33501,28/02/2020,KPIN,OFFICE IS LIMITED,
Purchasing & Supply,4001,Stationery,5 Star Office Ring Binder 2 O-,12,2020,4.77,33501,28/02/2020,KPIN,OFFICE IS LIMITED,
Purchasing & Supply,4001,Stationery,5 Star Value Ball Pens Medium ,12,2020,1.69,33501,28/02/2020,KPIN,OFFICE IS LIMITED,
Purchasing & Supply,4001,Stationery,5 Star Value Permanent Marker ,12,2020,1.76,33501,28/02/2020,KPIN,OFFICE IS LIMITED,
Purchasing & Supply,4001,Stationery,5 Star Value Punched Pocket Po,12,2020,2.06,33501,28/02/2020,KPIN,OFFICE IS LIMITED,
Purchasing & Supply,4001,Stationery,5 Star Office Standard Clipboa,12,2020,2.44,33501,28/02/2020,KPIN,OFFICE IS LIMITED,
Purchasing & Supply,4001,Stationery,5 Star Value Ball Pens Medium ,12,2020,1.69,33501,28/02/2020,KPIN,OFFICE IS LIMITED,
Human Resources,0960,Occupational Health,Occupational Health,12,2020,225.00,33502,29/02/2020,KPIN,CELIA GRAHAM M.A. MBACP,
Catering,4130,Hospitality & Entertaining,KP MESS CLUB,12,2020,113.35,33503,02/03/2020,KPIN,DONALD FREESTON,
Workshops Management,3201,Petrol and Diesel,Petrol and Diesel,12,2020,5103.62,33504,29/02/2020,KPIN,ALLSTAR BUSINESS SOLUTIONS LTD,
Workshops Management,3201,Petrol and Diesel,Petrol and Diesel,12,2020,-5103.62,33504,29/02/2020,KPIN,ALLSTAR BUSINESS SOLUTIONS LTD,
Property Services,1050,Building Maintenance,Lack of heating (as per phone ,12,2020,85.75,33505,26/02/2020,KPIN,BALM & DAVIES LTD,
Property Services,1050,Building Maintenance,No hot water & heating,12,2020,128.63,33506,26/02/2020,KPIN,BALM & DAVIES LTD,
Property Services,1050,Building Maintenance,Tea/water boiler in Community ,12,2020,64.31,33507,26/02/2020,KPIN,BALM & DAVIES LTD,
Property Services,1050,Building Maintenance,Boiler leaking - possible expa,12,2020,300.85,33508,26/02/2020,KPIN,BALM & DAVIES LTD,
Property Services,1050,Building Maintenance,Replacement tap to water/tea b,12,2020,210.01,33509,26/02/2020,KPIN,BALM & DAVIES LTD,
Property Services,1050,Building Maintenance,Q190-5422 replace a defective ,12,2020,946.46,33510,26/02/2020,KPIN,BALM & DAVIES LTD,
Property Services,1050,Building Maintenance,To replace defective de-strat ,12,2020,399.50,33511,26/02/2020,KPIN,BALM & DAVIES LTD,
Property Services,1050,Building Maintenance,To supply and istall replaceme,12,2020,545.12,33512,26/02/2020,KPIN,BALM & DAVIES LTD,
Property Services,1050,Building Maintenance,To install backflow prevention,12,2020,235.00,33513,26/02/2020,KPIN,BALM & DAVIES LTD,
Property Services,1040,Planned Works,Catering Equipment Gas Testing,12,2020,215.00,33514,27/02/2020,KPIN,ESSEX HEATING SOLUTIONS LIMITED,
Property Services,1050,Building Maintenance,PAC lock to front door - unabl,12,2020,192.50,33515,28/02/2020,KPIN,BLAKE CONTRACTORS LTD,
Property Services,1050,Building Maintenance,OOH call out on 25/11/19 at 22,12,2020,116.88,33516,28/02/2020,KPIN,BLAKE CONTRACTORS LTD,
Property Services,1050,Building Maintenance,Please adjust door closer to k,12,2020,127.50,33517,28/02/2020,KPIN,BLAKE CONTRACTORS LTD,
Workshops Management,3201,Petrol and Diesel,Petrol and Diesel,12,2020,1186.68,33518,12/02/2020,KPIN,WATSON FUELS,
Workshops Management,3201,Petrol and Diesel,Petrol and Diesel,12,2020,988.90,33519,12/02/2020,KPIN,WATSON FUELS,
Workshops Management,3201,Petrol and Diesel,Petrol and Diesel,12,2020,1394.40,33520,27/02/2020,KPIN,WATSON FUELS,
Property Services,1050,Building Maintenance,Intruder alarm bleeping (comin,12,2020,315.88,33521,28/02/2020,KPIN,BLAKE CONTRACTORS LTD,
Purchasing & Supply,1310,Cleaning products,Hostess 320 Toilet Tissue Roll,12,2020,91.80,33522,28/02/2020,KPIN,BUNZL CLEANING & HYGIENE SUPPLIES,
Purchasing & Supply,1310,Cleaning products,Purell Hand Sanitising Gel VF4,12,2020,50.96,33523,28/02/2020,KPIN,BUNZL CLEANING & HYGIENE SUPPLIES,
Not Analysed,B113,Fixed Assets Under Construction Vehicles,Cyclescheme 2019-20,12,2020,591.67,33524,02/03/2020,KPIN,CYCLESCHEME LTD,
Stores,B205,Stocks & WIP (Purchasing & Supply Stores),OFFICE IS CALCULATOR DT10D/760,12,2020,3.45,33525,28/02/2020,KPIN,OFFICE IS LIMITED,
Stores,B205,Stocks & WIP (Purchasing & Supply Stores),New Guardian Envelopes Interna,12,2020,87.24,33525,28/02/2020,KPIN,OFFICE IS LIMITED,
Stores,B205,Stocks & WIP (Purchasing & Supply Stores),Durable Screenclean Tub Cleani,12,2020,51.90,33525,28/02/2020,KPIN,OFFICE IS LIMITED,
Stores,B205,Stocks & WIP (Purchasing & Supply Stores),5 Star Value Repositionable No,12,2020,4.59,33525,28/02/2020,KPIN,OFFICE IS LIMITED,
Stores,B205,Stocks & WIP (Purchasing & Supply Stores),5 Star Value Repositionable No,12,2020,6.69,33525,28/02/2020,KPIN,OFFICE IS LIMITED,
Stores,B205,Stocks & WIP (Purchasing & Supply Stores),Evolution Everyday A4 Recycled,12,2020,607.60,33525,28/02/2020,KPIN,OFFICE IS LIMITED,
Stores,B205,Stocks & WIP (Purchasing & Supply Stores),Sharpie China Wax Marker Penci,12,2020,67.50,33525,28/02/2020,KPIN,OFFICE IS LIMITED,
Stores,B205,Stocks & WIP (Purchasing & Supply Stores),OFFICE IS SCISSORS 210MM,12,2020,2.64,33525,28/02/2020,KPIN,OFFICE IS LIMITED,
Purchasing & Supply,4001,Stationery,Evolution Everyday A4 Recycled,12,2020,45.57,33526,28/02/2020,KPIN,OFFICE IS LIMITED,
Purchasing & Supply,4001,Stationery,Bostik Blu-Tack Handy Pack 60g,12,2020,3.78,33527,28/02/2020,KPIN,OFFICE IS LIMITED,
Purchasing & Supply,4001,Stationery,Evolution Everyday A4 Recycled,12,2020,30.38,33527,28/02/2020,KPIN,OFFICE IS LIMITED,
Purchasing & Supply,4001,Stationery,5 Star Value Permanent Marker ,12,2020,1.76,33527,28/02/2020,KPIN,OFFICE IS LIMITED,
Purchasing & Supply,4001,Stationery,Sharpie China Wax Marker Penci,12,2020,13.50,33527,28/02/2020,KPIN,OFFICE IS LIMITED,
ICT,2510,IT Communications,DATA / CALL CHARGES,12,2020,49.50,33529,24/02/2020,KPIN,VODAFONE LIMITED,
Stores,B205,Stocks & WIP (Purchasing & Supply Stores),"Blizzard Survival blanket, Ora",12,2020,212.50,33530,28/02/2020,KPIN,BLIZZARD PROTECTION SYTEMS LTD,
Stores,B205,Stocks & WIP (Purchasing & Supply Stores),Freight Misc,12,2020,7.00,33530,28/02/2020,KPIN,BLIZZARD PROTECTION SYTEMS LTD,
Property Services,2903,Consultancy Fees,Mediation - Prop Servs 28/2/20,12,2020,1175.00,33531,02/03/2020,KPIN,UK MEDIATION LTD,
Property Services,1050,Building Maintenance,Barrier monitor - no communica,12,2020,1185.75,33532,28/02/2020,KPIN,BLAKE CONTRACTORS LTD,
ICT,4005,IT Consumables,installation of presentation s,12,2020,1226.34,33534,02/03/2020,KPIN,C S ELECTRICAL ESSEX LTD,
Property Services,1330,Building Cleaning,Waste Collection - February,12,2020,47.12,33535,29/02/2020,KPIN,GREEN RECYCLING LIMITED,
Not Analysed,B118,Asset Protection,1920-446 Demoltion of Durwards,12,2020,2590.59,33536,02/03/2020,KPIN,BROMLEY DEMOLITION COMPANY LIMITED,
Property Services,1050,Building Maintenance,To tests samples delivered by ,12,2020,9.00,33537,28/02/2020,KPIN,CAVENDISH LABORATORIES LIMITED,
Property Services,1050,Building Maintenance,To tests samples delivered by ,12,2020,9.00,33537,28/02/2020,KPIN,CAVENDISH LABORATORIES LIMITED,
Property Services,1050,Building Maintenance,Roof repairs following storm d,12,2020,4159.75,33538,28/02/2020,KPIN,MANSARD ROOFING LTD,
Property Services,1050,Building Maintenance,Sink slow to drain please clea,12,2020,88.00,33539,02/03/2020,KPIN,ARVON DRAIN CLEARING,
Property Services,1050,Building Maintenance,WC blocked (Control),12,2020,88.00,33539,02/03/2020,KPIN,ARVON DRAIN CLEARING,
Property Services,1050,Building Maintenance,To clear both 1st floor toilet,12,2020,110.00,33539,02/03/2020,KPIN,ARVON DRAIN CLEARING,
Property Services,1050,Building Maintenance,2no sinks in BA Room blocked,12,2020,88.00,33540,02/03/2020,KPIN,ARVON DRAIN CLEARING,
Property Services,1050,Building Maintenance,To clear blocked external drai,12,2020,110.00,33540,02/03/2020,KPIN,ARVON DRAIN CLEARING,
Property Services,1050,Building Maintenance,To clear blocked toilet,12,2020,88.00,33540,02/03/2020,KPIN,ARVON DRAIN CLEARING,
Property Services,1050,Building Maintenance,Disabled WC blocked  Community,12,2020,88.00,33540,02/03/2020,KPIN,ARVON DRAIN CLEARING,
Training,0707,Operational Training Contracts,Coach travel for 18 passengers,12,2020,550.00,33541,02/03/2020,KPIN,FLAGFINDERS CTB LTD,
Training,0707,Operational Training Contracts,Coach travel for 18 passengers,12,2020,550.00,33541,02/03/2020,KPIN,FLAGFINDERS CTB LTD,
Property Services,1330,Building Cleaning,Waste Collection - February,12,2020,76.56,33542,29/02/2020,KPIN,GREEN RECYCLING LIMITED,
Property Services,1330,Building Cleaning,Waste Collection - February,12,2020,54.80,33543,29/02/2020,KPIN,GREEN RECYCLING LIMITED,
Property Services,1330,Building Cleaning,Waste Collection - February,12,2020,114.92,33544,29/02/2020,KPIN,GREEN RECYCLING LIMITED,
Property Services,1330,Building Cleaning,Waste Collection - February,12,2020,421.40,33545,29/02/2020,KPIN,GREEN RECYCLING LIMITED,
Property Services,1330,Building Cleaning,Waste Collection - February,12,2020,160.68,33546,29/02/2020,KPIN,GREEN RECYCLING LIMITED,
Property Services,1330,Building Cleaning,Waste Collection - February,12,2020,69.32,33547,29/02/2020,KPIN,GREEN RECYCLING LIMITED,
Property Services,1330,Building Cleaning,Waste Collection - February,12,2020,45.04,33548,29/02/2020,KPIN,GREEN RECYCLING LIMITED,
Property Services,1330,Building Cleaning,Waste Collection - February,12,2020,47.12,33549,29/02/2020,KPIN,GREEN RECYCLING LIMITED,
Property Services,1330,Building Cleaning,Waste Collection - February,12,2020,42.88,33550,29/02/2020,KPIN,GREEN RECYCLING LIMITED,
Property Services,1330,Building Cleaning,Waste Collection - February,12,2020,38.64,33551,29/02/2020,KPIN,GREEN RECYCLING LIMITED,
Property Services,1330,Building Cleaning,Waste Collection - February,12,2020,130.92,33552,29/02/2020,KPIN,GREEN RECYCLING LIMITED,
Property Services,1330,Building Cleaning,Waste Collection - February,12,2020,154.88,33553,29/02/2020,KPIN,GREEN RECYCLING LIMITED,
Property Services,1330,Building Cleaning,Waste Collection - February,12,2020,148.40,33554,29/02/2020,KPIN,GREEN RECYCLING LIMITED,
Property Services,1330,Building Cleaning,Waste Collection - February,12,2020,54.80,33555,29/02/2020,KPIN,GREEN RECYCLING LIMITED,
Property Services,1330,Building Cleaning,Waste Collection - February,12,2020,53.60,33556,29/02/2020,KPIN,GREEN RECYCLING LIMITED,
Property Services,1330,Building Cleaning,Waste Collection - February,12,2020,59.16,33557,29/02/2020,KPIN,GREEN RECYCLING LIMITED,
Property Services,1330,Building Cleaning,Waste Collection - FS41433,12,2020,38.64,33558,29/02/2020,KPIN,GREEN RECYCLING LIMITED,
Property Services,1330,Building Cleaning,Waste Collection - FS41433,12,2020,54.80,33559,29/02/2020,KPIN,GREEN RECYCLING LIMITED,
Property Services,1330,Building Cleaning,Waste Collection - February,12,2020,104.88,33560,29/02/2020,KPIN,GREEN RECYCLING LIMITED,
Property Services,1330,Building Cleaning,Waste Collection - February,12,2020,52.72,33561,29/02/2020,KPIN,GREEN RECYCLING LIMITED,
Property Services,1330,Building Cleaning,Waste Collection - February,12,2020,100.48,33562,29/02/2020,KPIN,GREEN RECYCLING LIMITED,
Property Services,1330,Building Cleaning,Waste Collection - February,12,2020,40.68,33563,29/02/2020,KPIN,GREEN RECYCLING LIMITED,
Property Services,1330,Building Cleaning,Waste Collection - February,12,2020,53.60,33564,29/02/2020,KPIN,GREEN RECYCLING LIMITED,
Property Services,1330,Building Cleaning,Waste Collection - February,12,2020,38.64,33565,29/02/2020,KPIN,GREEN RECYCLING LIMITED,
Property Services,1330,Building Cleaning,Waste Collection - February,12,2020,42.88,33566,29/02/2020,KPIN,GREEN RECYCLING LIMITED,
Property Services,1330,Building Cleaning,Waste Collection - February,12,2020,59.16,33567,29/02/2020,KPIN,GREEN RECYCLING LIMITED,
Property Services,1330,Building Cleaning,Waste Collection - February,12,2020,53.60,33568,29/02/2020,KPIN,GREEN RECYCLING LIMITED,
Property Services,1330,Building Cleaning,Waste Collection - February,12,2020,113.44,33569,29/02/2020,KPIN,GREEN RECYCLING LIMITED,
Property Services,1330,Building Cleaning,Waste Collection - February,12,2020,43.12,33570,29/02/2020,KPIN,GREEN RECYCLING LIMITED,
Property Services,1330,Building Cleaning,Waste Collection - February,12,2020,57.08,33571,29/02/2020,KPIN,GREEN RECYCLING LIMITED,
Property Services,1330,Building Cleaning,Waste Collection - February,12,2020,100.48,33572,29/02/2020,KPIN,GREEN RECYCLING LIMITED,
Property Services,1330,Building Cleaning,Waste Collection - February,12,2020,104.88,33573,29/02/2020,KPIN,GREEN RECYCLING LIMITED,
Property Services,1330,Building Cleaning,Waste Collection - February,12,2020,104.88,33574,29/02/2020,KPIN,GREEN RECYCLING LIMITED,
Property Services,1330,Building Cleaning,Waste Collection - February,12,2020,877.40,33575,29/02/2020,KPIN,GREEN RECYCLING LIMITED,
Property Services,1330,Building Cleaning,Waste Collection - February,12,2020,52.72,33576,29/02/2020,KPIN,GREEN RECYCLING LIMITED,
Property Services,1330,Building Cleaning,Waste Collection - February,12,2020,54.80,33577,29/02/2020,KPIN,GREEN RECYCLING LIMITED,
Property Services,1330,Building Cleaning,Waste Collection - February,12,2020,24.96,33578,29/02/2020,KPIN,GREEN RECYCLING LIMITED,
Property Services,1330,Building Cleaning,Waste Collection - February,12,2020,45.00,33579,29/02/2020,KPIN,GREEN RECYCLING LIMITED,
Property Services,1330,Building Cleaning,Waste Collecrion - FS41433,12,2020,104.72,33580,29/02/2020,KPIN,GREEN RECYCLING LIMITED,
Property Services,1330,Building Cleaning,Waste Collection - February,12,2020,54.80,33581,29/02/2020,KPIN,GREEN RECYCLING LIMITED,
Property Services,1330,Building Cleaning,Waste Collection - February,12,2020,38.64,33582,29/02/2020,KPIN,GREEN RECYCLING LIMITED,
Property Services,1330,Building Cleaning,Waste Collection - February,12,2020,167.90,33583,29/02/2020,KPIN,GREEN RECYCLING LIMITED,
Property Services,1330,Building Cleaning,Waste Collection - February,12,2020,40.76,33584,29/02/2020,KPIN,GREEN RECYCLING LIMITED,
Property Services,1330,Building Cleaning,Waste Collection - February,12,2020,38.64,33585,29/02/2020,KPIN,GREEN RECYCLING LIMITED,
Property Services,1330,Building Cleaning,Waste Collection - February,12,2020,204.56,33586,29/02/2020,KPIN,GREEN RECYCLING LIMITED,
Property Services,1330,Building Cleaning,Waste Collection - February,12,2020,40.76,33587,29/02/2020,KPIN,GREEN RECYCLING LIMITED,
Property Services,1330,Building Cleaning,Waste Collection - February,12,2020,57.08,33588,29/02/2020,KPIN,GREEN RECYCLING LIMITED,
Property Services,1330,Building Cleaning,CONTRA FOR KPIN 33748,12,2020,114.37,33589,29/02/2020,KPIN,GREEN RECYCLING LIMITED,
Property Services,1060,Grounds Maintenance,Daily Skip Rental,12,2020,42.30,33590,29/02/2020,KPIN,GREEN RECYCLING LIMITED,
Stores,B205,Stocks & WIP (Purchasing & Supply Stores),"Water Still, Bottled 0.5L (Pal",12,2020,750.00,33591,24/02/2020,KPIN,WATER DIRECT LIMITED,
Corporate Comms,6822,Ceremonies,Passing Out Parade,12,2020,190.00,33600,02/03/2020,KPIN,UNITRONICS VIDEO PRODUCTION,
Training,0715,In House Operational Training,In House Operational Training,12,2020,190.00,33600,02/03/2020,KPIN,UNITRONICS VIDEO PRODUCTION,
Training,0715,In House Operational Training,In House Operational Training,12,2020,-190.00,33600,02/03/2020,KPIN,UNITRONICS VIDEO PRODUCTION,
Training,B217,Payments in Advance,Product is 24 x licences Apr20,12,2020,8400.00,33601,28/02/2020,KPIN,GO MAD THINKING,
Training,0710,Organisational Development,Organisational Development,12,2020,8400.00,33601,28/02/2020,KPIN,GO MAD THINKING,
Training,0710,Organisational Development,Organisational Development,12,2020,-8400.00,33601,28/02/2020,KPIN,GO MAD THINKING,
Property Services,2903,Consultancy Fees,Carry out structural investgat,12,2020,750.00,33602,27/02/2020,KPIN,INGLETON WOOD LLP,
Training,0707,Operational Training Contracts,Hire Legacy Course - April20,12,2020,-3450.00,33603,25/02/2020,KPIN,LEE VALLEY LEISURE TRUST LIMITED,
Training,B217,Payments in Advance,Hire Legacy Course - April20,12,2020,3450.00,33603,25/02/2020,KPIN,LEE VALLEY LEISURE TRUST LIMITED,
Training,0707,Operational Training Contracts,Hire Legacy Course - April20,12,2020,3450.00,33603,25/02/2020,KPIN,LEE VALLEY LEISURE TRUST LIMITED,
Property Services,1060,Grounds Maintenance,Grounds Maintenance - February,12,2020,26.64,33604,28/02/2020,KPIN,MITIE LANDSCAPES LIMITED,
Property Services,1060,Grounds Maintenance,Grounds Maintenance - February,12,2020,43.88,33604,28/02/2020,KPIN,MITIE LANDSCAPES LIMITED,
Property Services,1060,Grounds Maintenance,Grounds Maintenance - February,12,2020,86.65,33604,28/02/2020,KPIN,MITIE LANDSCAPES LIMITED,
Property Services,1060,Grounds Maintenance,Grounds Maintenance - February,12,2020,55.04,33604,28/02/2020,KPIN,MITIE LANDSCAPES LIMITED,
Property Services,1060,Grounds Maintenance,Grounds Maintenance - February,12,2020,45.54,33604,28/02/2020,KPIN,MITIE LANDSCAPES LIMITED,
Property Services,1060,Grounds Maintenance,Grounds Maintenance - February,12,2020,167.77,33604,28/02/2020,KPIN,MITIE LANDSCAPES LIMITED,
Property Services,1060,Grounds Maintenance,Grounds Maintenance - February,12,2020,36.84,33604,28/02/2020,KPIN,MITIE LANDSCAPES LIMITED,
Property Services,1060,Grounds Maintenance,Grounds Maintenance - February,12,2020,36.84,33604,28/02/2020,KPIN,MITIE LANDSCAPES LIMITED,
Property Services,1060,Grounds Maintenance,Grounds Maintenance - February,12,2020,88.86,33604,28/02/2020,KPIN,MITIE LANDSCAPES LIMITED,
Property Services,1060,Grounds Maintenance,Grounds Maintenance - February,12,2020,70.92,33604,28/02/2020,KPIN,MITIE LANDSCAPES LIMITED,
Property Services,1060,Grounds Maintenance,Grounds Maintenance - February,12,2020,86.65,33604,28/02/2020,KPIN,MITIE LANDSCAPES LIMITED,
Property Services,1060,Grounds Maintenance,Grounds Maintenance - February,12,2020,61.74,33604,28/02/2020,KPIN,MITIE LANDSCAPES LIMITED,
Property Services,1060,Grounds Maintenance,Grounds Maintenance - February,12,2020,55.04,33604,28/02/2020,KPIN,MITIE LANDSCAPES LIMITED,
Property Services,1060,Grounds Maintenance,Grounds Maintenance - February,12,2020,36.84,33604,28/02/2020,KPIN,MITIE LANDSCAPES LIMITED,
Property Services,1060,Grounds Maintenance,Grounds Maintenance - February,12,2020,44.65,33604,28/02/2020,KPIN,MITIE LANDSCAPES LIMITED,
Property Services,1060,Grounds Maintenance,Grounds Maintenance - February,12,2020,23.87,33604,28/02/2020,KPIN,MITIE LANDSCAPES LIMITED,
Property Services,1060,Grounds Maintenance,Grounds Maintenance - February,12,2020,101.27,33604,28/02/2020,KPIN,MITIE LANDSCAPES LIMITED,
Property Services,1060,Grounds Maintenance,Grounds Maintenance - February,12,2020,33.60,33604,28/02/2020,KPIN,MITIE LANDSCAPES LIMITED,
Property Services,1060,Grounds Maintenance,Grounds Maintenance - February,12,2020,36.84,33604,28/02/2020,KPIN,MITIE LANDSCAPES LIMITED,
Property Services,1060,Grounds Maintenance,Grounds Maintenance - February,12,2020,19.53,33604,28/02/2020,KPIN,MITIE LANDSCAPES LIMITED,
Property Services,1060,Grounds Maintenance,Grounds Maintenance - February,12,2020,30.36,33604,28/02/2020,KPIN,MITIE LANDSCAPES LIMITED,
Property Services,1060,Grounds Maintenance,Grounds Maintenance - February,12,2020,86.65,33604,28/02/2020,KPIN,MITIE LANDSCAPES LIMITED,
Property Services,1060,Grounds Maintenance,Grounds Maintenance - February,12,2020,19.53,33604,28/02/2020,KPIN,MITIE LANDSCAPES LIMITED,
Property Services,1060,Grounds Maintenance,Grounds Maintenance - February,12,2020,344.39,33604,28/02/2020,KPIN,MITIE LANDSCAPES LIMITED,
Property Services,1060,Grounds Maintenance,Grounds Maintenance - February,12,2020,39.05,33604,28/02/2020,KPIN,MITIE LANDSCAPES LIMITED,
Property Services,1060,Grounds Maintenance,Grounds Maintenance - February,12,2020,362.61,33604,28/02/2020,KPIN,MITIE LANDSCAPES LIMITED,
Property Services,1060,Grounds Maintenance,Grounds Maintenance - February,12,2020,54.54,33604,28/02/2020,KPIN,MITIE LANDSCAPES LIMITED,
Property Services,1060,Grounds Maintenance,Grounds Maintenance - February,12,2020,18.42,33604,28/02/2020,KPIN,MITIE LANDSCAPES LIMITED,
Property Services,1060,Grounds Maintenance,Grounds Maintenance - February,12,2020,9.76,33604,28/02/2020,KPIN,MITIE LANDSCAPES LIMITED,
Property Services,1060,Grounds Maintenance,Grounds Maintenance - February,12,2020,43.32,33604,28/02/2020,KPIN,MITIE LANDSCAPES LIMITED,
Property Services,1060,Grounds Maintenance,Grounds Maintenance - February,12,2020,22.77,33604,28/02/2020,KPIN,MITIE LANDSCAPES LIMITED,
Property Services,1060,Grounds Maintenance,Grounds Maintenance - February,12,2020,57.40,33604,28/02/2020,KPIN,MITIE LANDSCAPES LIMITED,
Property Services,1060,Grounds Maintenance,Grounds Maintenance - February,12,2020,32.57,33604,28/02/2020,KPIN,MITIE LANDSCAPES LIMITED,
Property Services,1060,Grounds Maintenance,Grounds Maintenance - February,12,2020,18.42,33604,28/02/2020,KPIN,MITIE LANDSCAPES LIMITED,
Property Services,1060,Grounds Maintenance,Grounds Maintenance - February,12,2020,53.12,33604,28/02/2020,KPIN,MITIE LANDSCAPES LIMITED,
Property Services,1060,Grounds Maintenance,Grounds Maintenance - February,12,2020,113.69,33604,28/02/2020,KPIN,MITIE LANDSCAPES LIMITED,
Property Services,1060,Grounds Maintenance,Grounds Maintenance - February,12,2020,79.06,33604,28/02/2020,KPIN,MITIE LANDSCAPES LIMITED,
Property Services,1060,Grounds Maintenance,Grounds Maintenance - February,12,2020,39.05,33604,28/02/2020,KPIN,MITIE LANDSCAPES LIMITED,
Property Services,1060,Grounds Maintenance,Grounds Maintenance - February,12,2020,36.84,33604,28/02/2020,KPIN,MITIE LANDSCAPES LIMITED,
Property Services,1060,Grounds Maintenance,Grounds Maintenance - February,12,2020,-53.12,33604,28/02/2020,KPIN,MITIE LANDSCAPES LIMITED,
Property Services,1060,Grounds Maintenance,Grounds Maintenance - February,12,2020,113.69,33604,28/02/2020,KPIN,MITIE LANDSCAPES LIMITED,
Property Services,1060,Grounds Maintenance,Grounds Maintenance - February,12,2020,-39.05,33604,28/02/2020,KPIN,MITIE LANDSCAPES LIMITED,
Property Services,1060,Grounds Maintenance,Grounds Maintenance - February,12,2020,53.12,33604,28/02/2020,KPIN,MITIE LANDSCAPES LIMITED,
Property Services,1060,Grounds Maintenance,Grounds Maintenance - February,12,2020,-113.69,33604,28/02/2020,KPIN,MITIE LANDSCAPES LIMITED,
Property Services,1060,Grounds Maintenance,Grounds Maintenance - February,12,2020,39.05,33604,28/02/2020,KPIN,MITIE LANDSCAPES LIMITED,
Property Services,1060,Grounds Maintenance,Grounds Maintenance - February,12,2020,-36.84,33604,28/02/2020,KPIN,MITIE LANDSCAPES LIMITED,
Property Services,1060,Grounds Maintenance,Grounds Maintenance - January,12,2020,26.64,33605,28/02/2020,KPIN,MITIE LANDSCAPES LIMITED,
Property Services,1060,Grounds Maintenance,Grounds Maintenance - January,12,2020,43.88,33605,28/02/2020,KPIN,MITIE LANDSCAPES LIMITED,
Property Services,1060,Grounds Maintenance,Grounds Maintenance - January,12,2020,86.65,33605,28/02/2020,KPIN,MITIE LANDSCAPES LIMITED,
Property Services,1060,Grounds Maintenance,Grounds Maintenance - January,12,2020,55.04,33605,28/02/2020,KPIN,MITIE LANDSCAPES LIMITED,
Property Services,1060,Grounds Maintenance,Grounds Maintenance - January,12,2020,45.54,33605,28/02/2020,KPIN,MITIE LANDSCAPES LIMITED,
Property Services,1060,Grounds Maintenance,Grounds Maintenance - January,12,2020,167.77,33605,28/02/2020,KPIN,MITIE LANDSCAPES LIMITED,
Property Services,1060,Grounds Maintenance,Grounds Maintenance - January,12,2020,36.84,33605,28/02/2020,KPIN,MITIE LANDSCAPES LIMITED,
Property Services,1060,Grounds Maintenance,Grounds Maintenance - January,12,2020,36.84,33605,28/02/2020,KPIN,MITIE LANDSCAPES LIMITED,
Property Services,1060,Grounds Maintenance,Grounds Maintenance - January,12,2020,86.65,33605,28/02/2020,KPIN,MITIE LANDSCAPES LIMITED,
Property Services,1060,Grounds Maintenance,Grounds Maintenance - January,12,2020,61.74,33605,28/02/2020,KPIN,MITIE LANDSCAPES LIMITED,
Property Services,1060,Grounds Maintenance,Grounds Maintenance - January,12,2020,55.04,33605,28/02/2020,KPIN,MITIE LANDSCAPES LIMITED,
Property Services,1060,Grounds Maintenance,Grounds Maintenance - January,12,2020,36.84,33605,28/02/2020,KPIN,MITIE LANDSCAPES LIMITED,
Property Services,1060,Grounds Maintenance,Grounds Maintenance - January,12,2020,44.65,33605,28/02/2020,KPIN,MITIE LANDSCAPES LIMITED,
Property Services,1060,Grounds Maintenance,Grounds Maintenance - January,12,2020,23.87,33605,28/02/2020,KPIN,MITIE LANDSCAPES LIMITED,
Property Services,1060,Grounds Maintenance,Grounds Maintenance - January,12,2020,101.27,33605,28/02/2020,KPIN,MITIE LANDSCAPES LIMITED,
Property Services,1060,Grounds Maintenance,Grounds Maintenance - January,12,2020,33.60,33605,28/02/2020,KPIN,MITIE LANDSCAPES LIMITED,
Property Services,1060,Grounds Maintenance,Grounds Maintenance - January,12,2020,36.84,33605,28/02/2020,KPIN,MITIE LANDSCAPES LIMITED,
Property Services,1060,Grounds Maintenance,Grounds Maintenance - January,12,2020,19.53,33605,28/02/2020,KPIN,MITIE LANDSCAPES LIMITED,
Property Services,1060,Grounds Maintenance,Grounds Maintenance - January,12,2020,30.36,33605,28/02/2020,KPIN,MITIE LANDSCAPES LIMITED,
Property Services,1060,Grounds Maintenance,Grounds Maintenance - January,12,2020,86.65,33605,28/02/2020,KPIN,MITIE LANDSCAPES LIMITED,
Property Services,1060,Grounds Maintenance,Grounds Maintenance - January,12,2020,18.42,33605,28/02/2020,KPIN,MITIE LANDSCAPES LIMITED,
Property Services,1060,Grounds Maintenance,Grounds Maintenance - January,12,2020,9.76,33605,28/02/2020,KPIN,MITIE LANDSCAPES LIMITED,
Property Services,1060,Grounds Maintenance,Grounds Maintenance - January,12,2020,43.32,33605,28/02/2020,KPIN,MITIE LANDSCAPES LIMITED,
Property Services,1060,Grounds Maintenance,Grounds Maintenance - January,12,2020,22.77,33605,28/02/2020,KPIN,MITIE LANDSCAPES LIMITED,
Property Services,1060,Grounds Maintenance,Grounds Maintenance - January,12,2020,57.40,33605,28/02/2020,KPIN,MITIE LANDSCAPES LIMITED,
Property Services,1060,Grounds Maintenance,Grounds Maintenance - January,12,2020,32.57,33605,28/02/2020,KPIN,MITIE LANDSCAPES LIMITED,
Property Services,1060,Grounds Maintenance,Grounds Maintenance - January,12,2020,19.53,33605,28/02/2020,KPIN,MITIE LANDSCAPES LIMITED,
Property Services,1060,Grounds Maintenance,Grounds Maintenance - January,12,2020,18.42,33605,28/02/2020,KPIN,MITIE LANDSCAPES LIMITED,
Property Services,1060,Grounds Maintenance,Grounds Maintenance - January,12,2020,344.39,33605,28/02/2020,KPIN,MITIE LANDSCAPES LIMITED,
Property Services,1060,Grounds Maintenance,Grounds Maintenance - January,12,2020,53.12,33605,28/02/2020,KPIN,MITIE LANDSCAPES LIMITED,
Property Services,1060,Grounds Maintenance,Grounds Maintenance - January,12,2020,88.86,33605,28/02/2020,KPIN,MITIE LANDSCAPES LIMITED,
Property Services,1060,Grounds Maintenance,Grounds Maintenance - January,12,2020,70.92,33605,28/02/2020,KPIN,MITIE LANDSCAPES LIMITED,
Property Services,1060,Grounds Maintenance,Grounds Maintenance - January,12,2020,39.05,33605,28/02/2020,KPIN,MITIE LANDSCAPES LIMITED,
Property Services,1060,Grounds Maintenance,Grounds Maintenance - January,12,2020,113.69,33605,28/02/2020,KPIN,MITIE LANDSCAPES LIMITED,
Property Services,1060,Grounds Maintenance,Grounds Maintenance - January,12,2020,362.61,33605,28/02/2020,KPIN,MITIE LANDSCAPES LIMITED,
Property Services,1060,Grounds Maintenance,Grounds Maintenance - January,12,2020,79.06,33605,28/02/2020,KPIN,MITIE LANDSCAPES LIMITED,
Property Services,1060,Grounds Maintenance,Grounds Maintenance - January,12,2020,54.54,33605,28/02/2020,KPIN,MITIE LANDSCAPES LIMITED,
Property Services,1060,Grounds Maintenance,Grounds Maintenance - January,12,2020,39.05,33605,28/02/2020,KPIN,MITIE LANDSCAPES LIMITED,
Property Services,1060,Grounds Maintenance,Grounds Maintenance - January,12,2020,-53.12,33605,28/02/2020,KPIN,MITIE LANDSCAPES LIMITED,
Property Services,1060,Grounds Maintenance,Grounds Maintenance - January,12,2020,53.12,33605,28/02/2020,KPIN,MITIE LANDSCAPES LIMITED,
Property Services,1060,Grounds Maintenance,Grounds Maintenance - January,12,2020,-113.69,33605,28/02/2020,KPIN,MITIE LANDSCAPES LIMITED,
Property Services,1060,Grounds Maintenance,Grounds Maintenance - January,12,2020,113.69,33605,28/02/2020,KPIN,MITIE LANDSCAPES LIMITED,
Property Services,1060,Grounds Maintenance,Grounds Maintenance - January,12,2020,-39.05,33605,28/02/2020,KPIN,MITIE LANDSCAPES LIMITED,
Property Services,1060,Grounds Maintenance,Grounds Maintenance - January,12,2020,39.05,33605,28/02/2020,KPIN,MITIE LANDSCAPES LIMITED,
Property Services,1060,Grounds Maintenance,Grounds Maintenance - January,12,2020,-36.84,33605,28/02/2020,KPIN,MITIE LANDSCAPES LIMITED,
Property Services,1060,Grounds Maintenance,Grounds Maintenance - January,12,2020,36.84,33605,28/02/2020,KPIN,MITIE LANDSCAPES LIMITED,
ICT,4005,IT Consumables,RS PRO 3V PCB Mount Magnetic B,12,2020,18.90,33606,07/02/2020,KPIN,R S COMPONENTS LTD,
ICT,4005,IT Consumables,RS PRO 10�F Electrolytic Capac,12,2020,3.69,33606,07/02/2020,KPIN,R S COMPONENTS LTD,
ICT,4005,IT Consumables,Capacitor Al Electrolytic 10uF,12,2020,2.35,33606,07/02/2020,KPIN,R S COMPONENTS LTD,
ICT,4005,IT Consumables,Capacitor Al Electrolytic 10uF,12,2020,0.59,33606,07/02/2020,KPIN,R S COMPONENTS LTD,
ICT,4005,IT Consumables,Panasonic 10�F Electrolytic Ca,12,2020,8.60,33606,07/02/2020,KPIN,R S COMPONENTS LTD,
ICT,4005,IT Consumables,RS PRO 2200�F Electrolytic Cap,12,2020,3.31,33606,07/02/2020,KPIN,R S COMPONENTS LTD,
ICT,4005,IT Consumables,Panasonic 2200�F Electrolytic ,12,2020,3.96,33606,07/02/2020,KPIN,R S COMPONENTS LTD,
ICT,4005,IT Consumables,Panasonic 1800�F Electrolytic ,12,2020,2.71,33606,07/02/2020,KPIN,R S COMPONENTS LTD,
ICT,4005,IT Consumables,RS PRO 6.8�F Electrolytic Capa,12,2020,3.31,33606,07/02/2020,KPIN,R S COMPONENTS LTD,
ICT,4005,IT Consumables,RS PRO 33�F Electrolytic Capac,12,2020,4.04,33606,07/02/2020,KPIN,R S COMPONENTS LTD,
ICT,4005,IT Consumables,RS PRO 2700�F Electrolytic Cap,12,2020,3.90,33606,07/02/2020,KPIN,R S COMPONENTS LTD,
ICT,4005,IT Consumables,RS PRO 47�F Electrolytic Capac,12,2020,3.19,33606,07/02/2020,KPIN,R S COMPONENTS LTD,
ICT,4005,IT Consumables,RS PRO 2.2�F Electrolytic Capa,12,2020,3.31,33606,07/02/2020,KPIN,R S COMPONENTS LTD,
ICT,4005,IT Consumables,RS PRO 330�F Electrolytic Capa,12,2020,3.83,33606,07/02/2020,KPIN,R S COMPONENTS LTD,
ICT,4005,IT Consumables,RS PRO 1000�F Electrolytic Cap,12,2020,4.32,33606,07/02/2020,KPIN,R S COMPONENTS LTD,
ICT,4005,IT Consumables,"RS PRO USB 2.0, Male USB A to ",12,2020,64.00,33606,07/02/2020,KPIN,R S COMPONENTS LTD,
Operations - USAR,2030,Operational Equipment Support,Driver Glove size 10 (USAR),12,2020,95.90,33607,20/02/2020,KPIN,R S COMPONENTS LTD,
Operations - USAR,2030,Operational Equipment Support,Driver Glove size 9 (USAR),12,2020,95.90,33607,20/02/2020,KPIN,R S COMPONENTS LTD,
Property Services,2903,Consultancy Fees,Consultancy Fees,12,2020,336.83,33608,28/02/2020,KPIN,INGLETON WOOD LLP,
Property Services,2903,Consultancy Fees,Professional fees in accordanc,12,2020,206.67,33609,28/02/2020,KPIN,INGLETON WOOD LLP,
Property Services,2903,Consultancy Fees,1920/438 Renewal of flat roof ,12,2020,206.67,33610,28/02/2020,KPIN,INGLETON WOOD LLP,
Property Services,2903,Consultancy Fees,1718/413 Witham Window replace,12,2020,4590.89,33611,28/02/2020,KPIN,INGLETON WOOD LLP,
Property Services,2903,Consultancy Fees,1819/435 Boiler Replacement: P,12,2020,466.01,33612,28/02/2020,KPIN,INGLETON WOOD LLP,
Community Safety,4021,Home Safety,Cleaning of Single Oven,12,2020,585.00,33613,02/03/2020,KPIN,OVENCLEANSE OVEN CLEANING SERVICES,
Community Safety,4021,Home Safety,Cleaning of 4 Ring Hob,12,2020,105.00,33613,02/03/2020,KPIN,OVENCLEANSE OVEN CLEANING SERVICES,
Community Safety,4021,Home Safety,Cleaning of Grill,12,2020,80.00,33613,02/03/2020,KPIN,OVENCLEANSE OVEN CLEANING SERVICES,
Community Safety,4021,Home Safety,Cleaning of Double Oven,12,2020,325.00,33613,02/03/2020,KPIN,OVENCLEANSE OVEN CLEANING SERVICES,
Workshops Management,3201,Petrol and Diesel,Petrol and Diesel,12,2020,2892.92,33614,27/02/2020,KPIN,WATSON FUELS,
Catering,4130,Hospitality & Entertaining,KP MESS CLUB,12,2020,68.50,33615,03/03/2020,KPIN,DONALD FREESTON,
Operations,4009,Operational Support Costs,Belt 5.11 TDU Large - Black,12,2020,9.19,33617,28/02/2020,KPIN,TACTREE,
Operations,4009,Operational Support Costs,Belt 5.11 TDU XLarge - Black,12,2020,18.38,33617,28/02/2020,KPIN,TACTREE,
Operations,4009,Operational Support Costs,All as your quote ref: 1090382,12,2020,0.00,33617,28/02/2020,KPIN,TACTREE,
Operations,4009,Operational Support Costs,Trousers 5.11 TDU medium waist,12,2020,33.93,33617,28/02/2020,KPIN,TACTREE,
Operations,4009,Operational Support Costs,Trouser 5.11 TDU Large/short (,12,2020,33.93,33617,28/02/2020,KPIN,TACTREE,
Operations,4009,Operational Support Costs,Trousers 5.11 TDU Large waist/,12,2020,67.86,33617,28/02/2020,KPIN,TACTREE,
Operations,4009,Operational Support Costs,Freight Misc,12,2020,5.95,33617,28/02/2020,KPIN,TACTREE,
Operations - USAR,2030,Operational Equipment Support,5.11 Bristol Parka Jacket Navy,12,2020,169.65,33617,28/02/2020,KPIN,TACTREE,
Operations - USAR,2030,Operational Equipment Support,Belt 5.11 TDU Medium - Black,12,2020,9.19,33617,28/02/2020,KPIN,TACTREE,
Operations - USAR,2030,Operational Equipment Support,5.11 Bristol Parka Jacket Navy,12,2020,339.30,33617,28/02/2020,KPIN,TACTREE,
Property Services,1050,Building Maintenance,To remove Ivy which is growing,12,2020,525.00,33618,28/02/2020,KPIN,ENVIRONTEC LIMITED,
Training,0707,Operational Training Contracts,Casualty care training Feb20,12,2020,1840.00,33619,28/02/2020,KPIN,CIPHER MEDICAL CONSULTANCY LIMITED,
Training,0707,Operational Training Contracts,Casualty care training Feb20,12,2020,3390.00,33619,28/02/2020,KPIN,CIPHER MEDICAL CONSULTANCY LIMITED,
Training,0707,Operational Training Contracts,Casualty care training Feb20,12,2020,5085.00,33619,28/02/2020,KPIN,CIPHER MEDICAL CONSULTANCY LIMITED,
Training,0707,Operational Training Contracts,Casualty care training Feb20,12,2020,-10315.00,33619,28/02/2020,KPIN,CIPHER MEDICAL CONSULTANCY LIMITED,
Training,0707,Operational Training Contracts,Casualty care training Feb20,12,2020,10315.00,33619,28/02/2020,KPIN,CIPHER MEDICAL CONSULTANCY LIMITED,
Technical Services,2032,Operational Equip-Initial Purchase,"Packexe SMASH Kit (1900)  
",12,2020,179.99,33620,03/03/2020,KPIN,PACKEXE LTD,,,,
Technical Services,2032,Operational Equip-Initial Purchase,DELIVERY,12,2020,12.00,33620,03/03/2020,KPIN,PACKEXE LTD,
Stores,B205,Stocks & WIP (Purchasing & Supply Stores),Freight Misc,12,2020,18.00,33621,03/03/2020,KPIN,PRO-TECT SIGNS LTD,
Stores,B205,Stocks & WIP (Purchasing & Supply Stores),Traffic Tape. Red/White Frs. 7,12,2020,79.50,33621,03/03/2020,KPIN,PRO-TECT SIGNS LTD,
Stores,B205,Stocks & WIP (Purchasing & Supply Stores),Tape. Hazard Warning.       Bl,12,2020,11.60,33621,03/03/2020,KPIN,PRO-TECT SIGNS LTD,
Stores,B205,Stocks & WIP (Purchasing & Supply Stores),"Tape, POLICE DO NOT CROSS, blu",12,2020,23.20,33621,03/03/2020,KPIN,PRO-TECT SIGNS LTD,
Human Resources,0960,Occupational Health,Occupational Health,12,2020,2424.00,33622,29/02/2020,KPIN,PEOPLE ASSET MANAGEMENT LIMITED,
Human Resources,0960,Occupational Health,Occupational Health,12,2020,9696.00,33622,29/02/2020,KPIN,PEOPLE ASSET MANAGEMENT LIMITED,
Technical Services,2032,Operational Equip-Initial Purchase,Casualty Care Bag - Emergency ,12,2020,1890.00,33624,03/03/2020,KPIN,SAFETY FIRST AID GROUP LIMITED,
Stores,B205,Stocks & WIP (Purchasing & Supply Stores),Freight Misc,12,2020,9.00,33625,19/02/2020,KPIN,JAFCO TOOLS LTD,
Stores,B205,Stocks & WIP (Purchasing & Supply Stores),"Handle extension pole 24""",12,2020,104.40,33625,19/02/2020,KPIN,JAFCO TOOLS LTD,
Stores,B205,Stocks & WIP (Purchasing & Supply Stores),"Handle, Butt End, Take Apart S",12,2020,90.00,33625,19/02/2020,KPIN,JAFCO TOOLS LTD,
Stores,B205,Stocks & WIP (Purchasing & Supply Stores),"Chrome, take apart system 36"" ",12,2020,38.40,33625,19/02/2020,KPIN,JAFCO TOOLS LTD,
Stores,B205,Stocks & WIP (Purchasing & Supply Stores),"Fire beater with flapper, ligh",12,2020,60.00,33625,19/02/2020,KPIN,JAFCO TOOLS LTD,
Workshops Management,3201,Petrol and Diesel,Petrol and Diesel,12,2020,1094.60,33626,27/02/2020,KPIN,WATSON FUELS,
Workshops Management,3201,Petrol and Diesel,Petrol and Diesel,12,2020,1355.56,33627,27/02/2020,KPIN,WATSON FUELS,
Property Services,1321,Water Meters,10.02.20 WEELEY,12,2020,55.44,33629,11/02/2020,KPIN,AFFINITY FOR BUSINESS LTD,
Property Services,1050,Building Maintenance,To replace spring to personnel,12,2020,192.50,33631,02/03/2020,KPIN,HS DOOR SYSTEMS LTD,
Catering,2017,Canteen Equipment,RB6 General Purpose Hand Scour,12,2020,4.92,33632,02/03/2020,KPIN,BUNZL CLEANING & HYGIENE SUPPLIES,
Purchasing & Supply,2024,Cleaning Equipment,Oven Cloths Standard Duty 19x3,12,2020,1.33,33632,02/03/2020,KPIN,BUNZL CLEANING & HYGIENE SUPPLIES,
Purchasing & Supply,1310,Cleaning products,Purell Hand Sanitising Gel VF4,12,2020,50.96,33632,02/03/2020,KPIN,BUNZL CLEANING & HYGIENE SUPPLIES,
Purchasing & Supply,2024,Cleaning Equipment,6332 Kleenex Hair & Body Showe,12,2020,45.82,33632,02/03/2020,KPIN,BUNZL CLEANING & HYGIENE SUPPLIES,
Purchasing & Supply,2024,Cleaning Equipment,Cleanline Heavy Duty Degreaser,12,2020,7.90,33632,02/03/2020,KPIN,BUNZL CLEANING & HYGIENE SUPPLIES,
Technical Services,2032,Operational Equip-Initial Purchase,"High Pressure Hose, fitted at ",12,2020,100.00,33633,02/03/2020,KPIN,ELJAY INDUSTRIAL CHEMICALS,
Property Services,1050,Building Maintenance,OOH 24/2/20 2046 hrs Bay door ,12,2020,520.00,33634,02/03/2020,KPIN,HS DOOR SYSTEMS LTD,
Property Services,1050,Building Maintenance,OOH 24/2/20 2046 hrs Bay door ,12,2020,273.35,33634,02/03/2020,KPIN,HS DOOR SYSTEMS LTD,
Property Services,1050,Building Maintenance,Front bay door 3.  Station ins,12,2020,221.10,33635,03/03/2020,KPIN,HS DOOR SYSTEMS LTD,
Property Services,2903,Consultancy Fees,Consultant,12,2020,450.00,33636,27/02/2020,KPIN,INGLETON WOOD LLP,
Property Services,1050,Building Maintenance,Floor bolt on bay door.  L/H d,12,2020,215.60,33637,03/03/2020,KPIN,HS DOOR SYSTEMS LTD,
Human Resources,4016,Recruitment,Recruitment,12,2020,1500.00,33638,28/02/2020,KPIN,PURE RESOURCING SOLUTIONS LTD,
Training,0715,In House Operational Training,In House Operational Training,12,2020,270.00,33639,28/02/2020,KPIN,BENSONS PRINTING COMPANY LTD,
Property Services,1050,Building Maintenance,Patch panel has intermittent p,12,2020,105.00,33640,03/03/2020,KPIN,C S ELECTRICAL ESSEX LTD,
Catering,2017,Canteen Equipment,Food servery Thermostat replac,12,2020,192.28,33641,03/03/2020,KPIN,C S ELECTRICAL ESSEX LTD,
Catering,4130,Hospitality & Entertaining,KP MESS CLUB,12,2020,57.58,33642,04/03/2020,KPIN,DIRECT MEATS,
Catering,4130,Hospitality & Entertaining,KP MESS CLUB,12,2020,38.59,33643,04/03/2020,KPIN,DONALD FREESTON,
Purchasing & Supply,2303,Clothing & Footwear,10TA207 Trojan Grey Executive ,12,2020,51.53,33644,03/03/2020,KPIN,ARCO LTD,
Technical Services,2032,Operational Equip-Initial Purchase,167400 Sundstrom SR 299-2 ABEK,12,2020,199.20,33645,03/03/2020,KPIN,ARCO LTD,
Technical Services,2032,Operational Equip-Initial Purchase,"Cupola Decon 2 - MD4
Inflatab",12,2020,5772.00,33646,21/02/2020,KPIN,CINTEC INTERNATIONAL LIMITED,,,,
Technical Services,2032,Operational Equip-Initial Purchase,Refurbishment of CUPOLA DECON ,12,2020,1370.50,33646,21/02/2020,KPIN,CINTEC INTERNATIONAL LIMITED,
Technical Services,2032,Operational Equip-Initial Purchase,"1000ltr Beige Pillow Tank
Wit",12,2020,2362.50,33646,21/02/2020,KPIN,CINTEC INTERNATIONAL LIMITED,,,,
Technical Services,2032,Operational Equip-Initial Purchase,Carriage,12,2020,300.00,33646,21/02/2020,KPIN,CINTEC INTERNATIONAL LIMITED,
Property Services,1303,Fuel Oil,750ltrs of kerosene - Ticket n,12,2020,284.40,33647,21/02/2020,KPIN,CERTAS ENERGY UK LTD,
ICT,4005,IT Consumables,1 x SOCITM membership to the v,12,2020,180.00,33650,04/03/2020,KPIN,SOCITM LTD,
Property Services,1060,Grounds Maintenance,Grounds Maintenance - February,12,2020,234.44,33651,28/02/2020,KPIN,CONTOUR LANDSCAPES LTD,
Property Services,1060,Grounds Maintenance,Grounds Maintenance - February,12,2020,30.89,33651,28/02/2020,KPIN,CONTOUR LANDSCAPES LTD,
Property Services,1060,Grounds Maintenance,Grounds Maintenance - February,12,2020,231.75,33651,28/02/2020,KPIN,CONTOUR LANDSCAPES LTD,
Property Services,1060,Grounds Maintenance,Grounds Maintenance - February,12,2020,27.58,33651,28/02/2020,KPIN,CONTOUR LANDSCAPES LTD,
Operations,2401,Laundry,Laundry - 03.02.20 to 01.03.20,12,2020,852.87,33652,01/03/2020,KPIN,PHS BESAFE,
Water Services,2087,Water Services,"Tag 4"" Square over pinted with",12,2020,37.10,33653,04/03/2020,KPIN,PLATE & LOCATE LTD,
Community Safety,4019,Community Safety,Safeguarding professional supe,12,2020,85.00,33654,03/03/2020,KPIN,AMANDA CRAIG CBT SERVICES,
Training,0707,Operational Training Contracts,Fire Invesitgation Courses Jan,12,2020,440.00,33655,28/02/2020,KPIN,K P EYRE,
Human Resources,0960,Occupational Health,Occupational Health,12,2020,84.00,33656,03/03/2020,KPIN,PHYSIOTHERAPY ESSEX LTD,
Human Resources,0960,Occupational Health,Occupational Health,12,2020,375.00,33656,03/03/2020,KPIN,PHYSIOTHERAPY ESSEX LTD,
ICT,2040,IT Maintenance and Contracts,Monthly recurring charge Febru,12,2020,833.34,33658,29/02/2020,KPIN,KEFRON INTERNATIONAL LIMITED,
Community Safety,0180,Casual and Temporary Staff,Casual and Temporary Staff,12,2020,625.10,33659,01/03/2020,KPIN,PURE RESOURCING SOLUTIONS LTD,
Catering,0180,Casual and Temporary Staff,Casual and Temporary Staff,12,2020,677.34,33660,04/03/2020,KPIN,FIRST CALL EMPLOYMENT LTD,
Innovation and Change,0180,Casual and Temporary Staff,Casual and Temporary Staff,12,2020,2250.00,33662,28/02/2020,KPIN,THE PEOPLE NETWORK,
Property Services,1050,Building Maintenance,Junction/sensor box for bay do,12,2020,179.85,33663,04/03/2020,KPIN,HS DOOR SYSTEMS LTD,
Human Resources,4518,Other Local Authority Services,Miscellaneous,12,2020,9027.77,33664,04/03/2020,KPIN,ESSEX PENSION FUND,
Property Services,1050,Building Maintenance,To repair/replace frayed cable,12,2020,228.40,33666,04/03/2020,KPIN,HS DOOR SYSTEMS LTD,
Property Services,1301,Gas,1 DEANES CLOSE DOVERCOURT,12,2020,26.23,33667,24/02/2020,KPIN,NPOWER,
Property Services,1302,Electricity,1 DEANES CLOSE DOVERCOURT,12,2020,23.82,33667,24/02/2020,KPIN,NPOWER,
Property Services,1050,Building Maintenance,Genie lead drum to bay 1.  Tem,12,2020,412.35,33670,28/02/2020,KPIN,MUNRO BUILDING SERVICES LTD,
Purchasing & Supply,2303,Clothing & Footwear,"Boots, Magnum Precision Rigmas",12,2020,179.00,33671,27/02/2020,KPIN,HI-TEC EUROPE LTD,
Purchasing & Supply,2303,Clothing & Footwear,"Boots, Magnum Precision Rigmas",12,2020,61.00,33671,27/02/2020,KPIN,HI-TEC EUROPE LTD,
Purchasing & Supply,2303,Clothing & Footwear,ECFRS will arrange collection ,12,2020,0.00,33671,27/02/2020,KPIN,HI-TEC EUROPE LTD,
Purchasing & Supply,2303,Clothing & Footwear,"Boots, Magnum Precision Rigmas",12,2020,120.00,33671,27/02/2020,KPIN,HI-TEC EUROPE LTD,
Purchasing & Supply,2303,Clothing & Footwear,"Boots, Magnum Precision Rigmas",12,2020,61.00,33671,27/02/2020,KPIN,HI-TEC EUROPE LTD,
Property Services,1050,Building Maintenance,Genie lead bay 3.  Cap broken,12,2020,118.74,33672,28/02/2020,KPIN,MUNRO BUILDING SERVICES LTD,
Purchasing & Supply,2012,Office/Admin Equipment (incl copiers),Trodat 4926 @ 60.15 each less,12,2020,36.09,33673,07/02/2020,KPIN,E M RICHFORD LTD,
ICT,4005,IT Consumables,1) Install Cat 6 Network Cable,12,2020,879.20,33674,04/03/2020,KPIN,C S ELECTRICAL ESSEX LTD,
Property Services,1499,Furniture and Fittings,Industrial warehouse mobile st,12,2020,467.00,33676,03/03/2020,KPIN,H C SLINGSBY PLC,
Stores,B205,Stocks & WIP (Purchasing & Supply Stores),Cartrdige HP C9370A photo blac,12,2020,51.47,33677,04/03/2020,KPIN,XMA LIMITED,
Stores,B205,Stocks & WIP (Purchasing & Supply Stores),Cartridge HP C9371A Cyan,12,2020,102.94,33677,04/03/2020,KPIN,XMA LIMITED,
Stores,B205,Stocks & WIP (Purchasing & Supply Stores),Cartridge HP C9372A Magenta,12,2020,51.47,33677,04/03/2020,KPIN,XMA LIMITED,
Stores,B205,Stocks & WIP (Purchasing & Supply Stores),Cartridge HP C9373A Yellow,12,2020,102.94,33677,04/03/2020,KPIN,XMA LIMITED,
Stores,B205,Stocks & WIP (Purchasing & Supply Stores),Cartridge HP C9374A Grey,12,2020,40.01,33677,04/03/2020,KPIN,XMA LIMITED,
Stores,B205,Stocks & WIP (Purchasing & Supply Stores),Cartridge HP C9403A Matte blac,12,2020,102.94,33677,04/03/2020,KPIN,XMA LIMITED,
Stores,B205,Stocks & WIP (Purchasing & Supply Stores),Stocks & WIP (Purchasing & Supply Stores),12,2020,10.18,33677,04/03/2020,KPIN,XMA LIMITED,
Stores,B205,Stocks & WIP (Purchasing & Supply Stores),Stocks & WIP (Purchasing & Supply Stores),12,2020,10.18,33677,04/03/2020,KPIN,XMA LIMITED,
Stores,B205,Stocks & WIP (Purchasing & Supply Stores),Stocks & WIP (Purchasing & Supply Stores),12,2020,10.18,33677,04/03/2020,KPIN,XMA LIMITED,
Stores,B205,Stocks & WIP (Purchasing & Supply Stores),Stocks & WIP (Purchasing & Supply Stores),12,2020,15.48,33677,04/03/2020,KPIN,XMA LIMITED,
Catering,4130,Hospitality & Entertaining,KP MESS CLUB,12,2020,72.08,33678,05/03/2020,KPIN,DONALD FREESTON,
Technical Services,2031,Managed Personal Protective Equipment,CR FOR KPIN 29016,12,2020,-473.36,33679,16/12/2019,KPIN,BRISTOL UNIFORMS LTD,
Purchasing & Supply,2303,Clothing & Footwear,14A1608 Arco essential PU coat,12,2020,16.86,33680,04/03/2020,KPIN,ARCO LTD,
Purchasing & Supply,2303,Clothing & Footwear,3U3920 Uvex goggles,12,2020,11.63,33680,04/03/2020,KPIN,ARCO LTD,
Property Services,1050,Building Maintenance,Install alert strobe to RTC ar,12,2020,545.60,33681,27/01/2020,KPIN,C S ELECTRICAL ESSEX LTD,
Property Services,1050,Building Maintenance,to replace the metal clad swit,12,2020,117.05,33682,27/01/2020,KPIN,C S ELECTRICAL ESSEX LTD,
Property Services,1040,Planned Works,Pat testing and Emergency Ligh,12,2020,873.60,33683,27/01/2020,KPIN,C S ELECTRICAL ESSEX LTD,
Property Services,1040,Planned Works,Pat testing and Emergency Ligh,12,2020,666.58,33684,27/01/2020,KPIN,C S ELECTRICAL ESSEX LTD,
Purchasing & Supply,2024,Cleaning Equipment,Cleanline Eco Hard Surface Cle,12,2020,9.86,33685,04/03/2020,KPIN,BUNZL CLEANING & HYGIENE SUPPLIES,
Purchasing & Supply,2024,Cleaning Equipment,Bryta Oven & Grill Foam 500ML ,12,2020,12.80,33685,04/03/2020,KPIN,BUNZL CLEANING & HYGIENE SUPPLIES,
Purchasing & Supply,1310,Cleaning products,Cleanline Auto Rinse Aid 5L (E,12,2020,13.66,33685,04/03/2020,KPIN,BUNZL CLEANING & HYGIENE SUPPLIES,
Purchasing & Supply,1310,Cleaning products,Bryta Dishwasher Powder 5KG (E,12,2020,15.28,33685,04/03/2020,KPIN,BUNZL CLEANING & HYGIENE SUPPLIES,
Property Services,1050,Building Maintenance,Light defective in disabled WC,12,2020,66.77,33687,28/02/2020,KPIN,MUNRO BUILDING SERVICES LTD,
Stores,B205,Stocks & WIP (Purchasing & Supply Stores),Freight Misc,12,2020,22.50,33688,10/10/2019,KPIN,ANGLOCO LTD,
Stores,B205,Stocks & WIP (Purchasing & Supply Stores),"Block, Crib  CB40 200x200x40 (",12,2020,28.00,33688,10/10/2019,KPIN,ANGLOCO LTD,
Stores,B205,Stocks & WIP (Purchasing & Supply Stores),Cribblock Wedge,12,2020,100.00,33688,10/10/2019,KPIN,ANGLOCO LTD,
Property Services,1050,Building Maintenance,Light in FF shower on constant,12,2020,181.00,33689,28/02/2020,KPIN,MUNRO BUILDING SERVICES LTD,
Property Services,1050,Building Maintenance,Retractable extension lead fai,12,2020,194.19,33690,28/02/2020,KPIN,MUNRO BUILDING SERVICES LTD,
Property Services,1050,Building Maintenance,To repair defective emergency ,12,2020,242.71,33691,28/02/2020,KPIN,MUNRO BUILDING SERVICES LTD,
Property Services,1050,Building Maintenance,To relamp lights as necessary ,12,2020,250.28,33692,28/02/2020,KPIN,MUNRO BUILDING SERVICES LTD,
Human Resources,0180,Casual and Temporary Staff,Casual and Temporary Staff,12,2020,1908.61,33693,24/02/2020,KPIN,WADDINGTON BROWN LIMITED,
Human Resources,0180,Casual and Temporary Staff,Casual and Temporary Staff,12,2020,2015.83,33694,02/03/2020,KPIN,WADDINGTON BROWN LIMITED,
Catering,4130,Hospitality & Entertaining,KP Mess Club,12,2020,75.10,33695,28/02/2020,KPIN,THE LITTLE FISH COMPANY (KELVEDON) LTD,
Catering,4130,Hospitality & Entertaining,KP Mess Club,12,2020,159.88,33696,02/03/2020,KPIN,H&J FOODS LTD T/A OLYMPIC FOODS,
Property Services,1050,Building Maintenance,Genie lead cap to bay 3 broken,12,2020,84.49,33698,28/02/2020,KPIN,MUNRO BUILDING SERVICES LTD,
Training,B217,Payments in Advance,55 x licences APR 20 - MAR 21,12,2020,3044.25,33699,05/03/2020,KPIN,REAL WORLD GROUP LIMITED,
Training,0710,Organisational Development,Organisational Development,12,2020,-3267.00,33699,05/03/2020,KPIN,REAL WORLD GROUP LIMITED,
Training,0710,Organisational Development,Organisational Development,12,2020,-1113.75,33699,05/03/2020,KPIN,REAL WORLD GROUP LIMITED,
Training,0710,Organisational Development,Organisational Development,12,2020,-3044.25,33699,05/03/2020,KPIN,REAL WORLD GROUP LIMITED,
Training,0710,Organisational Development,Organisational Development,12,2020,1113.75,33699,05/03/2020,KPIN,REAL WORLD GROUP LIMITED,
Training,0710,Organisational Development,Organisational Development,12,2020,3267.00,33699,05/03/2020,KPIN,REAL WORLD GROUP LIMITED,
Training,0710,Organisational Development,Organisational Development,12,2020,3044.25,33699,05/03/2020,KPIN,REAL WORLD GROUP LIMITED,
Training,0710,Organisational Development,Organisational Development,12,2020,92.81,33699,05/03/2020,KPIN,REAL WORLD GROUP LIMITED,
Training,B217,Payments in Advance,55 x licences APR 20,12,2020,3267.00,33699,05/03/2020,KPIN,REAL WORLD GROUP LIMITED,
Training,B217,Payments in Advance,55 x licences  APR 20 - MAR 21,12,2020,1020.94,33699,05/03/2020,KPIN,REAL WORLD GROUP LIMITED,
Technical Services,2031,Managed Personal Protective Equipment,CREDIT FOR KPIN 29898,12,2020,-236.68,33700,16/12/2019,KPIN,BRISTOL UNIFORMS LTD,
Technical Services,2031,Managed Personal Protective Equipment,CREDIT FOR KPIN 28557,12,2020,-946.72,33701,16/12/2019,KPIN,BRISTOL UNIFORMS LTD,
Technical Services,2031,Managed Personal Protective Equipment,CREDIT FOR KPIN 27344,12,2020,-946.72,33702,16/12/2019,KPIN,BRISTOL UNIFORMS LTD,
Property Services,1050,Building Maintenance,bedside light not working,12,2020,281.26,33703,28/02/2020,KPIN,MUNRO BUILDING SERVICES LTD,
Property Services,1050,Building Maintenance,To replace fence panels betwee,12,2020,181.53,33704,04/03/2020,KPIN,NORMAN DAVID MAINTENANCE,
Property Services,1050,Building Maintenance,To replace fence panels betwee,12,2020,181.53,33704,04/03/2020,KPIN,NORMAN DAVID MAINTENANCE,
Property Services,1050,Building Maintenance,To refix fence between 9 and 1,12,2020,90.87,33705,04/03/2020,KPIN,NORMAN DAVID MAINTENANCE,
Property Services,1050,Building Maintenance,To refix fence between 9 and 1,12,2020,90.87,33705,04/03/2020,KPIN,NORMAN DAVID MAINTENANCE,
Property Services,1050,Building Maintenance,Carefully unbolt 2No V shaped ,12,2020,100.00,33706,04/03/2020,KPIN,NORMAN DAVID MAINTENANCE,
Property Services,1050,Building Maintenance,To re-lamp Insecticutor,12,2020,324.21,33707,28/02/2020,KPIN,MUNRO BUILDING SERVICES LTD,
Property Services,4003,Postage Direct Mailing & Carriage,CONTRA KPIN 33708,12,2020,67.07,33708,02/07/2019,KPIN,NEOPOST FINANCE LTD,
Property Services,4003,Postage Direct Mailing & Carriage,CONTRA KPIN 33708,12,2020,653.24,33708,02/07/2019,KPIN,NEOPOST FINANCE LTD,
Property Services,4003,Postage Direct Mailing & Carriage,CONTRA KPIN 33708,12,2020,67.07,33708,02/07/2019,KPIN,NEOPOST FINANCE LTD,
Property Services,1050,Building Maintenance,Genie lead to bay 1.   Worksho,12,2020,75.00,33709,28/02/2020,KPIN,MUNRO BUILDING SERVICES LTD,
Water Services,2087,Water Services,FS00001260,12,2020,303.75,33710,04/03/2020,KPIN,NORTHUMBRIAN WATER LTD (HYDRANTS),
Property Services,4003,Postage Direct Mailing & Carriage,RESPONSE PLUS - JAN/FEB,12,2020,45.52,33711,02/03/2020,KPIN,ROYAL MAIL GROUP LIMITED,
Catering,4130,Hospitality & Entertaining,KP Mess Club,12,2020,178.34,33712,27/02/2020,KPIN,KENT FROZEN FOODS LIMITED,
Property Services,1050,Building Maintenance,External floodlight has fallen,12,2020,112.50,33714,28/02/2020,KPIN,MUNRO BUILDING SERVICES LTD,
Property Services,1050,Building Maintenance,To replace broken socket outle,12,2020,61.29,33715,28/02/2020,KPIN,MUNRO BUILDING SERVICES LTD,
ICT,2040,IT Maintenance and Contracts,ScResponse /Apr20-Mar21,12,2020,-93987.00,33716,05/03/2020,KPIN,AIRBUS DEFENCE & SPACE,
ICT,2040,IT Maintenance and Contracts,ScResponse /Apr20-Mar21,12,2020,93987.00,33716,05/03/2020,KPIN,AIRBUS DEFENCE & SPACE,
ICT,B217,Payments in Advance,ScResponse /Apr20-Mar21,12,2020,93987.00,33716,05/03/2020,KPIN,AIRBUS DEFENCE & SPACE,
Property Services,1050,Building Maintenance,To re-lamp light,12,2020,115.00,33717,28/02/2020,KPIN,MUNRO BUILDING SERVICES LTD,
Property Services,1050,Building Maintenance,To remedy faulty light in porc,12,2020,127.50,33718,28/02/2020,KPIN,MUNRO BUILDING SERVICES LTD,
Technical Services,2032,Operational Equip-Initial Purchase,Lamp F/Gnd Rgt Angle Led ,12,2020,767.52,33719,05/03/2020,KPIN,THE WOLF SAFETY LAMP CO LTD,
Technical Services,2032,Operational Equip-Initial Purchase,Freight Misc,12,2020,16.50,33719,05/03/2020,KPIN,THE WOLF SAFETY LAMP CO LTD,
Property Services,1050,Building Maintenance,To re-lamp light please re-lam,12,2020,130.04,33720,28/02/2020,KPIN,MUNRO BUILDING SERVICES LTD,
Human Resources,0708,Equalities and Community Engagement,Equalities and Community Engagement,12,2020,335.00,33721,05/03/2020,KPIN,SPOTLIGHT SOUND,
ICT,2510,IT Communications,BILL UPTO 29/02/20,12,2020,1703.89,33722,01/03/2020,KPIN,DAISY UPDATA COMMUNICATIONS LTD,
ICT,2510,IT Communications,BILL UPTO 29/02/20,12,2020,41.08,33723,01/03/2020,KPIN,DAISY UPDATA COMMUNICATIONS LTD,
Property Services,1040,Planned Works,Pat testing and Emergency Ligh,12,2020,636.19,33724,05/03/2020,KPIN,C S ELECTRICAL ESSEX LTD,
Property Services,1040,Planned Works,Pat testing and Emergency Ligh,12,2020,732.82,33725,05/03/2020,KPIN,C S ELECTRICAL ESSEX LTD,
Property Services,1050,Building Maintenance,To supply and install 1no. Ete,12,2020,231.35,33726,05/03/2020,KPIN,C S ELECTRICAL ESSEX LTD,
Catering,4130,Hospitality & Entertaining,KP MESS CLUB,12,2020,20.31,33727,06/03/2020,KPIN,DONALD FREESTON,
Purchasing & Supply,2012,Office/Admin Equipment (incl copiers),Multicoloured cable ties 200 x,12,2020,16.08,33728,26/02/2020,KPIN,SCREWFIX DIRECT LTD,
Community Safety,4021,Home Safety,Magnusson VDE Screwdriver Phil,12,2020,34.88,33728,26/02/2020,KPIN,SCREWFIX DIRECT LTD,
Human Resources,0960,Occupational Health,Occupational Health,12,2020,640.00,33729,28/02/2020,KPIN,THE PHYSIOTHERAPY PRACTICE LTD,
Human Resources,0960,Occupational Health,Occupational Health,12,2020,225.00,33729,28/02/2020,KPIN,THE PHYSIOTHERAPY PRACTICE LTD,
Property Services,1050,Building Maintenance,To repair genie lead in bay 1 ,12,2020,75.00,33730,28/02/2020,KPIN,MUNRO BUILDING SERVICES LTD,
Property Services,1050,Building Maintenance,To repair temperature probe on,12,2020,37.50,33731,28/02/2020,KPIN,MUNRO BUILDING SERVICES LTD,
Property Services,1050,Building Maintenance,2no floodlights not working in,12,2020,344.70,33732,28/02/2020,KPIN,MUNRO BUILDING SERVICES LTD,
Property Services,1050,Building Maintenance,Fire alarm bleeping 2/3/20,12,2020,210.00,33733,03/03/2020,KPIN,FISK FIRE PROTECTION LTD,
Human Resources,0960,Occupational Health,Occupational Health,12,2020,85.00,33734,06/03/2020,KPIN,CAROL FINNEY,
Property Services,1050,Building Maintenance,Renew glazed fanlight to boile,12,2020,130.00,33735,24/01/2020,KPIN,A J M GLASS,
Technical Services,2031,Managed Personal Protective Equipment,EM70CM Crew Manager Tunic Rank,12,2020,711.00,33736,06/03/2020,KPIN,BRISTOL UNIFORMS LTD,
Human Resources,0960,Occupational Health,Occupational Health,12,2020,50.00,33737,06/03/2020,KPIN,ANI DE LA PRIDA,
Purchasing & Supply,2303,Clothing & Footwear,"Portwest FR50 Coverall, Navy, ",12,2020,51.99,33738,06/03/2020,KPIN,BALLANTYNE EDWARDS LTD,
Purchasing & Supply,2303,Clothing & Footwear,Portwest A725 Safety Impact Gl,12,2020,26.66,33738,06/03/2020,KPIN,BALLANTYNE EDWARDS LTD,
Purchasing & Supply,2303,Clothing & Footwear,"Portwest FR50 Coverall, Navy, ",12,2020,51.99,33738,06/03/2020,KPIN,BALLANTYNE EDWARDS LTD,
Training,4111,Subsistence Allowances,Subsistence Allowances,12,2020,81.33,33739,03/03/2020,KPIN,LEE VALLEY LEISURE TRUST LIMITED,
Training,4111,Subsistence Allowances,Subsistence Allowances,12,2020,145.34,33739,03/03/2020,KPIN,LEE VALLEY LEISURE TRUST LIMITED,
Training,4111,Subsistence Allowances,Subsistence Allowances,12,2020,109.33,33740,03/03/2020,KPIN,LEE VALLEY LEISURE TRUST LIMITED,
Training,4111,Subsistence Allowances,Subsistence Allowances,12,2020,122.13,33740,03/03/2020,KPIN,LEE VALLEY LEISURE TRUST LIMITED,
Training,4111,Subsistence Allowances,Subsistence Allowances,12,2020,128.54,33740,03/03/2020,KPIN,LEE VALLEY LEISURE TRUST LIMITED,
Property Services,1050,Building Maintenance,To replace defective TRV to ra,12,2020,85.75,33741,03/03/2020,KPIN,BALM & DAVIES LTD,
Property Services,1050,Building Maintenance,To replace defective shower ho,12,2020,75.11,33742,03/03/2020,KPIN,BALM & DAVIES LTD,
Property Services,1050,Building Maintenance,Pressure releif valve letting ,12,2020,437.90,33743,03/03/2020,KPIN,BALM & DAVIES LTD,
Property Services,1050,Building Maintenance,Outside hose has been leaking ,12,2020,64.31,33744,03/03/2020,KPIN,BALM & DAVIES LTD,
Property Services,1050,Building Maintenance,Q188_5416 replace damaged heat,12,2020,2580.08,33745,03/03/2020,KPIN,BALM & DAVIES LTD,
Property Services,1050,Building Maintenance,Replace Boiler Ignition Probes,12,2020,639.92,33746,03/03/2020,KPIN,BALM & DAVIES LTD,
Stores,B205,Stocks & WIP (Purchasing & Supply Stores),Poly Cotton Hollowfibre Duvet ,12,2020,230.00,33747,05/03/2020,KPIN,HEAVY WOOLLEN TEXTILE CO LTD,
Stores,B205,Stocks & WIP (Purchasing & Supply Stores),Polyester/Cotton duvet cover 5,12,2020,241.25,33747,05/03/2020,KPIN,HEAVY WOOLLEN TEXTILE CO LTD,
Stores,B205,Stocks & WIP (Purchasing & Supply Stores),Freight Misc,12,2020,10.00,33747,05/03/2020,KPIN,HEAVY WOOLLEN TEXTILE CO LTD,
Stores,B205,Stocks & WIP (Purchasing & Supply Stores),"Pillowcase Cotton Bleached 19""",12,2020,34.75,33747,05/03/2020,KPIN,HEAVY WOOLLEN TEXTILE CO LTD,
Stores,B205,Stocks & WIP (Purchasing & Supply Stores),"Pillow Flame Retardant 18""x27""",12,2020,118.75,33747,05/03/2020,KPIN,HEAVY WOOLLEN TEXTILE CO LTD,
Stores,B205,Stocks & WIP (Purchasing & Supply Stores),Sheets Cotton Single Bleached ,12,2020,186.25,33747,05/03/2020,KPIN,HEAVY WOOLLEN TEXTILE CO LTD,
Property Services,1330,Building Cleaning,CR FOR KPIN 33589,12,2020,-114.37,33748,29/02/2020,KPIN,GREEN RECYCLING LIMITED,
Property Services,1330,Building Cleaning,12 cubic yard skip exchange - ,12,2020,114.37,33749,29/02/2020,KPIN,GREEN RECYCLING LIMITED,
Human Resources,0960,Occupational Health,Occupational Health,12,2020,450.00,33750,03/03/2020,KPIN,SILVER STREET CLINIC LIMITED,
Property Services,1050,Building Maintenance,Tread on main staircase is lif,12,2020,240.00,33751,06/03/2020,KPIN,FOUR STAR FLOORING CONTRACTS,
Property Services,1050,Building Maintenance,To repair split in flooring in,12,2020,130.00,33752,06/03/2020,KPIN,FOUR STAR FLOORING CONTRACTS,
Property Services,1302,Electricity,17 LEIGHLANDS ROAD SW FERRERS,12,2020,26.45,33753,28/02/2020,KPIN,NPOWER,
Property Services,1301,Gas,17 LEIGHLANDS ROAD SW FERRERS,12,2020,29.21,33753,28/02/2020,KPIN,NPOWER,
Training,0707,Operational Training Contracts,Coach travel for 18 passengers,12,2020,550.00,33754,08/03/2020,KPIN,FLAGFINDERS CTB LTD,
Training,0707,Operational Training Contracts,Coach travel for 18 passengers,12,2020,550.00,33754,08/03/2020,KPIN,FLAGFINDERS CTB LTD,
Operations,4009,Operational Support Costs,Stike Force 6.0CP Side Zip - S,12,2020,153.00,33755,25/02/2020,KPIN,HI-TEC EUROPE LTD,
Operations,4009,Operational Support Costs,Stike Force 6.0CP Side Zip - S,12,2020,76.50,33755,25/02/2020,KPIN,HI-TEC EUROPE LTD,
Operations,4009,Operational Support Costs,ECFRS will arrange collection ,12,2020,8.00,33755,25/02/2020,KPIN,HI-TEC EUROPE LTD,
Innovation and Change,0180,Casual and Temporary Staff,Casual and Temporary Staff,12,2020,950.00,33756,05/03/2020,KPIN,HAYS SPECIALIST RECRUITMENT LTD,
Perf Mgmt & Impr,0180,Casual and Temporary Staff,Casual and Temporary Staff,12,2020,799.20,33757,06/03/2020,KPIN,REED SPECIALIST RECRUITMENT LIMITED,
Finance & Pay,0180,Casual and Temporary Staff,Casual and Temporary Staff,12,2020,614.70,33758,06/03/2020,KPIN,REED SPECIALIST RECRUITMENT LIMITED,
Innovation and Change,0180,Casual and Temporary Staff,Casual and Temporary Staff,12,2020,1759.50,33759,06/03/2020,KPIN,REED SPECIALIST RECRUITMENT LIMITED,
Training,0715,In House Operational Training,In House Operational Training,12,2020,40.00,33760,05/03/2020,KPIN,B O C LTD,
Training,0715,In House Operational Training,In House Operational Training,12,2020,89.96,33760,05/03/2020,KPIN,B O C LTD,
Stores,B205,Stocks & WIP (Purchasing & Supply Stores),Pencil Sharpener,12,2020,1.98,33761,06/03/2020,KPIN,BANNER GROUP LIMITED,
Stores,B205,Stocks & WIP (Purchasing & Supply Stores),Banner Lge Off Pencil Eraser,12,2020,1.14,33761,06/03/2020,KPIN,BANNER GROUP LIMITED,
Stores,B205,Stocks & WIP (Purchasing & Supply Stores),BANNER MEDIUM GLUE STICK 20g,12,2020,1.68,33761,06/03/2020,KPIN,BANNER GROUP LIMITED,
Stores,B205,Stocks & WIP (Purchasing & Supply Stores),Medium Duty 4 Hole Perf 16Sht,12,2020,28.37,33761,06/03/2020,KPIN,BANNER GROUP LIMITED,
Stores,B205,Stocks & WIP (Purchasing & Supply Stores),Rubber Bands No 24,12,2020,11.62,33761,06/03/2020,KPIN,BANNER GROUP LIMITED,
Stores,B205,Stocks & WIP (Purchasing & Supply Stores),Office Pencil Hb,12,2020,0.72,33761,06/03/2020,KPIN,BANNER GROUP LIMITED,
Stores,B205,Stocks & WIP (Purchasing & Supply Stores),Bann Shatter Resist Ruler 30Mm,12,2020,1.70,33761,06/03/2020,KPIN,BANNER GROUP LIMITED,
Stores,B205,Stocks & WIP (Purchasing & Supply Stores),Banner Permanent Bullet Marker,12,2020,2.68,33761,06/03/2020,KPIN,BANNER GROUP LIMITED,
Stores,B205,Stocks & WIP (Purchasing & Supply Stores),Bann A4 Clear Punch Pocket 50M,12,2020,7.90,33761,06/03/2020,KPIN,BANNER GROUP LIMITED,
Stores,B205,Stocks & WIP (Purchasing & Supply Stores),Pavo Laminating Pouch A4 150Mu,12,2020,22.28,33761,06/03/2020,KPIN,BANNER GROUP LIMITED,
Stores,B205,Stocks & WIP (Purchasing & Supply Stores),Bann Mag File 64 Capacity,12,2020,10.44,33761,06/03/2020,KPIN,BANNER GROUP LIMITED,
Stores,B205,Stocks & WIP (Purchasing & Supply Stores),Bann Abs 2H Perforator 22St Bk,12,2020,5.22,33761,06/03/2020,KPIN,BANNER GROUP LIMITED,
Stores,B205,Stocks & WIP (Purchasing & Supply Stores),Banner Letter Tray Risers,12,2020,2.52,33761,06/03/2020,KPIN,BANNER GROUP LIMITED,
Stores,B205,Stocks & WIP (Purchasing & Supply Stores),Banner Letter Tray Black,12,2020,7.00,33761,06/03/2020,KPIN,BANNER GROUP LIMITED,
Stores,B205,Stocks & WIP (Purchasing & Supply Stores),Banner Whiteboard Foam Cleaner,12,2020,32.30,33761,06/03/2020,KPIN,BANNER GROUP LIMITED,
Stores,B205,Stocks & WIP (Purchasing & Supply Stores),Desktop Tape Dispenser,12,2020,2.48,33761,06/03/2020,KPIN,BANNER GROUP LIMITED,
Stores,B205,Stocks & WIP (Purchasing & Supply Stores),Banner Cellulose Tape 25Mmx66M,12,2020,6.76,33761,06/03/2020,KPIN,BANNER GROUP LIMITED,
Stores,B205,Stocks & WIP (Purchasing & Supply Stores),DESK TIDY,12,2020,4.30,33761,06/03/2020,KPIN,BANNER GROUP LIMITED,
Stores,B205,Stocks & WIP (Purchasing & Supply Stores),Banner 203X127 Sprl Sh N/Book,12,2020,6.40,33761,06/03/2020,KPIN,BANNER GROUP LIMITED,
Stores,B205,Stocks & WIP (Purchasing & Supply Stores),"Xerox Premier Copier Card, A4 ",12,2020,17.45,33761,06/03/2020,KPIN,BANNER GROUP LIMITED,
Stores,B205,Stocks & WIP (Purchasing & Supply Stores),Blu Tack Adhesive,12,2020,20.55,33761,06/03/2020,KPIN,BANNER GROUP LIMITED,
Stores,B205,Stocks & WIP (Purchasing & Supply Stores),Rapesco Sgle Pvc Clipbrd Fs Bk,12,2020,3.24,33761,06/03/2020,KPIN,BANNER GROUP LIMITED,
Stores,B205,Stocks & WIP (Purchasing & Supply Stores),Banner Large Lipped Paperclip,12,2020,1.06,33761,06/03/2020,KPIN,BANNER GROUP LIMITED,
Stores,B205,Stocks & WIP (Purchasing & Supply Stores),Banner Medium Ballpoint Pen Bl,12,2020,13.30,33761,06/03/2020,KPIN,BANNER GROUP LIMITED,
Stores,B205,Stocks & WIP (Purchasing & Supply Stores),Banner Medium Ballpoint Pen Bl,12,2020,7.98,33761,06/03/2020,KPIN,BANNER GROUP LIMITED,
Stores,B205,Stocks & WIP (Purchasing & Supply Stores),Banner Medium Ballpoint Pen Re,12,2020,2.66,33761,06/03/2020,KPIN,BANNER GROUP LIMITED,
Stores,B205,Stocks & WIP (Purchasing & Supply Stores),Bann Plain 5 Part A4 Divide Bf,12,2020,0.80,33761,06/03/2020,KPIN,BANNER GROUP LIMITED,
Stores,B205,Stocks & WIP (Purchasing & Supply Stores),Banner 10Pt A4 Col D,12,2020,1.60,33761,06/03/2020,KPIN,BANNER GROUP LIMITED,
Stores,B205,Stocks & WIP (Purchasing & Supply Stores),Banner Int Env 324X229 90G I/T,12,2020,7.01,33761,06/03/2020,KPIN,BANNER GROUP LIMITED,
Stores,B205,Stocks & WIP (Purchasing & Supply Stores),Banner A4 Report File Red,12,2020,1.82,33761,06/03/2020,KPIN,BANNER GROUP LIMITED,
Stores,B205,Stocks & WIP (Purchasing & Supply Stores),Banner A4 Report File Blue,12,2020,9.10,33761,06/03/2020,KPIN,BANNER GROUP LIMITED,
Property Services,1050,Building Maintenance,9405011 - A4 lever Arch 70MM F,12,2020,4.40,33761,06/03/2020,KPIN,BANNER GROUP LIMITED,
Stores,B205,Stocks & WIP (Purchasing & Supply Stores),Banner Fineliner 0.4mm Black,12,2020,9.00,33761,06/03/2020,KPIN,BANNER GROUP LIMITED,
Stores,B205,Stocks & WIP (Purchasing & Supply Stores),Banner Fineliner 0.4mm Blue,12,2020,2.70,33761,06/03/2020,KPIN,BANNER GROUP LIMITED,
Community Safety,4021,Home Safety,PL09183 Extension lead 4 Gang ,12,2020,37.95,33762,06/03/2020,KPIN,CPC,
Community Safety,4021,Home Safety,PL09180 Extension lead 4 Gang ,12,2020,29.00,33762,06/03/2020,KPIN,CPC,
Community Safety,4021,Home Safety,PL09181 Extension lead 4 Gang ,12,2020,32.00,33762,06/03/2020,KPIN,CPC,
Catering,4130,Hospitality & Entertaining,KP MESS CLUB,12,2020,96.46,33763,09/03/2020,KPIN,DIRECT MEATS,
Catering,4130,Hospitality & Entertaining,KP MESS CLUB,12,2020,7.02,33764,09/03/2020,KPIN,DONALD FREESTON,
Catering,4130,Hospitality & Entertaining,KP MESS CLUB,12,2020,97.86,33765,09/03/2020,KPIN,DONALD FREESTON,
Innovation and Change,0180,Casual and Temporary Staff,Casual and Temporary Staff,12,2020,950.00,33767,04/02/2020,KPIN,HAYS SPECIALIST RECRUITMENT LTD,
Training,0715,In House Operational Training,In House Operational Training,12,2020,150.00,33768,05/03/2020,KPIN,BENFLEET SCRAP CO. LTD,
Training,0715,In House Operational Training,In House Operational Training,12,2020,150.00,33768,05/03/2020,KPIN,BENFLEET SCRAP CO. LTD,
Property Services,1499,Furniture and Fittings,parking signs required - Quote,12,2020,106.20,33769,09/03/2020,KPIN,NORTH ESSEX SIGNS LTD,
Service Leadership Team,2902,Legal Expenses,Legal Expenses,12,2020,110.00,33770,03/03/2020,KPIN,THURROCK BOROUGH COUNCIL,
Finance & Pay,2903,Consultancy Fees,Emergency vehicle review,12,2020,315.00,33771,28/02/2020,KPIN,PSTAX,
Finance & Pay,2903,Consultancy Fees,Emergency vehicle review,12,2020,720.00,33771,28/02/2020,KPIN,PSTAX,
Property Services,1499,Furniture and Fittings,Rise and Fall Electric desk - ,12,2020,687.50,33772,04/03/2020,KPIN,BATES OFFICE SERVICES LIMITED,
Training,0710,Organisational Development,Organisational Development,12,2020,495.00,33773,09/03/2020,KPIN,INSPIRING OD LIMITED,
Property Services,1499,Furniture and Fittings,HELIX GREY SECURITY KEY SAFE -,12,2020,158.00,33774,05/03/2020,KPIN,BATES OFFICE SERVICES LIMITED,
Human Resources,0708,Equalities and Community Engagement,Equalities and Community Engagement,12,2020,123.38,33775,05/03/2020,KPIN,CHELMSFORD CITY COUNCIL,
Training,0702,External Training - L&D Panel,External Training - L&D Panel,12,2020,1495.00,33776,09/03/2020,KPIN,THE RAPID RESULTS COLLEGE LTD,
Training,0702,External Training - L&D Panel,External Training - L&D Panel,12,2020,116.00,33776,09/03/2020,KPIN,THE RAPID RESULTS COLLEGE LTD,
Training,0702,External Training - L&D Panel,External Training - L&D Panel,12,2020,-116.00,33776,09/03/2020,KPIN,THE RAPID RESULTS COLLEGE LTD,
Training,0702,External Training - L&D Panel,External Training - L&D Panel,12,2020,-1495.00,33776,09/03/2020,KPIN,THE RAPID RESULTS COLLEGE LTD,
Training,B217,Payments in Advance,"Exam Fee 1 May 20, 3 Jun 20",12,2020,116.00,33776,09/03/2020,KPIN,THE RAPID RESULTS COLLEGE LTD,
Training,B217,Payments in Advance,"NEBOSH D Reid 20-24 Apr 20, 11",12,2020,1495.00,33776,09/03/2020,KPIN,THE RAPID RESULTS COLLEGE LTD,
Property Services,1050,Building Maintenance,To carryout  remedial works to,12,2020,478.00,33777,11/02/2020,KPIN,TH ELECTRICAL LTD,
ICT,4005,IT Consumables,Release 9 Upgrade Additional R,12,2020,1150.00,33779,06/03/2020,KPIN,CIVICA UK LTD,
ICT,4005,IT Consumables,Expenses,12,2020,45.00,33779,06/03/2020,KPIN,CIVICA UK LTD,
Property Services,1050,Building Maintenance,Orange cable has been severed ,12,2020,327.05,33780,09/03/2020,KPIN,HS DOOR SYSTEMS LTD,
Property Services,1050,Building Maintenance,Appliance bay door not always ,12,2020,240.90,33781,09/03/2020,KPIN,HS DOOR SYSTEMS LTD,
ICT,2040,IT Maintenance and Contracts,CONTRA KPIN 33839,12,2020,13480.00,33782,09/03/2020,KPIN,RICARDO-AEA LTD,
Human Resources,0960,Occupational Health,Occupational Health,12,2020,150.00,33783,11/02/2020,KPIN,LESLEY PIRIE,
Human Resources,0960,Occupational Health,Occupational Health,12,2020,200.00,33784,11/02/2020,KPIN,LESLEY PIRIE,
Human Resources,0960,Occupational Health,Occupational Health,12,2020,100.00,33784,11/02/2020,KPIN,LESLEY PIRIE,
Human Resources,0960,Occupational Health,Occupational Health,12,2020,350.00,33785,11/02/2020,KPIN,LESLEY PIRIE,
Human Resources,0960,Occupational Health,Occupational Health,12,2020,50.00,33785,11/02/2020,KPIN,LESLEY PIRIE,
Property Services,1302,Electricity,BILL 02/12/19 - 01/03/2020,12,2020,24.44,33790,02/03/2020,KPIN,BRITISH GAS,
Property Services,1301,Gas,BILL 02/12/19 - 01/03/2020,12,2020,26.93,33790,02/03/2020,KPIN,BRITISH GAS,
Human Resources,2016,Fitness Equipment,CONTRA KPIN 32674,12,2020,-135.00,33791,09/03/2020,KPIN,SPORTSAFE UK LTD,
Property Services,1322,Sewerage Charges,03.03.2020 - MALDON,12,2020,197.16,33793,03/03/2020,KPIN,ANGLIAN WATER BUSINESS ( NATIONAL ) LTD,
Property Services,1321,Water Meters,03.03.2020 - MALDON,12,2020,168.80,33793,03/03/2020,KPIN,ANGLIAN WATER BUSINESS ( NATIONAL ) LTD,
Community Safety,4021,Home Safety,"Smoke alarm Wi-Fi Optical, 10 ",12,2020,6125.00,33796,09/03/2020,KPIN,FIREBLITZ EXTINGUISHER LTD (FIREHAWK ALARMS),
Property Services,1050,Building Maintenance,To clear blocked toilet,12,2020,88.00,33797,09/03/2020,KPIN,ARVON DRAIN CLEARING,
Property Services,1050,Building Maintenance,To clear blocked urinal,12,2020,88.00,33797,09/03/2020,KPIN,ARVON DRAIN CLEARING,
Training,0715,In House Operational Training,In House Operational Training,12,2020,339.98,33798,09/03/2020,KPIN,ICOM UK LTD,
Training,0707,Operational Training Contracts,FIRE0439 - To provide the Serv,12,2020,3603.30,33799,07/03/2020,KPIN,MARK SMITH CONSULTANCY LIMITED,
Not Analysed,B114,Fixed Assets Under Construction ITC Equipment,105523176/3 Dell Latitude 3390,12,2020,44949.52,33800,09/03/2020,KPIN,XMA LIMITED,
Catering,4130,Hospitality & Entertaining,KP MESS CLUB,12,2020,62.63,33801,10/03/2020,KPIN,DONALD FREESTON,
